Workbook

Sheet Main
B10: 2022-03-02
B12: Sheet No. | C12: Template Name | D12: Summary
B13: 1 | C13: Future Intra | D13: For Intraday trading in F&O segment
B14: 2 | C14: Cash Intra | D14: For Intraday trading in cash market segment
B15: 3 | C15: Mid-cap Intra | D15: For Intraday trading in Mid-cap stocks
B16: 4 | C16: Bulk Deals | D16: Reveals Bulk Deals carried on NSE & BSE
B17: 5 | C17: Call Tracker
K27: `

Sheet Future Intra
M5: Back to Main Page
A6: FOR INTRA DAY TRADING | L6: =Main!B10 -> 2022-03-02
A9: Sr.no | B9: Sector | C9: Scrip | D9: Expiry Date | E9: CLOSE RATE | F9: Pivot Point | G9: Supports | J9: Resistances
E10: Point | F10: Point | G10: S1 | H10: S2 | I10: S3 | J10: R1 | K10: R2 | L10: R3 | M10: HIGH | N10: LOW | O10: OI | P10: % Change in OI
A11: 1 | B11: Index | C11: NIFTY | D11: 2022-03-31 | E11: 16794.25 | F11: 16662.03 | G11: 16499.07 | H11: 16203.88 | I11: 16040.92 | J11: 16957.22 | K11: 17120.18 | L11: 17415.37 | M11: 16825 | N11: 16366.85 | O11: 13759950 | P11: 12.09%
A12: 2 | B12: Index | C12: BANKNIFTY | D12: 2022-03-31 | E12: 36261.65 | F12: 36087.08 | G12: 35829.77 | H12: 35397.88 | I12: 35140.57 | J12: 36518.97 | K12: 36776.28 | L12: 37208.17 | M12: 36344.4 | N12: 35655.2 | O12: 2754125 | P12: 6.64%
A13: 3 | B13: Index | C13: FINNIFTY | D13: 2022-03-29 | E13: 16951.60 | F13: 16898.73 | G13: 16752.77 | H13: 16553.93 | I13: 16407.97 | J13: 17097.57 | K13: 17243.53 | L13: 17442.37 | M13: 17044.7 | N13: 16699.9 | O13: 3240 | P13: 1.25%
A14: 4 | B14: Index | C14: MIDCPNIFTY | D14: 2022-03-29 | E14: 7041.25 | F14: 7010.75 | G14: 6841.55 | H14: 6641.85 | I14: 6472.65 | J14: 7210.45 | K14: 7379.65 | L14: 7579.35 | M14: 7179.95 | N14: 6811.05 | O14: 1875 | P14: -13.79%
A15: 5 | B15: Chemical | C15: AARTIIND | D15: 2022-03-31 | E15: 927.05 | F15: 923.27 | G15: 916.78 | H15: 906.52 | I15: 900.03 | J15: 933.53 | K15: 940.02 | L15: 950.28 | M15: 929.75 | N15: 913 | O15: 2185350 | P15: 0.67%
A16: 6 | B16: Pharma | C16: ABBOTINDIA | D16: 2022-03-31 | E16: 17580.45 | F16: 17526.68 | G16: 17263.82 | H16: 16947.18 | I16: 16684.32 | J16: 17843.32 | K16: 18106.18 | L16: 18422.82 | M16: 17789.55 | N16: 17210.05 | O16: 37450 | P16: 2.74%
A17: 7 | B17: Others | C17: ABCAPITAL | D17: 2022-03-31 | E17: 105.85 | F17: 104.53 | G17: 102.77 | H17: 99.68 | I17: 97.92 | J17: 107.62 | K17: 109.38 | L17: 112.47 | M17: 106.3 | N17: 101.45 | O17: 16552800 | P17: 0.53%
A18: 8 | B18: Textile | C18: ABFRL | D18: 2022-03-31 | E18: 268.60 | F18: 267.42 | G18: 262.73 | H18: 256.87 | I18: 252.18 | J18: 273.28 | K18: 277.97 | L18: 283.83 | M18: 272.1 | N18: 261.55 | O18: 13436800 | P18: -0.17%
A19: 9 | B19: Cement | C19: ACC | D19: 2022-03-31 | E19: 2088.40 | F19: 2068.05 | G19: 2044.30 | H19: 2000.20 | I19: 1976.45 | J19: 2112.15 | K19: 2135.90 | L19: 2180.00 | M19: 2091.8 | N19: 2023.95 | O19: 2215750 | P19: 1.20%
A20: 10 | B20: Others | C20: ADANIENT | D20: 2022-03-31 | E20: 1646.35 | F20: 1632.52 | G20: 1611.13 | H20: 1575.92 | I20: 1554.53 | J20: 1667.73 | K20: 1689.12 | L20: 1724.33 | M20: 1653.9 | N20: 1597.3 | O20: 20676500 | P20: 0.21%
A21: 11 | B21: Others | C21: ADANIPORTS | D21: 2022-03-31 | E21: 708.80 | F21: 702.02 | G21: 693.23 | H21: 677.67 | I21: 668.88 | J21: 717.58 | K21: 726.37 | L21: 741.93 | M21: 710.8 | N21: 686.45 | O21: 84927500 | P21: -0.27%
A22: 12 | B22: Pharma | C22: ALKEM | D22: 2022-03-31 | E22: 3288.30 | F22: 3280.92 | G22: 3258.68 | H22: 3229.07 | I22: 3206.83 | J22: 3310.53 | K22: 3332.77 | L22: 3362.38 | M22: 3303.15 | N22: 3251.3 | O22: 262800 | P22: -0.83%
A23: 13 | B23: Automobile | C23: AMARAJABAT | D23: 2022-03-31 | E23: 562.05 | F23: 554.17 | G23: 544.68 | H23: 527.32 | I23: 517.83 | J23: 571.53 | K23: 581.02 | L23: 598.38 | M23: 563.65 | N23: 536.8 | O23: 7255000 | P23: -1.44%
A24: 14 | B24: Cement | C24: AMBUJACEM | D24: 2022-03-31 | E24: 308.85 | F24: 305.68 | G24: 301.02 | H24: 293.18 | I24: 288.52 | J24: 313.52 | K24: 318.18 | L24: 326.02 | M24: 310.35 | N24: 297.85 | O24: 21954000 | P24: 9.92%
A25: 15 | B25: Pharma | C25: APLLTD | D25: 2022-03-31 | E25: 727.30 | F25: 725.40 | G25: 718.00 | H25: 708.70 | I25: 701.30 | J25: 734.70 | K25: 742.10 | L25: 751.40 | M25: 732.8 | N25: 716.1 | O25: 1587600 | P25: -0.53%
A26: 16 | B26: Others | C26: APOLLOHOSP | D26: 2022-03-31 | E26: 4798.35 | F26: 4737.10 | G26: 4651.20 | H26: 4504.05 | I26: 4418.15 | J26: 4884.25 | K26: 4970.15 | L26: 5117.30 | M26: 4823 | N26: 4589.95 | O26: 2424500 | P26: -6.15%
A27: 17 | B27: Automobile | C27: APOLLOTYRE | D27: 2022-03-31 | E27: 185.20 | F27: 183.83 | G27: 180.57 | H27: 175.93 | I27: 172.67 | J27: 188.47 | K27: 191.73 | L27: 196.37 | M27: 187.1 | N27: 179.2 | O27: 11650000 | P27: 5.89%
A28: 18 | B28: Automobile | C28: ASHOKLEY | D28: 2022-03-31 | E28: 119.05 | F28: 118.25 | G28: 116.35 | H28: 113.65 | I28: 111.75 | J28: 120.95 | K28: 122.85 | L28: 125.55 | M28: 120.15 | N28: 115.55 | O28: 40405500 | P28: 8.72%
A29: 19 | B29: FMCG | C29: ASIANPAINT | D29: 2022-03-31 | E29: 3171.80 | F29: 3124.88 | G29: 3062.17 | H29: 2952.53 | I29: 2889.82 | J29: 3234.52 | K29: 3297.23 | L29: 3406.87 | M29: 3187.6 | N29: 3015.25 | O29: 4811100 | P29: 6.71%
A30: 20 | B30: Others | C30: ASTRAL | D30: 2022-03-31 | E30: 1940.25 | F30: 1914.85 | G30: 1880.90 | H30: 1821.55 | I30: 1787.60 | J30: 1974.20 | K30: 2008.15 | L30: 2067.50 | M30: 1948.8 | N30: 1855.5 | O30: 1065900 | P30: -2.12%
A31: 21 | B31: Others | C31: ATUL | D31: 2022-03-31 | E31: 9255.95 | F31: 9174.95 | G31: 9051.00 | H31: 8846.05 | I31: 8722.10 | J31: 9379.90 | K31: 9503.85 | L31: 9708.80 | M31: 9298.9 | N31: 8970 | O31: 87825 | P31: 1.21%
A32: 22 | B32: Banking | C32: AUBANK | D32: 2022-03-31 | E32: 1204.05 | F32: 1204.62 | G32: 1184.23 | H32: 1164.42 | I32: 1144.03 | J32: 1224.43 | K32: 1244.82 | L32: 1264.63 | M32: 1225 | N32: 1184.8 | O32: 2427000 | P32: 1.08%
A33: 23 | B33: Pharma | C33: AUROPHARMA | D33: 2022-03-31 | E33: 627.10 | F33: 622.58 | G33: 616.12 | H33: 605.13 | I33: 598.67 | J33: 633.57 | K33: 640.03 | L33: 651.02 | M33: 629.05 | N33: 611.6 | O33: 14253750 | P33: 0.99%
A34: 24 | B34: Banking | C34: AXISBANK | D34: 2022-03-31 | E34: 743.85 | F34: 744.10 | G34: 736.85 | H34: 729.85 | I34: 722.60 | J34: 751.10 | K34: 758.35 | L34: 765.35 | M34: 751.35 | N34: 737.1 | O34: 41679600 | P34: 4.98%
A35: 25 | B35: Automobile | C35: BAJAJ-AUTO | D35: 2022-03-31 | E35: 3531.20 | F35: 3513.15 | G35: 3469.10 | H35: 3407.00 | I35: 3362.95 | J35: 3575.25 | K35: 3619.30 | L35: 3681.40 | M35: 3557.2 | N35: 3451.05 | O35: 1996000 | P35: -0.11%
A36: 26 | B36: Finance | C36: BAJAJFINSV | D36: 2022-03-31 | E36: 16024.90 | F36: 15828.73 | G36: 15569.92 | H36: 15114.93 | I36: 14856.12 | J36: 16283.72 | K36: 16542.53 | L36: 16997.52 | M36: 16087.55 | N36: 15373.75 | O36: 635850 | P36: 0.19%
A37: 27 | B37: Finance | C37: BAJFINANCE | D37: 2022-03-31 | E37: 7001.40 | F37: 6950.52 | G37: 6872.03 | H37: 6742.67 | I37: 6664.18 | J37: 7079.88 | K37: 7158.37 | L37: 7287.73 | M37: 7029 | N37: 6821.15 | O37: 4147375 | P37: 0.02%
A38: 28 | B38: Automobile | C38: BALKRISIND | D38: 2022-03-31 | E38: 1825.30 | F38: 1801.88 | G38: 1770.77 | H38: 1716.23 | I38: 1685.12 | J38: 1856.42 | K38: 1887.53 | L38: 1942.07 | M38: 1833 | N38: 1747.35 | O38: 1541800 | P38: -0.90%
A39: 29 | B39: Others | C39: BALRAMCHIN | D39: 2022-03-31 | E39: 398.10 | F39: 393.58 | G39: 386.52 | H39: 374.93 | I39: 367.87 | J39: 405.17 | K39: 412.23 | L39: 423.82 | M39: 400.65 | N39: 382 | O39: 6833600 | P39: 0.21%
A40: 30 | B40: Banking | C40: BANDHANBNK | D40: 2022-03-31 | E40: 306.75 | F40: 304.93 | G40: 301.87 | H40: 296.98 | I40: 293.92 | J40: 309.82 | K40: 312.88 | L40: 317.77 | M40: 308 | N40: 300.05 | O40: 22555800 | P40: 1.47%
A41: 31 | B41: Banking | C41: BANKBARODA | D41: 2022-03-31 | E41: 106.85 | F41: 106.40 | G41: 104.75 | H41: 102.65 | I41: 101.00 | J41: 108.50 | K41: 110.15 | L41: 112.25 | M41: 108.05 | N41: 104.3 | O41: 97753500 | P41: -0.10%
A42: 32 | B42: FMCG | C42: BATAINDIA | D42: 2022-03-31 | E42: 1819.40 | F42: 1805.72 | G42: 1785.63 | H42: 1751.87 | I42: 1731.78 | J42: 1839.48 | K42: 1859.57 | L42: 1893.33 | M42: 1825.8 | N42: 1771.95 | O42: 1489950 | P42: 11.16%
A43: 33 | B43: Capital_Goods | C43: BEL | D43: 2022-03-31 | E43: 209.75 | F43: 205.77 | G43: 200.53 | H43: 191.32 | I43: 186.08 | J43: 214.98 | K43: 220.22 | L43: 229.43 | M43: 211 | N43: 196.55 | O43: 23415600 | P43: 0.97%
A44: 34 | B44: FMCG | C44: BERGEPAINT | D44: 2022-03-31 | E44: 689.80 | F44: 674.45 | G44: 657.25 | H44: 624.70 | I44: 607.50 | J44: 707.00 | K44: 724.20 | L44: 756.75 | M44: 691.65 | N44: 641.9 | O44: 5085300 | P44: 7.86%
A45: 35 | B45: Automobile | C45: BHARATFORG | D45: 2022-03-31 | E45: 677.80 | F45: 671.08 | G45: 660.22 | H45: 642.63 | I45: 631.77 | J45: 688.67 | K45: 699.53 | L45: 717.12 | M45: 681.95 | N45: 653.5 | O45: 5750250 | P45: 0.72%
A46: 36 | B46: Telecom | C46: BHARTIARTL | D46: 2022-03-31 | E46: 686.25 | F46: 680.70 | G46: 671.65 | H46: 657.05 | I46: 648.00 | J46: 695.30 | K46: 704.35 | L46: 718.95 | M46: 689.75 | N46: 666.1 | O46: 57954750 | P46: 1.47%
A47: 37 | B47: Capital_Goods | C47: BHEL | D47: 2022-03-31 | E47: 49.80 | F47: 48.92 | G47: 47.83 | H47: 45.87 | I47: 44.78 | J47: 50.88 | K47: 51.97 | L47: 53.93 | M47: 50 | N47: 46.95 | O47: 109179000 | P47: -0.70%
A48: 38 | B48: Pharma | C48: BIOCON | D48: 2022-03-31 | E48: 349.85 | F48: 364.25 | G48: 333.80 | H48: 317.75 | I48: 287.30 | J48: 380.30 | K48: 410.75 | L48: 426.80 | M48: 394.7 | N48: 348.2 | O48: 16481800 | P48: 31.01%
A49: 39 | B49: Automobile | C49: BOSCHLTD | D49: 2022-03-31 | E49: 15567.70 | F49: 15395.88 | G49: 15196.82 | H49: 14825.93 | I49: 14626.87 | J49: 15766.77 | K49: 15965.83 | L49: 16336.72 | M49: 15594.95 | N49: 15025 | O49: 123300 | P49: 2.96%
A50: 40 | B50: Oil_Gas | C50: BPCL | D50: 2022-03-31 | E50: 346.95 | F50: 341.42 | G50: 334.73 | H50: 322.52 | I50: 315.83 | J50: 353.63 | K50: 360.32 | L50: 372.53 | M50: 348.1 | N50: 329.2 | O50: 22879800 | P50: -4.11%
A51: 41 | B51: FMCG | C51: BRITANNIA | D51: 2022-03-31 | E51: 3424.10 | F51: 3394.70 | G51: 3354.40 | H51: 3284.70 | I51: 3244.40 | J51: 3464.40 | K51: 3504.70 | L51: 3574.40 | M51: 3435 | N51: 3325 | O51: 1691200 | P51: 5.06%
A52: 42 | B52: Technology | C52: BSOFT | D52: 2022-03-31 | E52: 407.60 | F52: 402.48 | G52: 396.12 | H52: 384.63 | I52: 378.27 | J52: 413.97 | K52: 420.33 | L52: 431.82 | M52: 408.85 | N52: 391 | O52: 3991000 | P52: 4.64%
A53: 43 | B53: Pharma | C53: CADILAHC | D53: 2022-03-31 | E53: 360.45 | F53: 357.27 | G53: 353.33 | H53: 346.22 | I53: 342.28 | J53: 364.38 | K53: 368.32 | L53: 375.43 | M53: 361.2 | N53: 350.15 | O53: 20166300 | P53: -0.20%
A54: 44 | B54: Banking | C54: CANBK | D54: 2022-03-31 | E54: 219.75 | F54: 218.40 | G54: 216.20 | H54: 212.65 | I54: 210.45 | J54: 221.95 | K54: 224.15 | L54: 227.70 | M54: 220.6 | N54: 214.85 | O54: 41623200 | P54: 2.12%
A55: 45 | B55: Finance | C55: CANFINHOME | D55: 2022-03-31 | E55: 580.10 | F55: 574.35 | G55: 565.85 | H55: 551.60 | I55: 543.10 | J55: 588.60 | K55: 597.10 | L55: 611.35 | M55: 582.85 | N55: 560.1 | O55: 3104400 | P55: -2.09%
A56: 46 | B56: Others | C56: CHAMBLFERT | D56: 2022-03-31 | E56: 376.20 | F56: 370.30 | G56: 362.75 | H56: 349.30 | I56: 341.75 | J56: 383.75 | K56: 391.30 | L56: 404.75 | M56: 377.85 | N56: 356.85 | O56: 1801500 | P56: -4.46%
A57: 47 | B57: Finance | C57: CHOLAFIN | D57: 2022-03-31 | E57: 689.90 | F57: 683.15 | G57: 674.95 | H57: 660.00 | I57: 651.80 | J57: 698.10 | K57: 706.30 | L57: 721.25 | M57: 691.35 | N57: 668.2 | O57: 8957500 | P57: 4.34%
A58: 48 | B58: Pharma | C58: CIPLA | D58: 2022-03-31 | E58: 926.85 | F58: 922.80 | G58: 916.10 | H58: 905.35 | I58: 898.65 | J58: 933.55 | K58: 940.25 | L58: 951.00 | M58: 929.5 | N58: 912.05 | O58: 9506250 | P58: 2.21%
A59: 49 | B59: Others | C59: COALINDIA | D59: 2022-03-31 | E59: 169.00 | F59: 166.38 | G59: 163.17 | H59: 157.33 | I59: 154.12 | J59: 172.22 | K59: 175.43 | L59: 181.27 | M59: 169.6 | N59: 160.55 | O59: 39274200 | P59: 7.84%
A60: 50 | B60: Technology | C60: COFORGE | D60: 2022-03-31 | E60: 4534.35 | F60: 4484.00 | G60: 4408.00 | H60: 4281.65 | I60: 4205.65 | J60: 4610.35 | K60: 4686.35 | L60: 4812.70 | M60: 4560 | N60: 4357.65 | O60: 525400 | P60: 1.12%
A61: 51 | B61: FMCG | C61: COLPAL | D61: 2022-03-31 | E61: 1432.45 | F61: 1416.82 | G61: 1396.73 | H61: 1361.02 | I61: 1340.93 | J61: 1452.53 | K61: 1472.62 | L61: 1508.33 | M61: 1436.9 | N61: 1381.1 | O61: 1944600 | P61: -1.68%
A62: 52 | B62: Others | C62: CONCOR | D62: 2022-03-31 | E62: 598.70 | F62: 590.83 | G62: 581.37 | H62: 564.03 | I62: 554.57 | J62: 608.17 | K62: 617.63 | L62: 634.97 | M62: 600.3 | N62: 573.5 | O62: 5508000 | P62: 0.34%
A63: 53 | B63: Others | C63: COROMANDEL | D63: 2022-03-31 | E63: 774.80 | F63: 766.58 | G63: 756.22 | H63: 737.63 | I63: 727.27 | J63: 785.17 | K63: 795.53 | L63: 814.12 | M63: 776.95 | N63: 748 | O63: 842500 | P63: 2.67%
A64: 54 | B64: Capital_Goods | C64: CROMPTON | D64: 2022-03-31 | E64: 428.15 | F64: 423.88 | G64: 418.27 | H64: 408.38 | I64: 402.77 | J64: 433.77 | K64: 439.38 | L64: 449.27 | M64: 429.5 | N64: 414 | O64: 4105200 | P64: -6.04%
A65: 55 | B65: Banking | C65: CUB | D65: 2022-03-31 | E65: 125.25 | F65: 124.43 | G65: 123.32 | H65: 121.38 | I65: 120.27 | J65: 126.37 | K65: 127.48 | L65: 129.42 | M65: 125.55 | N65: 122.5 | O65: 11182600 | P65: 0.30%
A66: 56 | B66: Capital_Goods | C66: CUMMINSIND | D66: 2022-03-31 | E66: 958.65 | F66: 951.22 | G66: 942.43 | H66: 926.22 | I66: 917.43 | J66: 967.43 | K66: 976.22 | L66: 992.43 | M66: 960 | N66: 935 | O66: 1432800 | P66: -2.45%
A67: 57 | B67: FMCG | C67: DABUR | D67: 2022-03-31 | E67: 564.40 | F67: 554.05 | G67: 538.10 | H67: 511.80 | I67: 495.85 | J67: 580.35 | K67: 596.30 | L67: 622.60 | M67: 570 | N67: 527.75 | O67: 13825000 | P67: 0.31%
A68: 58 | B68: Cement | C68: DALBHARAT | D68: 2022-03-31 | E68: 1570.35 | F68: 1552.58 | G68: 1513.37 | H68: 1456.38 | I68: 1417.17 | J68: 1609.57 | K68: 1648.78 | L68: 1705.77 | M68: 1591.8 | N68: 1495.6 | O68: 602000 | P68: 13.85%
A69: 59 | B69: Chemical | C69: DEEPAKNTR | D69: 2022-03-31 | E69: 2004.50 | F69: 1990.83 | G69: 1965.67 | H69: 1926.83 | I69: 1901.67 | J69: 2029.67 | K69: 2054.83 | L69: 2093.67 | M69: 2016 | N69: 1952 | O69: 1910750 | P69: 1.55%
A70: 60 | B70: Others | C70: DELTACORP | D70: 2022-03-31 | E70: 263.65 | F70: 261.63 | G70: 257.27 | H70: 250.88 | I70: 246.52 | J70: 268.02 | K70: 272.38 | L70: 278.77 | M70: 266 | N70: 255.25 | O70: 14835000 | P70: 2.89%
A71: 61 | B71: Pharma | C71: DIVISLAB | D71: 2022-03-31 | E71: 4270.95 | F71: 4214.13 | G71: 4143.47 | H71: 4015.98 | I71: 3945.32 | J71: 4341.62 | K71: 4412.28 | L71: 4539.77 | M71: 4284.8 | N71: 4086.65 | O71: 2595700 | P71: 0.31%
A72: 62 | B72: Others | C72: DIXON | D72: 2022-03-31 | E72: 4314.70 | F72: 4277.17 | G72: 4229.53 | H72: 4144.37 | I72: 4096.73 | J72: 4362.33 | K72: 4409.97 | L72: 4495.13 | M72: 4324.8 | N72: 4192 | O72: 444500 | P72: 3.04%
A73: 63 | B73: Realty | C73: DLF | D73: 2022-03-31 | E73: 351.30 | F73: 348.02 | G73: 343.13 | H73: 334.97 | I73: 330.08 | J73: 356.18 | K73: 361.07 | L73: 369.23 | M73: 352.9 | N73: 339.85 | O73: 39045600 | P73: -0.27%
A74: 64 | B74: Pharma | C74: DRREDDY | D74: 2022-03-31 | E74: 4074.25 | F74: 4089.17 | G74: 4046.78 | H74: 4019.32 | I74: 3976.93 | J74: 4116.63 | K74: 4159.02 | L74: 4186.48 | M74: 4131.55 | N74: 4061.7 | O74: 2917500 | P74: 4.87%
A75: 65 | B75: Automobile | C75: EICHERMOT | D75: 2022-03-31 | E75: 2594.75 | F75: 2585.92 | G75: 2551.83 | H75: 2508.92 | I75: 2474.83 | J75: 2628.83 | K75: 2662.92 | L75: 2705.83 | M75: 2620 | N75: 2543 | O75: 3005450 | P75: 2.29%
A76: 66 | B76: Automobile | C76: ESCORTS | D76: 2022-03-31 | E76: 1789.35 | F76: 1791.63 | G76: 1779.32 | H76: 1769.28 | I76: 1756.97 | J76: 1801.67 | K76: 1813.98 | L76: 1824.02 | M76: 1803.95 | N76: 1781.6 | O76: 5210700 | P76: 2.67%
A77: 67 | B77: Automobile | C77: EXIDEIND | D77: 2022-03-31 | E77: 149.40 | F77: 148.57 | G77: 147.43 | H77: 145.47 | I77: 144.33 | J77: 150.53 | K77: 151.67 | L77: 153.63 | M77: 149.7 | N77: 146.6 | O77: 23119200 | P77: -0.19%
A78: 68 | B78: Banking | C78: FEDERALBNK | D78: 2022-03-31 | E78: 97.25 | F78: 96.25 | G78: 95.00 | H78: 92.75 | I78: 91.50 | J78: 98.50 | K78: 99.75 | L78: 102.00 | M78: 97.5 | N78: 94 | O78: 66150000 | P78: 1.02%
A79: 69 | B79: Technology | C79: FSL | D79: 2022-03-31 | E79: 126.60 | F79: 125.83 | G79: 122.02 | H79: 117.43 | I79: 113.62 | J79: 130.42 | K79: 134.23 | L79: 138.82 | M79: 129.65 | N79: 121.25 | O79: 15566200 | P79: 0.71%
A80: 70 | B80: Oil_Gas | C80: GAIL | D80: 2022-03-31 | E80: 142.20 | F80: 138.58 | G80: 134.52 | H80: 126.83 | I80: 122.77 | J80: 146.27 | K80: 150.33 | L80: 158.02 | M80: 142.65 | N80: 130.9 | O80: 27584200 | P80: -5.69%
A81: 71 | B81: Pharma | C81: GLENMARK | D81: 2022-03-31 | E81: 449.85 | F81: 446.37 | G81: 441.63 | H81: 433.42 | I81: 428.68 | J81: 454.58 | K81: 459.32 | L81: 467.53 | M81: 451.1 | N81: 438.15 | O81: 7049500 | P81: -0.63%
A82: 72 | B82: Infrastructure | C82: GMRINFRA | D82: 2022-03-31 | E82: 38.05 | F82: 37.65 | G82: 37.00 | H82: 35.95 | I82: 35.30 | J82: 38.70 | K82: 39.35 | L82: 40.40 | M82: 38.3 | N82: 36.6 | O82: 103252500 | P82: 9.18%
A83: 73 | B83: Others | C83: GNFC | D83: 2022-03-31 | E83: 551.60 | F83: 548.32 | G83: 541.28 | H83: 530.97 | I83: 523.93 | J83: 558.63 | K83: 565.67 | L83: 575.98 | M83: 555.35 | N83: 538 | O83: 2822300 | P83: -0.91%
A84: 74 | B84: FMCG | C84: GODREJCP | D84: 2022-03-31 | E84: 770.10 | F84: 763.80 | G84: 749.80 | H84: 729.50 | I84: 715.50 | J84: 784.10 | K84: 798.10 | L84: 818.40 | M84: 777.8 | N84: 743.5 | O84: 6624500 | P84: 8.03%
A85: 75 | B85: Realty | C85: GODREJPROP | D85: 2022-03-31 | E85: 1505.60 | F85: 1483.72 | G85: 1453.88 | H85: 1402.17 | I85: 1372.33 | J85: 1535.43 | K85: 1565.27 | L85: 1616.98 | M85: 1513.55 | N85: 1432 | O85: 5289700 | P85: -0.45%
A86: 76 | B86: Pharma | C86: GRANULES | D86: 2022-03-31 | E86: 291.75 | F86: 289.43 | G86: 284.87 | H86: 277.98 | I86: 273.42 | J86: 296.32 | K86: 300.88 | L86: 307.77 | M86: 294 | N86: 282.55 | O86: 11372350 | P86: -0.33%
A87: 77 | B87: Cement | C87: GRASIM | D87: 2022-03-31 | E87: 1600.85 | F87: 1582.45 | G87: 1559.80 | H87: 1518.75 | I87: 1496.10 | J87: 1623.50 | K87: 1646.15 | L87: 1687.20 | M87: 1605.1 | N87: 1541.4 | O87: 9898050 | P87: 0.23%
A88: 78 | B88: Oil_Gas | C88: GSPL | D88: 2022-03-31 | E88: 288.80 | F88: 285.03 | G88: 277.02 | H88: 265.23 | I88: 257.22 | J88: 296.82 | K88: 304.83 | L88: 316.62 | M88: 293.05 | N88: 273.25 | O88: 1074400 | P88: -7.74%
A89: 79 | B89: Oil_Gas | C89: GUJGASLTD | D89: 2022-03-31 | E89: 584.75 | F89: 585.92 | G89: 577.83 | H89: 570.92 | I89: 562.83 | J89: 592.83 | K89: 600.92 | L89: 607.83 | M89: 594 | N89: 579 | O89: 2423750 | P89: 1.25%
A90: 80 | B90: Others | C90: HAL | D90: 2022-03-31 | E90: 1389.50 | F90: 1352.77 | G90: 1309.23 | H90: 1228.97 | I90: 1185.43 | J90: 1433.03 | K90: 1476.57 | L90: 1556.83 | M90: 1396.3 | N90: 1272.5 | O90: 2108050 | P90: -1.33%
A91: 81 | B91: Capital_Goods | C91: HAVELLS | D91: 2022-03-31 | E91: 1185.50 | F91: 1165.17 | G91: 1140.98 | H91: 1096.47 | I91: 1072.28 | J91: 1209.68 | K91: 1233.87 | L91: 1278.38 | M91: 1189.35 | N91: 1120.65 | O91: 4560000 | P91: 6.79%
A92: 82 | B92: Technology | C92: HCLTECH | D92: 2022-03-31 | E92: 1129.05 | F92: 1124.73 | G92: 1113.97 | H92: 1098.88 | I92: 1088.12 | J92: 1139.82 | K92: 1150.58 | L92: 1165.67 | M92: 1135.5 | N92: 1109.65 | O92: 20265000 | P92: 2.40%
A93: 83 | B93: Finance | C93: HDFC | D93: 2022-03-31 | E93: 2370.40 | F93: 2373.98 | G93: 2341.67 | H93: 2312.93 | I93: 2280.62 | J93: 2402.72 | K93: 2435.03 | L93: 2463.77 | M93: 2406.3 | N93: 2345.25 | O93: 23154900 | P93: 3.05%
A94: 84 | B94: Finance | C94: HDFCAMC | D94: 2022-03-31 | E94: 2090.40 | F94: 2077.10 | G94: 2041.35 | H94: 1992.30 | I94: 1956.55 | J94: 2126.15 | K94: 2161.90 | L94: 2210.95 | M94: 2112.85 | N94: 2028.05 | O94: 2765200 | P94: 1.06%
A95: 85 | B95: Banking | C95: HDFCBANK | D95: 2022-03-31 | E95: 1430.00 | F95: 1429.27 | G95: 1417.28 | H95: 1404.57 | I95: 1392.58 | J95: 1441.98 | K95: 1453.97 | L95: 1466.68 | M95: 1441.25 | N95: 1416.55 | O95: 28514200 | P95: 5.56%
A96: 86 | B96: Finance | C96: HDFCLIFE | D96: 2022-03-31 | E96: 524.70 | F96: 526.33 | G96: 519.87 | H96: 515.03 | I96: 508.57 | J96: 531.17 | K96: 537.63 | L96: 542.47 | M96: 532.8 | N96: 521.5 | O96: 28605500 | P96: 9.31%
A97: 87 | B97: Automobile | C97: HEROMOTOCO | D97: 2022-03-31 | E97: 2534.70 | F97: 2525.27 | G97: 2505.58 | H97: 2476.47 | I97: 2456.78 | J97: 2554.38 | K97: 2574.07 | L97: 2603.18 | M97: 2544.95 | N97: 2496.15 | O97: 3294600 | P97: 2.54%
A98: 88 | B98: Metals | C98: HINDALCO | D98: 2022-03-31 | E98: 572.70 | F98: 560.90 | G98: 542.85 | H98: 513.00 | I98: 494.95 | J98: 590.75 | K98: 608.80 | L98: 638.65 | M98: 578.95 | N98: 531.05 | O98: 38752675 | P98: 13.03%
A99: 89 | B99: Metals | C99: HINDCOPPER | D99: 2022-03-31 | E99: 117.50 | F99: 115.92 | G99: 113.88 | H99: 110.27 | I99: 108.23 | J99: 119.53 | K99: 121.57 | L99: 125.18 | M99: 117.95 | N99: 112.3 | O99: 14086800 | P99: 3.28%
A100: 90 | B100: Oil_Gas | C100: HINDPETRO | D100: 2022-03-31 | E100: 273.20 | F100: 270.28 | G100: 266.27 | H100: 259.33 | I100: 255.32 | J100: 277.22 | K100: 281.23 | L100: 288.17 | M100: 274.3 | N100: 263.35 | O100: 10319400 | P100: 2.33%
A101: 91 | B101: FMCG | C101: HINDUNILVR | D101: 2022-03-31 | E101: 2177.35 | F101: 2160.38 | G101: 2138.17 | H101: 2098.98 | I101: 2076.77 | J101: 2199.57 | K101: 2221.78 | L101: 2260.97 | M101: 2182.6 | N101: 2121.2 | O101: 11055000 | P101: 5.07%
A102: 92 | B102: Others | C102: HONAUT | D102: 2022-03-31 | E102: 41017.75 | F102: 40629.92 | G102: 39959.83 | H102: 38901.92 | I102: 38231.83 | J102: 41687.83 | K102: 42357.92 | L102: 43415.83 | M102: 41300 | N102: 39572 | O102: 7380 | P102: -2.96%
A103: 93 | B103: Finance | C103: IBULHSGFIN | D103: 2022-03-31 | E103: 150.10 | F103: 148.35 | G103: 145.45 | H103: 140.80 | I103: 137.90 | J103: 153.00 | K103: 155.90 | L103: 160.55 | M103: 151.25 | N103: 143.7 | O103: 34769600 | P103: 7.84%
A104: 94 | B104: Banking | C104: ICICIBANK | D104: 2022-03-31 | E104: 742.10 | F104: 734.17 | G104: 724.93 | H104: 707.77 | I104: 698.53 | J104: 751.33 | K104: 760.57 | L104: 777.73 | M104: 743.4 | N104: 717 | O104: 95705500 | P104: 0.17%
A105: 95 | B105: Finance | C105: ICICIGI | D105: 2022-03-31 | E105: 1263.40 | F105: 1253.58 | G105: 1237.37 | H105: 1211.33 | I105: 1195.12 | J105: 1279.62 | K105: 1295.83 | L105: 1321.87 | M105: 1269.8 | N105: 1227.55 | O105: 3077850 | P105: 5.85%
A106: 96 | B106: Finance | C106: ICICIPRULI | D106: 2022-03-31 | E106: 480.40 | F106: 475.03 | G106: 468.27 | H106: 456.13 | I106: 449.37 | J106: 487.17 | K106: 493.93 | L106: 506.07 | M106: 481.8 | N106: 462.9 | O106: 7481250 | P106: 0.55%
A107: 97 | B107: Telecom | C107: IDEA | D107: 2022-03-31 | E107: 10.35 | F107: 10.37 | G107: 10.03 | H107: 9.72 | I107: 9.38 | J107: 10.68 | K107: 11.02 | L107: 11.33 | M107: 10.7 | N107: 10.05 | O107: 785470000 | P107: 8.68%
A108: 98 | B108: Finance | C108: IDFC | D108: 2022-03-31 | E108: 57.85 | F108: 56.77 | G108: 55.53 | H108: 53.22 | I108: 51.98 | J108: 59.08 | K108: 60.32 | L108: 62.63 | M108: 58 | N108: 54.45 | O108: 85200000 | P108: 0.50%
A109: 99 | B109: Banking | C109: IDFCFIRSTB | D109: 2022-03-31 | E109: 42.15 | F109: 41.97 | G109: 41.33 | H109: 40.52 | I109: 39.88 | J109: 42.78 | K109: 43.42 | L109: 44.23 | M109: 42.6 | N109: 41.15 | O109: 138017400 | P109: -0.42%
A110: 100 | B110: Others | C110: IEX | D110: 2022-03-31 | E110: 206.30 | F110: 204.15 | G110: 201.30 | H110: 196.30 | I110: 193.45 | J110: 209.15 | K110: 212.00 | L110: 217.00 | M110: 207 | N110: 199.15 | O110: 48082500 | P110: -0.57%
A111: 101 | B111: Oil_Gas | C111: IGL | D111: 2022-03-31 | E111: 347.60 | F111: 344.15 | G111: 339.30 | H111: 331.00 | I111: 326.15 | J111: 352.45 | K111: 357.30 | L111: 365.60 | M111: 349 | N111: 335.85 | O111: 18250375 | P111: 0.69%
A112: 102 | B112: Infrastructure | C112: INDHOTEL | D112: 2022-03-31 | E112: 200.15 | F112: 199.45 | G112: 196.70 | H112: 193.25 | I112: 190.50 | J112: 202.90 | K112: 205.65 | L112: 209.10 | M112: 202.2 | N112: 196 | O112: 17857680 | P112: 6.27%
A113: 103 | B113: Cement | C113: INDIACEM | D113: 2022-03-31 | E113: 202.30 | F113: 198.43 | G113: 193.87 | H113: 185.43 | I113: 180.87 | J113: 206.87 | K113: 211.43 | L113: 219.87 | M113: 203 | N113: 190 | O113: 12426500 | P113: 3.93%
A114: 104 | B114: Others | C114: INDIAMART | D114: 2022-03-31 | E114: 4463.85 | F114: 4407.95 | G114: 4325.90 | H114: 4187.95 | I114: 4105.90 | J114: 4545.90 | K114: 4627.95 | L114: 4765.90 | M114: 4490 | N114: 4270 | O114: 346800 | P114: -2.55%
A115: 105 | B115: Others | C115: INDIGO | D115: 2022-03-31 | E115: 1880.00 | F115: 1873.53 | G115: 1848.27 | H115: 1816.53 | I115: 1791.27 | J115: 1905.27 | K115: 1930.53 | L115: 1962.27 | M115: 1898.8 | N115: 1841.8 | O115: 3407250 | P115: 4.77%
A116: 106 | B116: Banking | C116: INDUSINDBK | D116: 2022-03-31 | E116: 922.10 | F116: 917.95 | G116: 908.50 | H116: 894.90 | I116: 885.45 | J116: 931.55 | K116: 941.00 | L116: 954.60 | M116: 927.4 | N116: 904.35 | O116: 24275700 | P116: -0.15%
A117: 107 | B117: Telecom | C117: INDUSTOWER | D117: 2022-03-31 | E117: 213.60 | F117: 210.68 | G117: 205.52 | H117: 197.43 | I117: 192.27 | J117: 218.77 | K117: 223.93 | L117: 232.02 | M117: 215.85 | N117: 202.6 | O117: 24228400 | P117: -3.57%
A118: 108 | B118: Technology | C118: INFY | D118: 2022-03-31 | E118: 1718.10 | F118: 1703.47 | G118: 1680.13 | H118: 1642.17 | I118: 1618.83 | J118: 1741.43 | K118: 1764.77 | L118: 1802.73 | M118: 1726.8 | N118: 1665.5 | O118: 39207000 | P118: -2.44%
A119: 109 | B119: Oil_Gas | C119: IOC | D119: 2022-03-31 | E119: 112.95 | F119: 111.77 | G119: 110.18 | H119: 107.42 | I119: 105.83 | J119: 114.53 | K119: 116.12 | L119: 118.88 | M119: 113.35 | N119: 109 | O119: 34833500 | P119: -0.48%
A120: 110 | B120: Pharma | C120: IPCALAB | D120: 2022-03-31 | E120: 975.30 | F120: 970.32 | G120: 959.78 | H120: 944.27 | I120: 933.73 | J120: 985.83 | K120: 996.37 | L120: 1011.88 | M120: 980.85 | N120: 954.8 | O120: 853200 | P120: -5.44%
A121: 111 | B121: Others | C121: IRCTC | D121: 2022-03-31 | E121: 809.55 | F121: 801.60 | G121: 791.20 | H121: 772.85 | I121: 762.45 | J121: 819.95 | K121: 830.35 | L121: 848.70 | M121: 812 | N121: 783.25 | O121: 9139375 | P121: 1.11%
A122: 112 | B122: FMCG | C122: ITC | D122: 2022-03-31 | E122: 215.80 | F122: 214.32 | G122: 212.33 | H122: 208.87 | I122: 206.88 | J122: 217.78 | K122: 219.77 | L122: 223.23 | M122: 216.3 | N122: 210.85 | O122: 163116800 | P122: -1.97%
A123: 113 | B123: Metals | C123: JINDALSTEL | D123: 2022-03-31 | E123: 425.70 | F123: 415.32 | G123: 403.38 | H123: 381.07 | I123: 369.13 | J123: 437.63 | K123: 449.57 | L123: 471.88 | M123: 427.25 | N123: 393 | O123: 30060000 | P123: 6.92%
A124: 114 | B124: Cement | C124: JKCEMENT | D124: 2022-03-31 | E124: 2842.40 | F124: 2801.87 | G124: 2746.93 | H124: 2651.47 | I124: 2596.53 | J124: 2897.33 | K124: 2952.27 | L124: 3047.73 | M124: 2856.8 | N124: 2706.4 | O124: 233975 | P124: -0.22%
A125: 115 | B125: Metals | C125: JSWSTEEL | D125: 2022-03-31 | E125: 628.75 | F125: 617.48 | G125: 603.47 | H125: 578.18 | I125: 564.17 | J125: 642.77 | K125: 656.78 | L125: 682.07 | M125: 631.5 | N125: 592.2 | O125: 38475000 | P125: 0.67%
A126: 116 | B126: Others | C126: JUBLFOOD | D126: 2022-03-31 | E126: 2918.50 | F126: 2904.82 | G126: 2883.63 | H126: 2848.77 | I126: 2827.58 | J126: 2939.68 | K126: 2960.87 | L126: 2995.73 | M126: 2926 | N126: 2869.95 | O126: 2451375 | P126: 1.47%
A127: 117 | B127: Banking | C127: KOTAKBANK | D127: 2022-03-31 | E127: 1841.35 | F127: 1835.60 | G127: 1818.85 | H127: 1796.35 | I127: 1779.60 | J127: 1858.10 | K127: 1874.85 | L127: 1897.35 | M127: 1852.35 | N127: 1813.1 | O127: 13127600 | P127: 1.23%
A128: 118 | B128: Finance | C128: L&TFH | D128: 2022-03-31 | E128: 66.05 | F128: 65.53 | G128: 64.82 | H128: 63.58 | I128: 62.87 | J128: 66.77 | K128: 67.48 | L128: 68.72 | M128: 66.25 | N128: 64.3 | O128: 63467488 | P128: -0.21%
A129: 119 | B129: Others | C129: LALPATHLAB | D129: 2022-03-31 | E129: 2518.90 | F129: 2510.53 | G129: 2490.57 | H129: 2462.23 | I129: 2442.27 | J129: 2538.87 | K129: 2558.83 | L129: 2587.17 | M129: 2530.5 | N129: 2482.2 | O129: 892750 | P129: 2.39%
A130: 120 | B130: Pharma | C130: LAURUSLABS | D130: 2022-03-31 | E130: 542.55 | F130: 537.67 | G130: 530.88 | H130: 519.22 | I130: 512.43 | J130: 549.33 | K130: 556.12 | L130: 567.78 | M130: 544.45 | N130: 526 | O130: 5294700 | P130: -0.83%
A131: 121 | B131: Finance | C131: LICHSGFIN | D131: 2022-03-31 | E131: 343.30 | F131: 339.53 | G131: 334.47 | H131: 325.63 | I131: 320.57 | J131: 348.37 | K131: 353.43 | L131: 362.27 | M131: 344.6 | N131: 330.7 | O131: 21104000 | P131: -0.68%
A132: 122 | B132: Capital_Goods | C132: LT | D132: 2022-03-31 | E132: 1815.25 | F132: 1797.67 | G132: 1774.78 | H132: 1734.32 | I132: 1711.43 | J132: 1838.13 | K132: 1861.02 | L132: 1901.48 | M132: 1820.55 | N132: 1757.2 | O132: 12786275 | P132: -1.20%
A133: 123 | B133: Technology | C133: LTI | D133: 2022-03-31 | E133: 5855.35 | F133: 5779.12 | G133: 5686.23 | H133: 5517.12 | I133: 5424.23 | J133: 5948.23 | K133: 6041.12 | L133: 6210.23 | M133: 5872 | N133: 5610 | O133: 1010250 | P133: 0.31%
A134: 124 | B134: Technology | C134: LTTS | D134: 2022-03-31 | E134: 4534.80 | F134: 4465.73 | G134: 4379.07 | H134: 4223.33 | I134: 4136.67 | J134: 4621.47 | K134: 4708.13 | L134: 4863.87 | M134: 4552.4 | N134: 4310 | O134: 645600 | P134: -1.28%
A135: 125 | B135: Pharma | C135: LUPIN | D135: 2022-03-31 | E135: 746.05 | F135: 742.38 | G135: 735.67 | H135: 725.28 | I135: 718.57 | J135: 752.77 | K135: 759.48 | L135: 769.87 | M135: 749.1 | N135: 732 | O135: 8769450 | P135: 0.14%
A136: 126 | B136: Automobile | C136: M&M | D136: 2022-03-31 | E136: 792.95 | F136: 795.30 | G136: 784.60 | H136: 776.25 | I136: 765.55 | J136: 803.65 | K136: 814.35 | L136: 822.70 | M136: 806 | N136: 786.95 | O136: 15094800 | P136: 1.48%
A137: 127 | B137: Finance | C137: M&MFIN | D137: 2022-03-31 | E137: 145.40 | F137: 144.33 | G137: 142.67 | H137: 139.93 | I137: 138.27 | J137: 147.07 | K137: 148.73 | L137: 151.47 | M137: 146 | N137: 141.6 | O137: 32008000 | P137: 2.60%
A138: 128 | B138: Finance | C138: MANAPPURAM | D138: 2022-03-31 | E138: 114.40 | F138: 113.78 | G138: 112.27 | H138: 110.13 | I138: 108.62 | J138: 115.92 | K138: 117.43 | L138: 119.57 | M138: 115.3 | N138: 111.65 | O138: 25962000 | P138: 2.39%
A139: 129 | B139: FMCG | C139: MARICO | D139: 2022-03-31 | E139: 515.30 | F139: 506.45 | G139: 495.35 | H139: 475.40 | I139: 464.30 | J139: 526.40 | K139: 537.50 | L139: 557.45 | M139: 517.55 | N139: 486.5 | O139: 9763000 | P139: 10.04%
A140: 130 | B140: Automobile | C140: MARUTI | D140: 2022-03-31 | E140: 8331.70 | F140: 8270.10 | G140: 8186.40 | H140: 8041.10 | I140: 7957.40 | J140: 8415.40 | K140: 8499.10 | L140: 8644.40 | M140: 8353.8 | N140: 8124.8 | O140: 2547800 | P140: -0.29%
A141: 131 | B141: FMCG | C141: MCDOWELL-N | D141: 2022-03-31 | E141: 886.95 | F141: 880.72 | G141: 871.43 | H141: 855.92 | I141: 846.63 | J141: 896.23 | K141: 905.52 | L141: 921.03 | M141: 890 | N141: 865.2 | O141: 15430000 | P141: 0.41%
A142: 132 | B142: Others | C142: MCX | D142: 2022-03-31 | E142: 1273.45 | F142: 1262.80 | G142: 1245.65 | H142: 1217.85 | I142: 1200.70 | J142: 1290.60 | K142: 1307.75 | L142: 1335.55 | M142: 1279.95 | N142: 1235 | O142: 1969450 | P142: -1.33%
A143: 133 | B143: Pharma | C143: METROPOLIS | D143: 2022-03-31 | E143: 1962.20 | F143: 1949.78 | G143: 1925.87 | H143: 1889.53 | I143: 1865.62 | J143: 1986.12 | K143: 2010.03 | L143: 2046.37 | M143: 1973.7 | N143: 1913.45 | O143: 764600 | P143: 1.65%
A144: 134 | B144: Finance | C144: MFSL | D144: 2022-03-31 | E144: 823.95 | F144: 817.30 | G144: 798.20 | H144: 772.45 | I144: 753.35 | J144: 843.05 | K144: 862.15 | L144: 887.90 | M144: 836.4 | N144: 791.55 | O144: 1480700 | P144: 9.78%
A145: 135 | B145: Oil_Gas | C145: MGL | D145: 2022-03-31 | E145: 729.15 | F145: 716.80 | G145: 702.35 | H145: 675.55 | I145: 661.10 | J145: 743.60 | K145: 758.05 | L145: 784.85 | M145: 731.25 | N145: 690 | O145: 3935400 | P145: 4.49%
A146: 136 | B146: Technology | C146: MINDTREE | D146: 2022-03-31 | E146: 3879.00 | F146: 3819.60 | G146: 3744.55 | H146: 3610.10 | I146: 3535.05 | J146: 3954.05 | K146: 4029.10 | L146: 4163.55 | M146: 3894.65 | N146: 3685.15 | O146: 2905800 | P146: 1.24%
A147: 137 | B147: Automobile | C147: MOTHERSUMI | D147: 2022-03-31 | E147: 150.55 | F147: 149.03 | G147: 146.32 | H147: 142.08 | I147: 139.37 | J147: 153.27 | K147: 155.98 | L147: 160.22 | M147: 151.75 | N147: 144.8 | O147: 23320500 | P147: 3.38%
A148: 138 | B148: Technology | C148: MPHASIS | D148: 2022-03-31 | E148: 3109.60 | F148: 3072.37 | G148: 3017.23 | H148: 2924.87 | I148: 2869.73 | J148: 3164.73 | K148: 3219.87 | L148: 3312.23 | M148: 3127.5 | N148: 2980 | O148: 1610525 | P148: 1.39%
A149: 139 | B149: Automobile | C149: MRF | D149: 2022-03-31 | E149: 65504.95 | F149: 65307.77 | G149: 64455.53 | H149: 63406.12 | I149: 62553.88 | J149: 66357.18 | K149: 67209.42 | L149: 68258.83 | M149: 66160 | N149: 64258.35 | O149: 65940 | P149: 1.10%
A150: 140 | B150: Finance | C150: MUTHOOTFIN | D150: 2022-03-31 | E150: 1341.75 | F150: 1334.35 | G150: 1320.30 | H150: 1298.85 | I150: 1284.80 | J150: 1355.80 | K150: 1369.85 | L150: 1391.30 | M150: 1348.4 | N150: 1312.9 | O150: 2850375 | P150: 0.96%
A151: 141 | B151: Others | C151: NAM-INDIA | D151: 2022-03-31 | E151: 304.15 | F151: 300.18 | G151: 295.32 | H151: 286.48 | I151: 281.62 | J151: 309.02 | K151: 313.88 | L151: 322.72 | M151: 305.05 | N151: 291.35 | O151: 2825600 | P151: -0.67%
A152: 142 | B152: Metals | C152: NATIONALUM | D152: 2022-03-31 | E152: 121.65 | F152: 120.20 | G152: 117.55 | H152: 113.45 | I152: 110.80 | J152: 124.30 | K152: 126.95 | L152: 131.05 | M152: 122.85 | N152: 116.1 | O152: 95378500 | P152: 3.07%
A153: 143 | B153: Others | C153: NAUKRI | D153: 2022-03-31 | E153: 4456.40 | F153: 4432.72 | G153: 4380.13 | H153: 4303.87 | I153: 4251.28 | J153: 4508.98 | K153: 4561.57 | L153: 4637.83 | M153: 4485.3 | N153: 4356.45 | O153: 1682750 | P153: 2.24%
A154: 144 | B154: Chemical | C154: NAVINFLUOR | D154: 2022-03-31 | E154: 3860.70 | F154: 3823.22 | G154: 3766.88 | H154: 3673.07 | I154: 3616.73 | J154: 3917.03 | K154: 3973.37 | L154: 4067.18 | M154: 3879.55 | N154: 3729.4 | O154: 422100 | P154: 3.65%
A155: 145 | B155: Others | C155: NBCC | D155: 2022-03-31 | E155: 39.00 | F155: 38.63 | G155: 38.07 | H155: 37.13 | I155: 36.57 | J155: 39.57 | K155: 40.13 | L155: 41.07 | M155: 39.2 | N155: 37.7 | O155: 24540000 | P155: -0.49%
A156: 146 | B156: FMCG | C156: NESTLEIND | D156: 2022-03-31 | E156: 17675.55 | F156: 17603.32 | G156: 17428.68 | H156: 17181.82 | I156: 17007.18 | J156: 17850.18 | K156: 18024.82 | L156: 18271.68 | M156: 17777.95 | N156: 17356.45 | O156: 361900 | P156: 9.43%
A157: 147 | B157: Metals | C157: NMDC | D157: 2022-03-31 | E157: 143.45 | F157: 142.63 | G157: 141.02 | H157: 138.58 | I157: 136.97 | J157: 145.07 | K157: 146.68 | L157: 149.12 | M157: 144.25 | N157: 140.2 | O157: 71629700 | P157: -0.95%
A158: 148 | B158: Power | C158: NTPC | D158: 2022-03-31 | E158: 132.75 | F158: 131.47 | G158: 129.68 | H158: 126.62 | I158: 124.83 | J158: 134.53 | K158: 136.32 | L158: 139.38 | M158: 133.25 | N158: 128.4 | O158: 40749300 | P158: 4.64%
A159: 149 | B159: Realty | C159: OBEROIRLTY | D159: 2022-03-31 | E159: 907.90 | F159: 899.17 | G159: 887.23 | H159: 866.57 | I159: 854.63 | J159: 919.83 | K159: 931.77 | L159: 952.43 | M159: 911.1 | N159: 878.5 | O159: 2120300 | P159: -0.59%
A160: 150 | B160: Technology | C160: OFSS | D160: 2022-03-31 | E160: 3399.70 | F160: 3399.03 | G160: 3362.87 | H160: 3326.03 | I160: 3289.87 | J160: 3435.87 | K160: 3472.03 | L160: 3508.87 | M160: 3435.2 | N160: 3362.2 | O160: 616250 | P160: 3.05%
A161: 151 | B161: Oil_Gas | C161: ONGC | D161: 2022-03-31 | E161: 159.25 | F161: 158.22 | G161: 156.23 | H161: 153.22 | I161: 151.23 | J161: 161.23 | K161: 163.22 | L161: 166.23 | M161: 160.2 | N161: 155.2 | O161: 26549600 | P161: -6.58%
A162: 152 | B162: Textile | C162: PAGEIND | D162: 2022-03-31 | E162: 42231.20 | F162: 41704.60 | G162: 41056.80 | H162: 39882.40 | I162: 39234.60 | J162: 42879.00 | K162: 43526.80 | L162: 44701.20 | M162: 42352.4 | N162: 40530.2 | O162: 94410 | P162: 1.71%
A163: 153 | B163: Pharma | C163: PEL | D163: 2022-03-31 | E163: 2075.55 | F163: 2063.15 | G163: 2032.40 | H163: 1989.25 | I163: 1958.50 | J163: 2106.30 | K163: 2137.05 | L163: 2180.20 | M163: 2093.9 | N163: 2020 | O163: 4709650 | P163: 10.68%
A164: 154 | B164: Technology | C164: PERSISTENT | D164: 2022-03-31 | E164: 3944.40 | F164: 3888.70 | G164: 3815.70 | H164: 3687.00 | I164: 3614.00 | J164: 4017.40 | K164: 4090.40 | L164: 4219.10 | M164: 3961.7 | N164: 3760 | O164: 449100 | P164: 5.94%
A165: 155 | B165: Oil_Gas | C165: PETRONET | D165: 2022-03-31 | E165: 214.95 | F165: 211.13 | G165: 206.12 | H165: 197.28 | I165: 192.27 | J165: 219.97 | K165: 224.98 | L165: 233.82 | M165: 216.15 | N165: 202.3 | O165: 17616000 | P165: -2.81%
A166: 156 | B166: Finance | C166: PFC | D166: 2022-03-31 | E166: 110.10 | F166: 108.25 | G166: 106.25 | H166: 102.40 | I166: 100.40 | J166: 112.10 | K166: 114.10 | L166: 117.95 | M166: 110.25 | N166: 104.4 | O166: 39952800 | P166: -1.44%
A167: 157 | B167: Pharma | C167: PFIZER | D167: 2022-03-31 | E167: 4412.70 | F167: 4384.72 | G167: 4341.68 | H167: 4270.67 | I167: 4227.63 | J167: 4455.73 | K167: 4498.77 | L167: 4569.78 | M167: 4427.75 | N167: 4313.7 | O167: 116375 | P167: -2.82%
A168: 158 | B168: FMCG | C168: PIDILITIND | D168: 2022-03-31 | E168: 2400.30 | F168: 2371.90 | G168: 2338.80 | H168: 2277.30 | I168: 2244.20 | J168: 2433.40 | K168: 2466.50 | L168: 2528.00 | M168: 2405 | N168: 2310.4 | O168: 3050250 | P168: 2.52%
A169: 159 | B169: Chemical | C169: PIIND | D169: 2022-03-31 | E169: 2475.00 | F169: 2469.35 | G169: 2432.35 | H169: 2389.70 | I169: 2352.70 | J169: 2512.00 | K169: 2549.00 | L169: 2591.65 | M169: 2506.35 | N169: 2426.7 | O169: 1894250 | P169: 0.22%
A170: 160 | B170: Banking | C170: PNB | D170: 2022-03-31 | E170: 35.00 | F170: 34.80 | G170: 34.40 | H170: 33.80 | I170: 33.40 | J170: 35.40 | K170: 35.80 | L170: 36.40 | M170: 35.2 | N170: 34.2 | O170: 162384000 | P170: 10.21%
A171: 161 | B171: Others | C171: POLYCAB | D171: 2022-03-31 | E171: 2368.00 | F171: 2341.97 | G171: 2310.88 | H171: 2253.77 | I171: 2222.68 | J171: 2399.08 | K171: 2430.17 | L171: 2487.28 | M171: 2373.05 | N171: 2284.85 | O171: 714600 | P171: 3.88%
A172: 162 | B172: Power | C172: POWERGRID | D172: 2022-03-31 | E172: 207.10 | F172: 203.62 | G172: 199.38 | H172: 191.67 | I172: 187.43 | J172: 211.33 | K172: 215.57 | L172: 223.28 | M172: 207.85 | N172: 195.9 | O172: 23710518 | P172: 2.68%
A173: 163 | B173: Media | C173: PVR | D173: 2022-03-31 | E173: 1637.90 | F173: 1618.52 | G173: 1593.43 | H173: 1548.97 | I173: 1523.88 | J173: 1662.98 | K173: 1688.07 | L173: 1732.53 | M173: 1643.6 | N173: 1574.05 | O173: 2705329 | P173: 12.81%
A174: 164 | B174: Others | C174: RAIN | D174: 2022-03-31 | E174: 184.50 | F174: 180.53 | G174: 175.37 | H174: 166.23 | I174: 161.07 | J174: 189.67 | K174: 194.83 | L174: 203.97 | M174: 185.7 | N174: 171.4 | O174: 6577500 | P174: 1.86%
A175: 165 | B175: Cement | C175: RAMCOCEM | D175: 2022-03-31 | E175: 788.40 | F175: 781.87 | G175: 773.78 | H175: 759.17 | I175: 751.08 | J175: 796.48 | K175: 804.57 | L175: 819.18 | M175: 789.95 | N175: 767.25 | O175: 1493450 | P175: 3.60%
A176: 166 | B176: Banking | C176: RBLBANK | D176: 2022-03-31 | E176: 133.65 | F176: 132.97 | G176: 131.03 | H176: 128.42 | I176: 126.48 | J176: 135.58 | K176: 137.52 | L176: 140.13 | M176: 134.9 | N176: 130.35 | O176: 35820800 | P176: 3.00%
A177: 167 | B177: Power | C177: RECLTD | D177: 2022-03-31 | E177: 122.35 | F177: 121.15 | G177: 119.45 | H177: 116.55 | I177: 114.85 | J177: 124.05 | K177: 125.75 | L177: 128.65 | M177: 122.85 | N177: 118.25 | O177: 29214000 | P177: -1.93%
A178: 168 | B178: Oil_Gas | C178: RELIANCE | D178: 2022-03-31 | E178: 2363.60 | F178: 2323.08 | G178: 2275.52 | H178: 2187.43 | I178: 2139.87 | J178: 2411.17 | K178: 2458.73 | L178: 2546.82 | M178: 2370.65 | N178: 2235 | O178: 32083500 | P178: 0.86%
A179: 169 | B179: Metals | C179: SAIL | D179: 2022-03-31 | E179: 96.10 | F179: 94.05 | G179: 91.60 | H179: 87.10 | I179: 84.65 | J179: 98.55 | K179: 101.00 | L179: 105.50 | M179: 96.5 | N179: 89.55 | O179: 151724500 | P179: 2.03%
A180: 170 | B180: Banking | C180: SBICARD | D180: 2022-03-31 | E180: 787.80 | F180: 781.93 | G180: 773.87 | H180: 759.93 | I180: 751.87 | J180: 795.87 | K180: 803.93 | L180: 817.87 | M180: 790 | N180: 768 | O180: 5303500 | P180: 1.03%
A181: 171 | B181: Finance | C181: SBILIFE | D181: 2022-03-31 | E181: 1061.80 | F181: 1047.62 | G181: 1031.28 | H181: 1000.77 | I181: 984.43 | J181: 1078.13 | K181: 1094.47 | L181: 1124.98 | M181: 1063.95 | N181: 1017.1 | O181: 7999500 | P181: 3.40%
A182: 172 | B182: Banking | C182: SBIN | D182: 2022-03-31 | E182: 483.55 | F182: 480.35 | G182: 476.20 | H182: 468.85 | I182: 464.70 | J182: 487.70 | K182: 491.85 | L182: 499.20 | M182: 484.5 | N182: 473 | O182: 73656000 | P182: 1.28%
A183: 173 | B183: Cement | C183: SHREECEM | D183: 2022-03-31 | E183: 24373.10 | F183: 24126.32 | G183: 23791.68 | H183: 23210.27 | I183: 22875.63 | J183: 24707.73 | K183: 25042.37 | L183: 25623.78 | M183: 24460.95 | N183: 23544.9 | O183: 187325 | P183: 0.92%
A184: 174 | B184: Capital_Goods | C184: SIEMENS | D184: 2022-03-31 | E184: 2353.90 | F184: 2342.65 | G184: 2315.25 | H184: 2276.60 | I184: 2249.20 | J184: 2381.30 | K184: 2408.70 | L184: 2447.35 | M184: 2370.05 | N184: 2304 | O184: 1462175 | P184: 3.56%
A185: 175 | B185: Textile | C185: SRF | D185: 2022-03-31 | E185: 2388.90 | F185: 2383.60 | G185: 2347.40 | H185: 2305.90 | I185: 2269.70 | J185: 2425.10 | K185: 2461.30 | L185: 2502.80 | M185: 2419.8 | N185: 2342.1 | O185: 2963625 | P185: 7.20%
A186: 176 | B186: Finance | C186: SRTRANSFIN | D186: 2022-03-31 | E186: 1115.40 | F186: 1103.78 | G186: 1086.62 | H186: 1057.83 | I186: 1040.67 | J186: 1132.57 | K186: 1149.73 | L186: 1178.52 | M186: 1120.95 | N186: 1075 | O186: 3902800 | P186: 2.18%
A187: 177 | B187: Pharma | C187: STAR | D187: 2022-03-31 | E187: 320.90 | F187: 320.62 | G187: 313.28 | H187: 305.67 | I187: 298.33 | J187: 328.23 | K187: 335.57 | L187: 343.18 | M187: 327.95 | N187: 313 | O187: 4263300 | P187: 3.34%
A188: 178 | B188: Pharma | C188: SUNPHARMA | D188: 2022-03-31 | E188: 844.95 | F188: 838.88 | G188: 830.42 | H188: 815.88 | I188: 807.42 | J188: 853.42 | K188: 861.88 | L188: 876.42 | M188: 847.35 | N188: 824.35 | O188: 23093700 | P188: 4.11%
A189: 179 | B189: Media | C189: SUNTV | D189: 2022-03-31 | E189: 446.80 | F189: 442.78 | G189: 436.47 | H189: 426.13 | I189: 419.82 | J189: 453.12 | K189: 459.43 | L189: 469.77 | M189: 449.1 | N189: 432.45 | O189: 12516000 | P189: 2.27%
A190: 180 | B190: Pharma | C190: SYNGENE | D190: 2022-03-31 | E190: 543.70 | F190: 543.07 | G190: 533.73 | H190: 523.77 | I190: 514.43 | J190: 553.03 | K190: 562.37 | L190: 572.33 | M190: 552.4 | N190: 533.1 | O190: 817700 | P190: 4.57%
A191: 181 | B191: Chemical | C191: TATACHEM | D191: 2022-03-31 | E191: 841.85 | F191: 834.20 | G191: 823.55 | H191: 805.25 | I191: 794.60 | J191: 852.50 | K191: 863.15 | L191: 881.45 | M191: 844.85 | N191: 815.9 | O191: 5967000 | P191: 0.76%
A192: 182 | B192: Telecom | C192: TATACOMM | D192: 2022-03-31 | E192: 1186.35 | F192: 1176.80 | G192: 1161.00 | H192: 1135.65 | I192: 1119.85 | J192: 1202.15 | K192: 1217.95 | L192: 1243.30 | M192: 1192.6 | N192: 1151.45 | O192: 2696000 | P192: 5.02%
A193: 183 | B193: FMCG | C193: TATACONSUM | D193: 2022-03-31 | E193: 718.65 | F193: 711.57 | G193: 702.63 | H193: 686.62 | I193: 677.68 | J193: 727.58 | K193: 736.52 | L193: 752.53 | M193: 720.5 | N193: 695.55 | O193: 11335275 | P193: 0.51%
A194: 184 | B194: Automobile | C194: TATAMOTORS | D194: 2022-03-31 | E194: 455.20 | F194: 452.12 | G194: 445.98 | H194: 436.77 | I194: 430.63 | J194: 461.33 | K194: 467.47 | L194: 476.68 | M194: 458.25 | N194: 442.9 | O194: 68040900 | P194: 3.92%
A195: 185 | B195: Power | C195: TATAPOWER | D195: 2022-03-31 | E195: 223.10 | F195: 220.50 | G195: 217.20 | H195: 211.30 | I195: 208.00 | J195: 226.40 | K195: 229.70 | L195: 235.60 | M195: 223.8 | N195: 214.6 | O195: 102357000 | P195: -0.29%
A196: 186 | B196: Metals | C196: TATASTEEL | D196: 2022-03-31 | E196: 1219.60 | F196: 1191.50 | G196: 1159.05 | H196: 1098.50 | I196: 1066.05 | J196: 1252.05 | K196: 1284.50 | L196: 1345.05 | M196: 1223.95 | N196: 1130.95 | O196: 41443025 | P196: -1.11%
A197: 187 | B197: Technology | C197: TCS | D197: 2022-03-31 | E197: 3560.35 | F197: 3530.25 | G197: 3490.50 | H197: 3420.65 | I197: 3380.90 | J197: 3600.10 | K197: 3639.85 | L197: 3709.70 | M197: 3570 | N197: 3460.4 | O197: 13441500 | P197: 1.34%
A198: 188 | B198: Technology | C198: TECHM | D198: 2022-03-31 | E198: 1409.00 | F198: 1398.00 | G198: 1377.00 | H198: 1345.00 | I198: 1324.00 | J198: 1430.00 | K198: 1451.00 | L198: 1483.00 | M198: 1419 | N198: 1366 | O198: 16055400 | P198: 0.41%
A199: 189 | B199: FMCG | C199: TITAN | D199: 2022-03-31 | E199: 2546.90 | F199: 2516.95 | G199: 2470.95 | H199: 2395.00 | I199: 2349.00 | J199: 2592.90 | K199: 2638.90 | L199: 2714.85 | M199: 2562.95 | N199: 2441 | O199: 5945250 | P199: 0.83%
A200: 190 | B200: Pharma | C200: TORNTPHARM | D200: 2022-03-31 | E200: 2749.75 | F200: 2732.87 | G200: 2703.73 | H200: 2657.72 | I200: 2628.58 | J200: 2778.88 | K200: 2808.02 | L200: 2854.03 | M200: 2762 | N200: 2686.85 | O200: 781750 | P200: 0.90%
A201: 191 | B201: Power | C201: TORNTPOWER | D201: 2022-03-31 | E201: 475.40 | F201: 470.58 | G201: 464.82 | H201: 454.23 | I201: 448.47 | J201: 481.17 | K201: 486.93 | L201: 497.52 | M201: 476.35 | N201: 460 | O201: 3363000 | P201: 1.40%
A202: 192 | B202: Others | C202: TRENT | D202: 2022-03-31 | E202: 1109.00 | F202: 1092.67 | G202: 1069.83 | H202: 1030.67 | I202: 1007.83 | J202: 1131.83 | K202: 1154.67 | L202: 1193.83 | M202: 1115.5 | N202: 1053.5 | O202: 2789075 | P202: 8.80%
A203: 193 | B203: Automobile | C203: TVSMOTOR | D203: 2022-03-31 | E203: 617.30 | F203: 616.12 | G203: 607.53 | H203: 597.77 | I203: 589.18 | J203: 625.88 | K203: 634.47 | L203: 644.23 | M203: 624.7 | N203: 606.35 | O203: 7441000 | P203: -0.34%
A204: 194 | B204: FMCG | C204: UBL | D204: 2022-03-31 | E204: 1504.05 | F204: 1495.67 | G204: 1473.38 | H204: 1442.72 | I204: 1420.43 | J204: 1526.33 | K204: 1548.62 | L204: 1579.28 | M204: 1517.95 | N204: 1465 | O204: 897050 | P204: 6.79%
A205: 195 | B205: Cement | C205: ULTRACEMCO | D205: 2022-03-31 | E205: 6586.35 | F205: 6548.05 | G205: 6484.40 | H205: 6382.45 | I205: 6318.80 | J205: 6650.00 | K205: 6713.65 | L205: 6815.60 | M205: 6611.7 | N205: 6446.1 | O205: 2098000 | P205: 5.76%
A206: 196 | B206: Chemical | C206: UPL | D206: 2022-03-31 | E206: 667.10 | F206: 661.02 | G206: 652.33 | H206: 637.57 | I206: 628.88 | J206: 675.78 | K206: 684.47 | L206: 699.23 | M206: 669.7 | N206: 646.25 | O206: 29867500 | P206: 1.12%
... 20 more rows

Sheet Cash Intra
M5: Back to Main Page
A6: FOR INTRA DAY TRADING | K6: =Main!B10 -> 2022-03-02
A8: Sr.no | C8: CLOSE RATE | D8: Pivot Point | E8: Supports | H8: Resistances
E9: S1 | F9: S2 | G9: S3 | H9: R1 | I9: R2 | J9: R3 | K9: HIGH | L9: LOW | M9: Total Trade Quanity in Lakhs
A10: 1 | B10: Nifty 50 | C10: 16793.9 | D10: 16655.37 | E10: 16494.83 | F10: 16195.77 | G10: 16035.23 | H10: 16954.43 | I10: 17114.97 | J10: 17414.03 | K10: 16815.9 | L10: 16356.3
A11: 2 | B11: Nifty Bank | C11: 36205.3 | D11: 36029.15 | E11: 35788.05 | F11: 35370.80 | G11: 35129.70 | H11: 36446.40 | I11: 36687.50 | J11: 37104.75 | K11: 36270.25 | L11: 35611.9
A12: 3 | B12: Nifty CPSE | C12: 2415.8 | D12: 2387.42 | E12: 2354.63 | F12: 2293.47 | G12: 2260.68 | H12: 2448.58 | I12: 2481.37 | J12: 2542.53 | K12: 2420.2 | L12: 2326.25
A13: 4 | B13: Nifty Infra | C13: 4798.75 | D13: 4746.62 | E13: 4686.08 | F13: 4573.42 | G13: 4512.88 | H13: 4859.28 | I13: 4919.82 | J13: 5032.48 | K13: 4807.15 | L13: 4633.95
A14: 5 | B14: Nifty IT | C14: 33847.85 | D14: 33555.88 | E14: 33150.72 | F14: 32453.58 | G14: 32048.42 | H14: 34253.02 | I14: 34658.18 | J14: 35355.32 | K14: 33961.05 | L14: 32858.75
A15: 6 | B15: Nifty PSE | C15: 3955.3 | D15: 3904.43 | E15: 3844.72 | F15: 3734.13 | G15: 3674.42 | H15: 4015.02 | I15: 4074.73 | J15: 4185.32 | K15: 3964.15 | L15: 3793.85
A16: 7 | B16: Nifty Midcap 50 | C16: 7810.45 | D16: 7738.02 | E16: 7653.93 | F16: 7497.42 | G16: 7413.33 | H16: 7894.53 | I16: 7978.62 | J16: 8135.13 | K16: 7822.1 | L16: 7581.5
A17: 8 | B17: ACC | C17: 2089.15 | D17: 2068.17 | E17: 2041.33 | F17: 1993.52 | G17: 1966.68 | H17: 2115.98 | I17: 2142.82 | J17: 2190.63 | K17: 2095 | L17: 2020.35 | M17: 3.49612
A18: 9 | B18: AUBANK | C18: 1203.6 | D18: 1206.47 | E18: 1182.93 | F18: 1162.27 | G18: 1138.73 | H18: 1227.13 | I18: 1250.67 | J18: 1271.33 | K18: 1230 | L18: 1185.8 | M18: 11.18005
A19: 10 | B19: AARTIIND | C19: 926.15 | D19: 922.42 | E19: 914.93 | F19: 903.72 | G19: 896.23 | H19: 933.63 | I19: 941.12 | J19: 952.33 | K19: 929.9 | L19: 911.2 | M19: 5.59306
A20: 11 | B20: ADANIENT | C20: 1644.45 | D20: 1629.27 | E20: 1607.43 | F20: 1570.42 | G20: 1548.58 | H20: 1666.28 | I20: 1688.12 | J20: 1725.13 | K20: 1651.1 | L20: 1592.25 | M20: 18.69037
A21: 12 | B21: ADANIGREEN | C21: 1843.4 | D21: 1866.13 | E21: 1808.27 | F21: 1773.13 | G21: 1715.27 | H21: 1901.27 | I21: 1959.13 | J21: 1994.27 | K21: 1924 | L21: 1831 | M21: 18.99148
A22: 13 | B22: ADANIPORTS | C22: 707.5 | D22: 700.55 | E22: 691.45 | F22: 675.40 | G22: 666.30 | H22: 716.60 | I22: 725.70 | J22: 741.75 | K22: 709.65 | L22: 684.5 | M22: 42.88186
A23: 14 | B23: ATGL | C23: 1588.5 | D23: 1567.92 | E23: 1530.88 | F23: 1473.27 | G23: 1436.23 | H23: 1625.53 | I23: 1662.57 | J23: 1720.18 | K23: 1604.95 | L23: 1510.3 | M23: 3.05348
A24: 15 | B24: ADANITRANS | C24: 2134.4 | D24: 2086.28 | E24: 2038.12 | F24: 1941.83 | G24: 1893.67 | H24: 2182.57 | I24: 2230.73 | J24: 2327.02 | K24: 2134.45 | L24: 1990 | M24: 4.86895
A25: 16 | B25: ABCAPITAL | C25: 105.55 | D25: 104.33 | E25: 102.42 | F25: 99.28 | G25: 97.37 | H25: 107.47 | I25: 109.38 | J25: 112.52 | K25: 106.25 | L25: 101.2 | M25: 34.22266
A26: 17 | B26: ABFRL | C26: 268.4 | D26: 266.78 | E26: 261.62 | F26: 254.83 | G26: 249.67 | H26: 273.57 | I26: 278.73 | J26: 285.52 | K26: 271.95 | L26: 260 | M26: 38.53921
A27: 18 | B27: AJANTPHARM | C27: 1722.1 | D27: 1723.75 | E27: 1692.50 | F27: 1662.90 | G27: 1631.65 | H27: 1753.35 | I27: 1784.60 | J27: 1814.20 | K27: 1755 | L27: 1694.15 | M27: 1.99561
A28: 19 | B28: APLLTD | C28: 725.3 | D28: 725.90 | E28: 717.90 | F28: 710.50 | G28: 702.50 | H28: 733.30 | I28: 741.30 | J28: 748.70 | K28: 733.9 | L28: 718.5 | M28: 3.31395
A29: 20 | B29: ALKEM | C29: 3277.95 | D29: 3261.25 | E29: 3216.70 | F29: 3155.45 | G29: 3110.90 | H29: 3322.50 | I29: 3367.05 | J29: 3428.30 | K29: 3305.8 | L29: 3200 | M29: 0.33559
A30: 21 | B30: AMARAJABAT | C30: 560.85 | D30: 555.08 | E30: 547.92 | F30: 534.98 | G30: 527.82 | H30: 568.02 | I30: 575.18 | J30: 588.12 | K30: 562.25 | L30: 542.15 | M30: 7.34382
A31: 22 | B31: AMBUJACEM | C31: 314.25 | D31: 311.05 | E31: 306.15 | F31: 298.05 | G31: 293.15 | H31: 319.15 | I31: 324.05 | J31: 332.15 | K31: 315.95 | L31: 302.95 | M31: 71.16898
A32: 23 | B32: APOLLOHOSP | C32: 4802.8 | D32: 4733.33 | E32: 4640.67 | F32: 4478.53 | G32: 4385.87 | H32: 4895.47 | I32: 4988.13 | J32: 5150.27 | K32: 4826 | L32: 4571.2 | M32: 16.17666
A33: 24 | B33: APOLLOTYRE | C33: 184.7 | D33: 183.43 | E33: 179.97 | F33: 175.23 | G33: 171.77 | H33: 188.17 | I33: 191.63 | J33: 196.37 | K33: 186.9 | L33: 178.7 | M33: 64.56344
A34: 25 | B34: ASHOKLEY | C34: 118.65 | D34: 117.93 | E34: 116.07 | F34: 113.48 | G34: 111.62 | H34: 120.52 | I34: 122.38 | J34: 124.97 | K34: 119.8 | L34: 115.35 | M34: 168.41931
A35: 26 | B35: ASIANPAINT | C35: 3174.65 | D35: 3126.72 | E35: 3062.93 | F35: 2951.22 | G35: 2887.43 | H35: 3238.43 | I35: 3302.22 | J35: 3413.93 | K35: 3190.5 | L35: 3015 | M35: 16.78348
A36: 27 | B36: ASTRAL | C36: 1941.75 | D36: 1915.55 | E36: 1882.20 | F36: 1822.65 | G36: 1789.30 | H36: 1975.10 | I36: 2008.45 | J36: 2068.00 | K36: 1948.9 | L36: 1856 | M36: 4.04752
A37: 28 | B37: AUROPHARMA | C37: 625.25 | D37: 621.17 | E37: 614.38 | F37: 603.52 | G37: 596.73 | H37: 632.03 | I37: 638.82 | J37: 649.68 | K37: 627.95 | L37: 610.3 | M37: 17.61801
A38: 29 | B38: DMART | C38: 4340.35 | D38: 4252.48 | E38: 4149.97 | F38: 3959.58 | G38: 3857.07 | H38: 4442.87 | I38: 4545.38 | J38: 4735.77 | K38: 4355 | L38: 4062.1 | M38: 6.47569
A39: 30 | B39: AXISBANK | C39: 742.4 | D39: 742.83 | E39: 735.77 | F39: 729.13 | G39: 722.07 | H39: 749.47 | I39: 756.53 | J39: 763.17 | K39: 749.9 | L39: 736.2 | M39: 144.63418
A40: 31 | B40: BAJAJ-AUTO | C40: 3530.35 | D40: 3513.13 | E40: 3465.27 | F40: 3400.18 | G40: 3352.32 | H40: 3578.22 | I40: 3626.08 | J40: 3691.17 | K40: 3561 | L40: 3448.05 | M40: 3.8704
A41: 32 | B41: BAJFINANCE | C41: 7002.3 | D41: 6944.63 | E41: 6864.27 | F41: 6726.23 | G41: 6645.87 | H41: 7082.67 | I41: 7163.03 | J41: 7301.07 | K41: 7025 | L41: 6806.6 | M41: 15.80891
A42: 33 | B42: BAJAJFINSV | C42: 16012.55 | D42: 15820.80 | E42: 15556.75 | F42: 15100.95 | G42: 14836.90 | H42: 16276.60 | I42: 16540.65 | J42: 16996.45 | K42: 16084.85 | L42: 15365 | M42: 3.73257
A43: 34 | B43: BAJAJHLDNG | C43: 5202.4 | D43: 5189.10 | E43: 5153.30 | F43: 5104.20 | G43: 5068.40 | H43: 5238.20 | I43: 5274.00 | J43: 5323.10 | K43: 5224.9 | L43: 5140 | M43: 0.1475
A44: 35 | B44: BALKRISIND | C44: 1822.55 | D44: 1798.35 | E44: 1767.20 | F44: 1711.85 | G44: 1680.70 | H44: 1853.70 | I44: 1884.85 | J44: 1940.20 | K44: 1829.5 | L44: 1743 | M44: 3.79707
A45: 36 | B45: BANDHANBNK | C45: 306.3 | D45: 304.35 | E45: 301.45 | F45: 296.60 | G45: 293.70 | H45: 309.20 | I45: 312.10 | J45: 316.95 | K45: 307.25 | L45: 299.5 | M45: 48.38277
A46: 37 | B46: BANKBARODA | C46: 106.55 | D46: 106.22 | E46: 104.43 | F46: 102.32 | G46: 100.53 | H46: 108.33 | I46: 110.12 | J46: 112.23 | K46: 108 | L46: 104.1 | M46: 412.83452
A47: 38 | B47: BANKINDIA | C47: 46.85 | D47: 46.62 | E47: 46.03 | F47: 45.22 | G47: 44.63 | H47: 47.43 | I47: 48.02 | J47: 48.83 | K47: 47.2 | L47: 45.8 | M47: 53.3752
A48: 39 | B48: BATAINDIA | C48: 1813.5 | D48: 1800.53 | E48: 1780.12 | F48: 1746.73 | G48: 1726.32 | H48: 1833.92 | I48: 1854.33 | J48: 1887.72 | K48: 1820.95 | L48: 1767.15 | M48: 6.23785
A49: 40 | B49: BERGEPAINT | C49: 690.45 | D49: 676.55 | E49: 654.90 | F49: 619.35 | G49: 597.70 | H49: 712.10 | I49: 733.75 | J49: 769.30 | K49: 698.2 | L49: 641 | M49: 23.46348
A50: 41 | B50: BEL | C50: 210.45 | D50: 206.05 | E50: 200.60 | F50: 190.75 | G50: 185.30 | H50: 215.90 | I50: 221.35 | J50: 231.20 | K50: 211.5 | L50: 196.2 | M50: 118.62563
A51: 42 | B51: BHARATFORG | C51: 678.65 | D51: 671.07 | E51: 660.13 | F51: 641.62 | G51: 630.68 | H51: 689.58 | I51: 700.52 | J51: 719.03 | K51: 682 | L51: 652.55 | M51: 19.62564
A52: 43 | B52: BHEL | C52: 49.85 | D52: 49.00 | E52: 47.85 | F52: 45.85 | G52: 44.70 | H52: 51.00 | I52: 52.15 | J52: 54.15 | K52: 50.15 | L52: 47 | M52: 415.19924
A53: 44 | B53: BPCL | C53: 349.8 | D53: 344.37 | E53: 337.43 | F53: 325.07 | G53: 318.13 | H53: 356.73 | I53: 363.67 | J53: 376.03 | K53: 351.3 | L53: 332 | M53: 95.73141
A54: 45 | B54: BHARTIARTL | C54: 686.5 | D54: 680.98 | E54: 671.97 | F54: 657.43 | G54: 648.42 | H54: 695.52 | I54: 704.53 | J54: 719.07 | K54: 690 | L54: 666.45 | M54: 83.01523
A55: 46 | B55: BIOCON | C55: 348.85 | D55: 363.58 | E55: 332.27 | F55: 315.68 | G55: 284.37 | H55: 380.17 | I55: 411.48 | J55: 428.07 | K55: 394.9 | L55: 347 | M55: 158.09887
A56: 47 | B56: BOSCHLTD | C56: 15748.8 | D56: 15573.08 | E56: 15346.17 | F56: 14943.53 | G56: 14716.62 | H56: 15975.72 | I56: 16202.63 | J56: 16605.27 | K56: 15800 | L56: 15170.45 | M56: 0.23677
A57: 48 | B57: BRITANNIA | C57: 3427.45 | D57: 3398.27 | E57: 3356.53 | F57: 3285.62 | G57: 3243.88 | H57: 3469.18 | I57: 3510.92 | J57: 3581.83 | K57: 3440 | L57: 3327.35 | M57: 4.26929
A58: 49 | B58: CADILAHC | C58: 360.4 | D58: 356.88 | E58: 352.77 | F58: 345.13 | G58: 341.02 | H58: 364.52 | I58: 368.63 | J58: 376.27 | K58: 361 | L58: 349.25 | M58: 9.41141
A59: 50 | B59: CANBK | C59: 219.6 | D59: 218.22 | E59: 215.73 | F59: 211.87 | G59: 209.38 | H59: 222.08 | I59: 224.57 | J59: 228.43 | K59: 220.7 | L59: 214.35 | M59: 122.54727
A60: 51 | B60: CASTROLIND | C60: 108 | D60: 107.22 | E60: 106.08 | F60: 104.17 | G60: 103.03 | H60: 109.13 | I60: 110.27 | J60: 112.18 | K60: 108.35 | L60: 105.3 | M60: 9.77371
A61: 52 | B61: CHOLAFIN | C61: 690.95 | D61: 683.98 | E61: 674.97 | F61: 658.98 | G61: 649.97 | H61: 699.97 | I61: 708.98 | J61: 724.97 | K61: 693 | L61: 668 | M61: 22.17246
A62: 53 | B62: CIPLA | C62: 925.05 | D62: 922.00 | E62: 914.05 | F62: 903.05 | G62: 895.10 | H62: 933.00 | I62: 940.95 | J62: 951.95 | K62: 929.95 | L62: 911 | M62: 15.34018
A63: 54 | B63: CUB | C63: 125.15 | D63: 124.45 | E63: 123.40 | F63: 121.65 | G63: 120.60 | H63: 126.20 | I63: 127.25 | J63: 129.00 | K63: 125.5 | L63: 122.7 | M63: 11.73741
A64: 55 | B64: COALINDIA | C64: 169.55 | D64: 166.68 | E64: 163.42 | F64: 157.28 | G64: 154.02 | H64: 172.82 | I64: 176.08 | J64: 182.22 | K64: 169.95 | L64: 160.55 | M64: 208.72239
A65: 56 | B65: COFORGE | C65: 4535.5 | D65: 4488.90 | E65: 4416.60 | F65: 4297.70 | G65: 4225.40 | H65: 4607.80 | I65: 4680.10 | J65: 4799.00 | K65: 4561.2 | L65: 4370 | M65: 2.94206
A66: 57 | B66: COLPAL | C66: 1450.4 | D66: 1434.43 | E66: 1413.97 | F66: 1377.53 | G66: 1357.07 | H66: 1470.87 | I66: 1491.33 | J66: 1527.77 | K66: 1454.9 | L66: 1398 | M66: 7.85968
A67: 58 | B67: CONCOR | C67: 599.2 | D67: 590.15 | E67: 579.15 | F67: 559.10 | G67: 548.10 | H67: 610.20 | I67: 621.20 | J67: 641.25 | K67: 601.15 | L67: 570.1 | M67: 12.42329
A68: 59 | B68: COROMANDEL | C68: 773.9 | D68: 765.65 | E68: 755.65 | F68: 737.40 | G68: 727.40 | H68: 783.90 | I68: 793.90 | J68: 812.15 | K68: 775.65 | L68: 747.4 | M68: 2.71221
A69: 60 | B69: CROMPTON | C69: 428.5 | D69: 423.43 | E69: 416.12 | F69: 403.73 | G69: 396.42 | H69: 435.82 | I69: 443.13 | J69: 455.52 | K69: 430.75 | L69: 411.05 | M69: 26.65823
A70: 61 | B70: CUMMINSIND | C70: 957.25 | D70: 951.00 | E70: 942.45 | F70: 927.65 | G70: 919.10 | H70: 965.80 | I70: 974.35 | J70: 989.15 | K70: 959.55 | L70: 936.2 | M70: 1.99733
A71: 62 | B71: DLF | C71: 350.75 | D71: 347.75 | E71: 343.10 | F71: 335.45 | G71: 330.80 | H71: 355.40 | I71: 360.05 | J71: 367.70 | K71: 352.4 | L71: 340.1 | M71: 88.50697
A72: 63 | B72: DABUR | C72: 563.35 | D72: 553.47 | E72: 536.83 | F72: 510.32 | G72: 493.68 | H72: 579.98 | I72: 596.62 | J72: 623.13 | K72: 570.1 | L72: 526.95 | M72: 79.9299
A73: 64 | B73: DALBHARAT | C73: 1567 | D73: 1552.72 | E73: 1507.43 | F73: 1447.87 | G73: 1402.58 | H73: 1612.28 | I73: 1657.57 | J73: 1717.13 | K73: 1598 | L73: 1493.15 | M73: 4.62614
A74: 65 | B74: DEEPAKNTR | C74: 1999.05 | D74: 1987.87 | E74: 1956.73 | F74: 1914.42 | G74: 1883.28 | H74: 2030.18 | I74: 2061.32 | J74: 2103.63 | K74: 2019 | L74: 1945.55 | M74: 8.64642
A75: 66 | B75: DHANI | C75: 78.6 | D75: 77.12 | E75: 73.13 | F75: 67.67 | G75: 63.68 | H75: 82.58 | I75: 86.57 | J75: 92.03 | K75: 81.1 | L75: 71.65 | M75: 152.27783
A76: 67 | B76: DIVISLAB | C76: 4265 | D76: 4209.37 | E76: 4134.33 | F76: 4003.67 | G76: 3928.63 | H76: 4340.03 | I76: 4415.07 | J76: 4545.73 | K76: 4284.4 | L76: 4078.7 | M76: 6.1167
A77: 68 | B77: DIXON | C77: 4318.25 | D77: 4303.83 | E77: 4256.67 | F77: 4195.08 | G77: 4147.92 | H77: 4365.42 | I77: 4412.58 | J77: 4474.17 | K77: 4351 | L77: 4242.25 | M77: 3.45385
A78: 69 | B78: LALPATHLAB | C78: 2516.25 | D78: 2508.02 | E78: 2491.03 | F78: 2465.82 | G78: 2448.83 | H78: 2533.23 | I78: 2550.22 | J78: 2575.43 | K78: 2525 | L78: 2482.8 | M78: 2.59616
A79: 70 | B79: DRREDDY | C79: 4063.4 | D79: 4088.63 | E79: 4027.27 | F79: 3991.13 | G79: 3929.77 | H79: 4124.77 | I79: 4186.13 | J79: 4222.27 | K79: 4150 | L79: 4052.5 | M79: 9.8285
A80: 71 | B80: EICHERMOT | C80: 2589.8 | D80: 2582.50 | E80: 2550.05 | F80: 2510.30 | G80: 2477.85 | H80: 2622.25 | I80: 2654.70 | J80: 2694.45 | K80: 2614.95 | L80: 2542.75 | M80: 8.15191
A81: 72 | B81: EMAMILTD | C81: 495.35 | D81: 494.83 | E81: 488.52 | F81: 481.68 | G81: 475.37 | H81: 501.67 | I81: 507.98 | J81: 514.82 | K81: 501.15 | L81: 488 | M81: 6.63928
A82: 73 | B82: ENDURANCE | C82: 1318.25 | D82: 1315.42 | E82: 1277.83 | F82: 1237.42 | G82: 1199.83 | H82: 1355.83 | I82: 1393.42 | J82: 1433.83 | K82: 1353 | L82: 1275 | M82: 3.08446
A83: 74 | B83: ESCORTS | C83: 1850.95 | D83: 1844.32 | E83: 1831.73 | F83: 1812.52 | G83: 1799.93 | H83: 1863.53 | I83: 1876.12 | J83: 1895.33 | K83: 1856.9 | L83: 1825.1 | M83: 11.92549
A84: 75 | B84: EXIDEIND | C84: 149.05 | D84: 148.45 | E84: 147.15 | F84: 145.25 | G84: 143.95 | H84: 150.35 | I84: 151.65 | J84: 153.55 | K84: 149.75 | L84: 146.55 | M84: 18.21075
A85: 76 | B85: FEDERALBNK | C85: 97 | D85: 96.43 | E85: 95.57 | F85: 94.13 | G85: 93.27 | H85: 97.87 | I85: 98.73 | J85: 100.17 | K85: 97.3 | L85: 95 | M85: 144.55709
A86: 77 | B86: FORTIS | C86: 245.5 | D86: 244.57 | E86: 240.63 | F86: 235.77 | G86: 231.83 | H86: 249.43 | I86: 253.37 | J86: 258.23 | K86: 248.5 | L86: 239.7 | M86: 13.6518
A87: 78 | B87: GAIL | C87: 144.85 | D87: 141.82 | E87: 136.88 | F87: 128.92 | G87: 123.98 | H87: 149.78 | I87: 154.72 | J87: 162.68 | K87: 146.75 | L87: 133.85 | M87: 279.19955
A88: 79 | B88: GMRINFRA | C88: 37.9 | D88: 37.43 | E88: 36.67 | F88: 35.43 | G88: 34.67 | H88: 38.67 | I88: 39.43 | J88: 40.67 | K88: 38.2 | L88: 36.2 | M88: 132.14229
A89: 80 | B89: GLAND | C89: 3263.2 | D89: 3264.90 | E89: 3217.80 | F89: 3172.40 | G89: 3125.30 | H89: 3310.30 | I89: 3357.40 | J89: 3402.80 | K89: 3312 | L89: 3219.5 | M89: 1.48185
A90: 81 | B90: GLENMARK | C90: 448.5 | D90: 443.95 | E90: 437.75 | F90: 427.00 | G90: 420.80 | H90: 454.70 | I90: 460.90 | J90: 471.65 | K90: 450.15 | L90: 433.2 | M90: 9.04166
A91: 82 | B91: GODREJCP | C91: 767.95 | D91: 762.67 | E91: 747.33 | F91: 726.72 | G91: 711.38 | H91: 783.28 | I91: 798.62 | J91: 819.23 | K91: 778 | L91: 742.05 | M91: 26.44457
A92: 83 | B92: GODREJIND | C92: 519.35 | D92: 524.12 | E92: 513.23 | F92: 507.12 | G92: 496.23 | H92: 530.23 | I92: 541.12 | J92: 547.23 | K92: 535 | L92: 518 | M92: 0.70703
A93: 84 | B93: GODREJPROP | C93: 1502.15 | D93: 1481.62 | E93: 1452.53 | F93: 1402.92 | G93: 1373.83 | H93: 1531.23 | I93: 1560.32 | J93: 1609.93 | K93: 1510.7 | L93: 1432 | M93: 14.40261
A94: 85 | B94: GRASIM | C94: 1598.5 | D94: 1580.45 | E94: 1556.50 | F94: 1514.50 | G94: 1490.55 | H94: 1622.45 | I94: 1646.40 | J94: 1688.40 | K94: 1604.4 | L94: 1538.45 | M94: 12.12286
A95: 86 | B95: GUJGASLTD | C95: 583.55 | D95: 585.52 | E95: 576.53 | F95: 569.52 | G95: 560.53 | H95: 592.53 | I95: 601.52 | J95: 608.53 | K95: 594.5 | L95: 578.5 | M95: 19.63284
A96: 87 | B96: GSPL | C96: 289.5 | D96: 286.07 | E96: 278.13 | F96: 266.77 | G96: 258.83 | H96: 297.43 | I96: 305.37 | J96: 316.73 | K96: 294 | L96: 274.7 | M96: 16.67359
A97: 88 | B97: HCLTECH | C97: 1126.95 | D97: 1122.42 | E97: 1111.53 | F97: 1096.12 | G97: 1085.23 | H97: 1137.83 | I97: 1148.72 | J97: 1164.13 | K97: 1133.3 | L97: 1107 | M97: 45.71884
A98: 89 | B98: HDFCAMC | C98: 2086.2 | D98: 2077.53 | E98: 2038.67 | F98: 1991.13 | G98: 1952.27 | H98: 2125.07 | I98: 2163.93 | J98: 2211.47 | K98: 2116.4 | L98: 2030 | M98: 2.7855
A99: 90 | B99: HDFCBANK | C99: 1426.25 | D99: 1426.28 | E99: 1414.02 | F99: 1401.78 | G99: 1389.52 | H99: 1438.52 | I99: 1450.78 | J99: 1463.02 | K99: 1438.55 | L99: 1414.05 | M99: 124.40416
A100: 91 | B100: HDFCLIFE | C100: 523.2 | D100: 525.32 | E100: 518.13 | F100: 513.07 | G100: 505.88 | H100: 530.38 | I100: 537.57 | J100: 542.63 | K100: 532.5 | L100: 520.25 | M100: 106.6956
A101: 92 | B101: HAVELLS | C101: 1185.7 | D101: 1165.45 | E101: 1139.10 | F101: 1092.50 | G101: 1066.15 | H101: 1212.05 | I101: 1238.40 | J101: 1285.00 | K101: 1191.8 | L101: 1118.85 | M101: 18.13314
A102: 93 | B102: HEROMOTOCO | C102: 2535.45 | D102: 2523.82 | E102: 2500.68 | F102: 2465.92 | G102: 2442.78 | H102: 2558.58 | I102: 2581.72 | J102: 2616.48 | K102: 2546.95 | L102: 2489.05 | M102: 10.0862
A103: 94 | B103: HINDALCO | C103: 573.75 | D103: 561.87 | E103: 543.68 | F103: 513.62 | G103: 495.43 | H103: 591.93 | I103: 610.12 | J103: 640.18 | K103: 580.05 | L103: 531.8 | M103: 352.12827
A104: 95 | B104: HAL | C104: 1387.75 | D104: 1355.35 | E104: 1317.55 | F104: 1247.35 | G104: 1209.55 | H104: 1425.55 | I104: 1463.35 | J104: 1533.55 | K104: 1393.15 | L104: 1285.15 | M104: 7.44337
A105: 96 | B105: HINDCOPPER | C105: 117.65 | D105: 115.88 | E105: 113.62 | F105: 109.58 | G105: 107.32 | H105: 119.92 | I105: 122.18 | J105: 126.22 | K105: 118.15 | L105: 111.85 | M105: 72.00101
A106: 97 | B106: HINDPETRO | C106: 273.25 | D106: 270.30 | E106: 266.00 | F106: 258.75 | G106: 254.45 | H106: 277.55 | I106: 281.85 | J106: 289.10 | K106: 274.6 | L106: 263.05 | M106: 36.93777
A107: 98 | B107: HINDUNILVR | C107: 2172.1 | D107: 2157.33 | E107: 2134.77 | F107: 2097.43 | G107: 2074.87 | H107: 2194.67 | I107: 2217.23 | J107: 2254.57 | K107: 2179.9 | L107: 2120 | M107: 23.34036
A108: 99 | B108: HINDZINC | C108: 311.95 | D108: 310.82 | E108: 307.13 | F108: 302.32 | G108: 298.63 | H108: 315.63 | I108: 319.32 | J108: 324.13 | K108: 314.5 | L108: 306 | M108: 4.71318
A109: 100 | B109: HDFC | C109: 2364.5 | D109: 2366.77 | E109: 2330.73 | F109: 2296.97 | G109: 2260.93 | H109: 2400.53 | I109: 2436.57 | J109: 2470.33 | K109: 2402.8 | L109: 2333 | M109: 83.6663
A110: 101 | B110: ICICIBANK | C110: 742.7 | D110: 734.28 | E110: 723.82 | F110: 704.93 | G110: 694.47 | H110: 753.17 | I110: 763.63 | J110: 782.52 | K110: 744.75 | L110: 715.4 | M110: 205.47432
A111: 102 | B111: ICICIGI | C111: 1263.8 | D111: 1254.52 | E111: 1235.23 | F111: 1206.67 | G111: 1187.38 | H111: 1283.08 | I111: 1302.37 | J111: 1330.93 | K111: 1273.8 | L111: 1225.95 | M111: 13.41945
A112: 103 | B112: ICICIPRULI | C112: 479.15 | D112: 473.83 | E112: 467.07 | F112: 454.98 | G112: 448.22 | H112: 485.92 | I112: 492.68 | J112: 504.77 | K112: 480.6 | L112: 461.75 | M112: 13.70338
A113: 104 | B113: ISEC | C113: 665.95 | D113: 657.67 | E113: 641.43 | F113: 616.92 | G113: 600.68 | H113: 682.18 | I113: 698.42 | J113: 722.93 | K113: 673.9 | L113: 633.15 | M113: 3.47684
A114: 105 | B114: IDFCFIRSTB | C114: 42.1 | D114: 41.93 | E114: 41.27 | F114: 40.43 | G114: 39.77 | H114: 42.77 | I114: 43.43 | J114: 44.27 | K114: 42.6 | L114: 41.1 | M114: 333.37507
A115: 106 | B115: ITC | C115: 215.85 | D115: 214.37 | E115: 212.28 | F115: 208.72 | G115: 206.63 | H115: 217.93 | I115: 220.02 | J115: 223.58 | K115: 216.45 | L115: 210.8 | M115: 200.34633
A116: 107 | B116: INDIAMART | C116: 4774.05 | D116: 4787.72 | E116: 4726.43 | F116: 4678.82 | G116: 4617.53 | H116: 4835.33 | I116: 4896.62 | J116: 4944.23 | K116: 4849 | L116: 4740.1 | M116: 1.23299
A117: 108 | B117: INDIANB | C117: 143.15 | D117: 142.38 | E117: 140.77 | F117: 138.38 | G117: 136.77 | H117: 144.77 | I117: 146.38 | J117: 148.77 | K117: 144 | L117: 140 | M117: 24.70777
A118: 109 | B118: INDHOTEL | C118: 199.45 | D118: 199.08 | E118: 196.37 | F118: 193.28 | G118: 190.57 | H118: 202.17 | I118: 204.88 | J118: 207.97 | K118: 201.8 | L118: 196 | M118: 64.32432
A119: 110 | B119: IOC | C119: 115 | D119: 113.93 | E119: 111.67 | F119: 108.33 | G119: 106.07 | H119: 117.27 | I119: 119.53 | J119: 122.87 | K119: 116.2 | L119: 110.6 | M119: 165.21199
A120: 111 | B120: IRCTC | C120: 809.35 | D120: 800.52 | E120: 789.03 | F120: 768.72 | G120: 757.23 | H120: 820.83 | I120: 832.32 | J120: 852.63 | K120: 812 | L120: 780.2 | M120: 46.54745
A121: 112 | B121: IRFC | C121: 21.6 | D121: 21.48 | E121: 21.32 | F121: 21.03 | G121: 20.87 | H121: 21.77 | I121: 21.93 | J121: 22.22 | K121: 21.65 | L121: 21.2 | M121: 37.19485
A122: 113 | B122: IGL | C122: 346.85 | D122: 344.03 | E122: 338.42 | F122: 329.98 | G122: 324.37 | H122: 352.47 | I122: 358.08 | J122: 366.52 | K122: 349.65 | L122: 335.6 | M122: 45.54191
A123: 114 | B123: INDUSTOWER | C123: 215.1 | D123: 214.15 | E123: 210.05 | F123: 205.00 | G123: 200.90 | H123: 219.20 | I123: 223.30 | J123: 228.35 | K123: 218.25 | L123: 209.1 | M123: 130.23885
A124: 115 | B124: INDUSINDBK | C124: 920.7 | D124: 916.17 | E124: 907.53 | F124: 894.37 | G124: 885.73 | H124: 929.33 | I124: 937.97 | J124: 951.13 | K124: 924.8 | L124: 903 | M124: 32.99912
A125: 116 | B125: NAUKRI | C125: 4454.3 | D125: 4429.65 | E125: 4369.85 | F125: 4285.40 | G125: 4225.60 | H125: 4514.10 | I125: 4573.90 | J125: 4658.35 | K125: 4489.45 | L125: 4345.2 | M125: 4.55842
A126: 117 | B126: INFY | C126: 1715.6 | D126: 1702.88 | E126: 1677.72 | F126: 1639.83 | G126: 1614.67 | H126: 1740.77 | I126: 1765.93 | J126: 1803.82 | K126: 1728.05 | L126: 1665 | M126: 150.76542
A127: 118 | B127: INDIGO | C127: 1874.9 | D127: 1869.63 | E127: 1845.27 | F127: 1815.63 | G127: 1791.27 | H127: 1899.27 | I127: 1923.63 | J127: 1953.27 | K127: 1894 | L127: 1840 | M127: 15.86689
A128: 119 | B128: IPCALAB | C128: 981.35 | D128: 974.45 | E128: 961.90 | F128: 942.45 | G128: 929.90 | H128: 993.90 | I128: 1006.45 | J128: 1025.90 | K128: 987 | L128: 955 | M128: 4.13836
A129: 120 | B129: JSWENERGY | C129: 340.2 | D129: 334.40 | E129: 326.80 | F129: 313.40 | G129: 305.80 | H129: 347.80 | I129: 355.40 | J129: 368.80 | K129: 342 | L129: 321 | M129: 4.93811
A130: 121 | B130: JSWSTEEL | C130: 627.45 | D130: 615.82 | E130: 601.83 | F130: 576.22 | G130: 562.23 | H130: 641.43 | I130: 655.42 | J130: 681.03 | K130: 629.8 | L130: 590.2 | M130: 71.42843
A131: 122 | B131: JINDALSTEL | C131: 424.85 | D131: 414.45 | E131: 402.50 | F131: 380.15 | G131: 368.20 | H131: 436.80 | I131: 448.75 | J131: 471.10 | K131: 426.4 | L131: 392.1 | M131: 122.06595
A132: 123 | B132: JUBLFOOD | C132: 2910.5 | D132: 2900.30 | E132: 2875.65 | F132: 2840.80 | G132: 2816.15 | H132: 2935.15 | I132: 2959.80 | J132: 2994.65 | K132: 2924.95 | L132: 2865.45 | M132: 5.65161
A133: 124 | B133: KOTAKBANK | C133: 1842.75 | D133: 1836.48 | E133: 1820.97 | F133: 1799.18 | G133: 1783.67 | H133: 1858.27 | I133: 1873.78 | J133: 1895.57 | K133: 1852 | L133: 1814.7 | M133: 27.12562
A134: 125 | B134: L&TFH | C134: 65.95 | D134: 65.47 | E134: 64.73 | F134: 63.52 | G134: 62.78 | H134: 66.68 | I134: 67.42 | J134: 68.63 | K134: 66.2 | L134: 64.25 | M134: 45.69424
A135: 126 | B135: LTTS | C135: 4532.05 | D135: 4465.67 | E135: 4372.93 | F135: 4213.82 | G135: 4121.08 | H135: 4624.78 | I135: 4717.52 | J135: 4876.63 | K135: 4558.4 | L135: 4306.55 | M135: 3.01038
A136: 127 | B136: LICHSGFIN | C136: 343.05 | D136: 339.70 | E136: 334.90 | F136: 326.75 | G136: 321.95 | H136: 347.85 | I136: 352.65 | J136: 360.80 | K136: 344.5 | L136: 331.55 | M136: 31.58189
A137: 128 | B137: LTI | C137: 5849.8 | D137: 5768.93 | E137: 5670.87 | F137: 5491.93 | G137: 5393.87 | H137: 5947.87 | I137: 6045.93 | J137: 6224.87 | K137: 5867 | L137: 5590 | M137: 2.77884
A138: 129 | B138: LT | C138: 1816.75 | D138: 1797.27 | E138: 1772.28 | F138: 1727.82 | G138: 1702.83 | H138: 1841.73 | I138: 1866.72 | J138: 1911.18 | K138: 1822.25 | L138: 1752.8 | M138: 25.53662
A139: 130 | B139: LAURUSLABS | C139: 541.55 | D139: 536.15 | E139: 528.50 | F139: 515.45 | G139: 507.80 | H139: 549.20 | I139: 556.85 | J139: 569.90 | K139: 543.8 | L139: 523.1 | M139: 19.99336
A140: 131 | B140: LUPIN | C140: 745.85 | D140: 741.13 | E140: 733.62 | F140: 721.38 | G140: 713.87 | H140: 753.37 | I140: 760.88 | J140: 773.12 | K140: 748.65 | L140: 728.9 | M140: 12.45957
A141: 132 | B141: MRF | C141: 65740.95 | D141: 65480.32 | E141: 64710.63 | F141: 63680.32 | G141: 62910.63 | H141: 66510.63 | I141: 67280.32 | J141: 68310.63 | K141: 66250 | L141: 64450 | M141: 0.13429
A142: 133 | B142: MGL | C142: 727.65 | D142: 716.08 | E142: 702.17 | F142: 676.68 | G142: 662.77 | H142: 741.57 | I142: 755.48 | J142: 780.97 | K142: 730 | L142: 690.6 | M142: 5.69
A143: 134 | B143: M&MFIN | C143: 145.25 | D143: 143.88 | E143: 141.37 | F143: 137.48 | G143: 134.97 | H143: 147.77 | I143: 150.28 | J143: 154.17 | K143: 146.4 | L143: 140 | M143: 46.09835
A144: 135 | B144: M&M | C144: 790.85 | D144: 794.87 | E144: 782.73 | F144: 774.62 | G144: 762.48 | H144: 802.98 | I144: 815.12 | J144: 823.23 | K144: 807 | L144: 786.75 | M144: 50.26913
A145: 136 | B145: MANAPPURAM | C145: 113.95 | D145: 113.57 | E145: 112.13 | F145: 110.32 | G145: 108.88 | H145: 115.38 | I145: 116.82 | J145: 118.63 | K145: 115 | L145: 111.75 | M145: 62.98812
A146: 137 | B146: MARICO | C146: 514.7 | D146: 506.17 | E146: 494.33 | F146: 473.97 | G146: 462.13 | H146: 526.53 | I146: 538.37 | J146: 558.73 | K146: 518 | L146: 485.8 | M146: 30.50846
A147: 138 | B147: MARUTI | C147: 8314.15 | D147: 8256.07 | E147: 8172.18 | F147: 8030.22 | G147: 7946.33 | H147: 8398.03 | I147: 8481.92 | J147: 8623.88 | K147: 8339.95 | L147: 8114.1 | M147: 9.61303
A148: 139 | B148: MFSL | C148: 829.8 | D148: 824.03 | E148: 801.02 | F148: 772.23 | G148: 749.22 | H148: 852.82 | I148: 875.83 | J148: 904.62 | K148: 847.05 | L148: 795.25 | M148: 8.38877
A149: 140 | B149: MINDTREE | C149: 3881.2 | D149: 3818.23 | E149: 3741.47 | F149: 3601.73 | G149: 3524.97 | H149: 3957.97 | I149: 4034.73 | J149: 4174.47 | K149: 3895 | L149: 3678.5 | M149: 6.65332
A150: 141 | B150: MPHASIS | C150: 3108.7 | D150: 3072.12 | E150: 3011.58 | F150: 2914.47 | G150: 2853.93 | H150: 3169.23 | I150: 3229.77 | J150: 3326.88 | K150: 3132.65 | L150: 2975 | M150: 5.46703
A151: 142 | B151: MUTHOOTFIN | C151: 1358.75 | D151: 1356.03 | E151: 1332.07 | F151: 1305.38 | G151: 1281.42 | H151: 1382.72 | I151: 1406.68 | J151: 1433.37 | K151: 1380 | L151: 1329.35 | M151: 10.7292
A152: 143 | B152: NATCOPHARM | C152: 869.5 | D152: 842.23 | E152: 787.47 | F152: 705.43 | G152: 650.67 | H152: 924.27 | I152: 979.03 | J152: 1061.07 | K152: 897 | L152: 760.2 | M152: 3.74884
A153: 144 | B153: NMDC | C153: 143.15 | D153: 142.25 | E153: 140.30 | F153: 137.45 | G153: 135.50 | H153: 145.10 | I153: 147.05 | J153: 149.90 | K153: 144.2 | L153: 139.4 | M153: 69.03025
A154: 145 | B154: NTPC | C154: 133.5 | D154: 132.08 | E154: 130.22 | F154: 126.93 | G154: 125.07 | H154: 135.37 | I154: 137.23 | J154: 140.52 | K154: 133.95 | L154: 128.8 | M154: 132.62687
A155: 146 | B155: NATIONALUM | C155: 121.3 | D155: 119.90 | E155: 117.35 | F155: 113.40 | G155: 110.85 | H155: 123.85 | I155: 126.40 | J155: 130.35 | K155: 122.45 | L155: 115.95 | M155: 408.70737
A156: 147 | B156: NAVINFLUOR | C156: 3890.95 | D156: 3851.98 | E156: 3753.97 | F156: 3616.98 | G156: 3518.97 | H156: 3988.97 | I156: 4086.98 | J156: 4223.97 | K156: 3950 | L156: 3715 | M156: 1.42857
A157: 148 | B157: NESTLEIND | C157: 17639.15 | D157: 17579.48 | E157: 17389.67 | F157: 17140.18 | G157: 16950.37 | H157: 17828.97 | I157: 18018.78 | J157: 18268.27 | K157: 17769.3 | L157: 17330 | M157: 1.57873
A158: 149 | B158: NAM-INDIA | C158: 307.8 | D158: 305.20 | E158: 300.65 | F158: 293.50 | G158: 288.95 | H158: 312.35 | I158: 316.90 | J158: 324.05 | K158: 309.75 | L158: 298.05 | M158: 6.62482
A159: 150 | B159: OBEROIRLTY | C159: 907.2 | D159: 898.38 | E159: 884.92 | F159: 862.63 | G159: 849.17 | H159: 920.67 | I159: 934.13 | J159: 956.42 | K159: 911.85 | L159: 876.1 | M159: 4.90295
A160: 151 | B160: ONGC | C160: 160.65 | D160: 159.43 | E160: 157.02 | F160: 153.38 | G160: 150.97 | H160: 163.07 | I160: 165.48 | J160: 169.12 | K160: 161.85 | L160: 155.8 | M160: 202.1007
A161: 152 | B161: OIL | C161: 222.95 | D161: 223.22 | E161: 220.73 | F161: 218.52 | G161: 216.03 | H161: 225.43 | I161: 227.92 | J161: 230.13 | K161: 225.7 | L161: 221 | M161: 10.49532
A162: 153 | B162: PIIND | C162: 2468.35 | D162: 2463.10 | E162: 2421.35 | F162: 2374.35 | G162: 2332.60 | H162: 2510.10 | I162: 2551.85 | J162: 2598.85 | K162: 2504.85 | L162: 2416.1 | M162: 1.80277
A163: 154 | B163: PAGEIND | C163: 42256.2 | D163: 41735.37 | E163: 40970.83 | F163: 39685.47 | G163: 38920.93 | H163: 43020.73 | I163: 43785.27 | J163: 45070.63 | K163: 42499.9 | L163: 40450 | M163: 0.26868
A164: 155 | B164: PETRONET | C164: 215.3 | D164: 211.37 | E164: 206.08 | F164: 196.87 | G164: 191.58 | H164: 220.58 | I164: 225.87 | J164: 235.08 | K164: 216.65 | L164: 202.15 | M164: 86.33189
A165: 156 | B165: PFIZER | C165: 4402.45 | D165: 4374.42 | E165: 4329.13 | F165: 4255.82 | G165: 4210.53 | H165: 4447.73 | I165: 4493.02 | J165: 4566.33 | K165: 4419.7 | L165: 4301.1 | M165: 0.20529
A166: 157 | B166: PIDILITIND | C166: 2402.95 | D166: 2373.52 | E166: 2341.43 | F166: 2279.92 | G166: 2247.83 | H166: 2435.03 | I166: 2467.12 | J166: 2528.63 | K166: 2405.6 | L166: 2312 | M166: 6.28032
A167: 158 | B167: PEL | C167: 2070.25 | D167: 2059.62 | E167: 2026.58 | F167: 1982.92 | G167: 1949.88 | H167: 2103.28 | I167: 2136.32 | J167: 2179.98 | K167: 2092.65 | L167: 2015.95 | M167: 18.50204
A168: 159 | B168: POLYCAB | C168: 2374.85 | D168: 2350.97 | E168: 2314.03 | F168: 2253.22 | G168: 2216.28 | H168: 2411.78 | I168: 2448.72 | J168: 2509.53 | K168: 2387.9 | L168: 2290.15 | M168: 2.19676
A169: 160 | B169: PFC | C169: 109.85 | D169: 108.97 | E169: 107.78 | F169: 105.72 | G169: 104.53 | H169: 111.03 | I169: 112.22 | J169: 114.28 | K169: 110.15 | L169: 106.9 | M169: 52.05679
A170: 161 | B170: POWERGRID | C170: 209.15 | D170: 205.15 | E170: 200.05 | F170: 190.95 | G170: 185.85 | H170: 214.25 | I170: 219.35 | J170: 228.45 | K170: 210.25 | L170: 196.05 | M170: 239.53789
A171: 162 | B171: PRESTIGE | C171: 453.7 | D171: 447.22 | E171: 436.98 | F171: 420.27 | G171: 410.03 | H171: 463.93 | I171: 474.17 | J171: 490.88 | K171: 457.45 | L171: 430.5 | M171: 8.53386
A172: 163 | B172: PGHH | C172: 15490.65 | D172: 15412.88 | E172: 15235.77 | F172: 14980.88 | G172: 14803.77 | H172: 15667.77 | I172: 15844.88 | J172: 16099.77 | K172: 15590 | L172: 15158 | M172: 0.02112
A173: 164 | B173: PNB | C173: 34.9 | D173: 34.70 | E173: 34.25 | F173: 33.60 | G173: 33.15 | H173: 35.35 | I173: 35.80 | J173: 36.45 | K173: 35.15 | L173: 34.05 | M173: 949.49907
A174: 165 | B174: RBLBANK | C174: 133.35 | D174: 132.32 | E174: 130.03 | F174: 126.72 | G174: 124.43 | H174: 135.63 | I174: 137.92 | J174: 141.23 | K174: 134.6 | L174: 129 | M174: 180.47641
A175: 166 | B175: RECLTD | C175: 122.55 | D175: 121.25 | E175: 119.20 | F175: 115.85 | G175: 113.80 | H175: 124.60 | I175: 126.65 | J175: 130.00 | K175: 123.3 | L175: 117.9 | M175: 53.92427
A176: 167 | B176: RELIANCE | C176: 2359.55 | D176: 2323.30 | E176: 2279.25 | F176: 2198.95 | G176: 2154.90 | H176: 2403.60 | I176: 2447.65 | J176: 2527.95 | K176: 2367.35 | L176: 2243 | M176: 98.28768
A177: 168 | B177: SBICARD | C177: 785.55 | D177: 779.95 | E177: 771.85 | F177: 758.15 | G177: 750.05 | H177: 793.65 | I177: 801.75 | J177: 815.45 | K177: 788.05 | L177: 766.25 | M177: 8.9161
A178: 169 | B178: SBILIFE | C178: 1060.15 | D178: 1046.60 | E178: 1030.40 | F178: 1000.65 | G178: 984.45 | H178: 1076.35 | I178: 1092.55 | J178: 1122.30 | K178: 1062.8 | L178: 1016.85 | M178: 15.66146
A179: 170 | B179: SRF | C179: 2383.65 | D179: 2375.67 | E179: 2343.33 | F179: 2303.02 | G179: 2270.68 | H179: 2415.98 | I179: 2448.32 | J179: 2488.63 | K179: 2408 | L179: 2335.35 | M179: 11.57729
A180: 171 | B180: SANOFI | C180: 7253.4 | D180: 7351.68 | E180: 7103.42 | F180: 6953.43 | G180: 6705.17 | H180: 7501.67 | I180: 7749.93 | J180: 7899.92 | K180: 7599.95 | L180: 7201.7 | M180: 0.25805
A181: 172 | B181: SHREECEM | C181: 24414.7 | D181: 24157.00 | E181: 23818.00 | F181: 23221.30 | G181: 22882.30 | H181: 24753.70 | I181: 25092.70 | J181: 25689.40 | K181: 24496 | L181: 23560.3 | M181: 0.39994
A182: 173 | B182: SRTRANSFIN | C182: 1124.2 | D182: 1111.07 | E182: 1094.13 | F182: 1064.07 | G182: 1047.13 | H182: 1141.13 | I182: 1158.07 | J182: 1188.13 | K182: 1128 | L182: 1081 | M182: 13.70871
A183: 174 | B183: SIEMENS | C183: 2347.45 | D183: 2338.02 | E183: 2306.03 | F183: 2264.62 | G183: 2232.63 | H183: 2379.43 | I183: 2411.42 | J183: 2452.83 | K183: 2370 | L183: 2296.6 | M183: 4.7144
A184: 175 | B184: SBIN | C184: 483.2 | D184: 480.53 | E184: 475.77 | F184: 468.33 | G184: 463.57 | H184: 487.97 | I184: 492.73 | J184: 500.17 | K184: 485.3 | L184: 473.1 | M184: 180.69367
A185: 176 | B185: SAIL | C185: 96.35 | D185: 94.43 | E185: 92.12 | F185: 87.88 | G185: 85.57 | H185: 98.67 | I185: 100.98 | J185: 105.22 | K185: 96.75 | L185: 90.2 | M185: 514.89421
A186: 177 | B186: SUNPHARMA | C186: 843.9 | D186: 837.30 | E186: 827.60 | F186: 811.30 | G186: 801.60 | H186: 853.60 | I186: 863.30 | J186: 879.60 | K186: 847 | L186: 821 | M186: 41.23139
A187: 178 | B187: SUNTV | C187: 447.55 | D187: 443.47 | E187: 436.93 | F187: 426.32 | G187: 419.78 | H187: 454.08 | I187: 460.62 | J187: 471.23 | K187: 450 | L187: 432.85 | M187: 16.89794
A188: 179 | B188: SYNGENE | C188: 541.75 | D188: 541.87 | E188: 530.93 | F188: 520.12 | G188: 509.18 | H188: 552.68 | I188: 563.62 | J188: 574.43 | K188: 552.8 | L188: 531.05 | M188: 3.35188
A189: 180 | B189: TVSMOTOR | C189: 617.6 | D189: 619.18 | E189: 608.42 | F189: 599.23 | G189: 588.47 | H189: 628.37 | I189: 639.13 | J189: 648.32 | K189: 629.95 | L189: 610 | M189: 16.15551
A190: 181 | B190: TATACHEM | C190: 841.25 | D190: 834.03 | E190: 821.67 | F190: 802.08 | G190: 789.72 | H190: 853.62 | I190: 865.98 | J190: 885.57 | K190: 846.4 | L190: 814.45 | M190: 11.99536
A191: 182 | B191: TATACOMM | C191: 1183.25 | D191: 1173.67 | E191: 1157.58 | F191: 1131.92 | G191: 1115.83 | H191: 1199.33 | I191: 1215.42 | J191: 1241.08 | K191: 1189.75 | L191: 1148 | M191: 7.13268
A192: 183 | B192: TCS | C192: 3554.2 | D192: 3524.62 | E192: 3485.48 | F192: 3416.77 | G192: 3377.63 | H192: 3593.33 | I192: 3632.47 | J192: 3701.18 | K192: 3563.75 | L192: 3455.9 | M192: 32.88942
A193: 184 | B193: TATACONSUM | C193: 718.6 | D193: 711.32 | E193: 701.83 | F193: 685.07 | G193: 675.58 | H193: 728.08 | I193: 737.57 | J193: 754.33 | K193: 720.8 | L193: 694.55 | M193: 19.35344
A194: 185 | B194: TATAELXSI | C194: 6431.85 | D194: 6397.97 | E194: 6315.93 | F194: 6200.02 | G194: 6117.98 | H194: 6513.88 | I194: 6595.92 | J194: 6711.83 | K194: 6480 | L194: 6282.05 | M194: 2.94069
A195: 186 | B195: TATAMOTORS | C195: 454.05 | D195: 450.62 | E195: 443.88 | F195: 433.72 | G195: 426.98 | H195: 460.78 | I195: 467.52 | J195: 477.68 | K195: 457.35 | L195: 440.45 | M195: 344.75468
A196: 187 | B196: TATAPOWER | C196: 223.05 | D196: 220.50 | E196: 216.65 | F196: 210.25 | G196: 206.40 | H196: 226.90 | I196: 230.75 | J196: 237.15 | K196: 224.35 | L196: 214.1 | M196: 355.08015
A197: 188 | B197: TATASTEEL | C197: 1220.75 | D197: 1191.65 | E197: 1158.30 | F197: 1095.85 | G197: 1062.50 | H197: 1254.10 | I197: 1287.45 | J197: 1349.90 | K197: 1225 | L197: 1129.2 | M197: 176.05446
A198: 189 | B198: TECHM | C198: 1410 | D198: 1397.70 | E198: 1375.55 | F198: 1341.10 | G198: 1318.95 | H198: 1432.15 | I198: 1454.30 | J198: 1488.75 | K198: 1419.85 | L198: 1363.25 | M198: 49.8314
A199: 190 | B199: RAMCOCEM | C199: 786.9 | D199: 776.17 | E199: 762.78 | F199: 738.67 | G199: 725.28 | H199: 800.28 | I199: 813.67 | J199: 837.78 | K199: 789.55 | L199: 752.05 | M199: 3.99937
A200: 191 | B200: TITAN | C200: 2546.55 | D200: 2513.40 | E200: 2463.15 | F200: 2379.75 | G200: 2329.50 | H200: 2596.80 | I200: 2647.05 | J200: 2730.45 | K200: 2563.65 | L200: 2430 | M200: 23.55891
A201: 192 | B201: TORNTPHARM | C201: 2749.9 | D201: 2736.18 | E201: 2693.42 | F201: 2636.93 | G201: 2594.17 | H201: 2792.67 | I201: 2835.43 | J201: 2891.92 | K201: 2778.95 | L201: 2679.7 | M201: 2.4672
A202: 193 | B202: TORNTPOWER | C202: 475.2 | D202: 469.75 | E202: 462.50 | F202: 449.80 | G202: 442.55 | H202: 482.45 | I202: 489.70 | J202: 502.40 | K202: 477 | L202: 457.05 | M202: 3.79802
A203: 194 | B203: TRENT | C203: 1108.1 | D203: 1085.73 | E203: 1052.47 | F203: 996.83 | G203: 963.57 | H203: 1141.37 | I203: 1174.63 | J203: 1230.27 | K203: 1119 | L203: 1030.1 | M203: 11.02621
A204: 195 | B204: UPL | C204: 665.45 | D204: 659.50 | E204: 650.05 | F204: 634.65 | G204: 625.20 | H204: 674.90 | I204: 684.35 | J204: 699.75 | K204: 668.95 | L204: 644.1 | M204: 30.60915
A205: 196 | B205: ULTRACEMCO | C205: 6567.9 | D205: 6536.68 | E205: 6471.37 | F205: 6374.83 | G205: 6309.52 | H205: 6633.22 | I205: 6698.53 | J205: 6795.07 | K205: 6602 | L205: 6440.15 | M205: 5.57289
... 29 more rows

Sheet MidCap Intra
L5: Back To Main Page
A6: FOR INTRA DAY TRADING | K6: =Main!B10 -> 2022-03-02
A9: Sr.no | B9: Scrip | C9: CLOSE RATE | D9: Pivot Point | E9: Supports | H9: Resistances
E10: S1 | F10: S2 | G10: S3 | H10: R1 | I10: R2 | J10: R3 | K10: HIGH | L10: LOW | M10: Total Trade Quanity in Lakhs
A11: 1 | B11: 3MINDIA | C11: 21208.4 | D11: 21310.68 | E11: 20871.97 | F11: 20535.53 | G11: 20096.82 | H11: 21647.12 | I11: 22085.83 | J11: 22422.27 | K11: 21749.4 | L11: 20974.25 | M11: 0.02052
A12: 2 | B12: AARTIDRUGS | C12: 455.7 | D12: 456.47 | E12: 449.73 | F12: 443.77 | G12: 437.03 | H12: 462.43 | I12: 469.17 | J12: 475.13 | K12: 463.2 | L12: 450.5 | M12: 1.21865
A13: 3 | B13: AARTIIND | C13: 926.15 | D13: 922.42 | E13: 914.93 | F13: 903.72 | G13: 896.23 | H13: 933.63 | I13: 941.12 | J13: 952.33 | K13: 929.9 | L13: 911.2 | M13: 5.59306
A14: 4 | B14: AAVAS | C14: 2795.25 | D14: 2855.25 | E14: 2690.00 | F14: 2584.75 | G14: 2419.50 | H14: 2960.50 | I14: 3125.75 | J14: 3231.00 | K14: 3020.5 | L14: 2750 | M14: 3.34327
A15: 5 | B15: ABB | C15: 2159.45 | D15: 2140.08 | E15: 2108.57 | F15: 2057.68 | G15: 2026.17 | H15: 2190.97 | I15: 2222.48 | J15: 2273.37 | K15: 2171.6 | L15: 2089.2 | M15: 1.8099
A16: 6 | B16: ABBOTINDIA | C16: 17556.5 | D16: 17503.82 | E16: 17232.68 | F16: 16908.87 | G16: 16637.73 | H16: 17827.63 | I16: 18098.77 | J16: 18422.58 | K16: 17774.95 | L16: 17180 | M16: 0.24091
A17: 7 | B17: ABCAPITAL | C17: 105.55 | D17: 104.33 | E17: 102.42 | F17: 99.28 | G17: 97.37 | H17: 107.47 | I17: 109.38 | J17: 112.52 | K17: 106.25 | L17: 101.2 | M17: 34.22266
A18: 8 | B18: ABFRL | C18: 268.4 | D18: 266.78 | E18: 261.62 | F18: 254.83 | G18: 249.67 | H18: 273.57 | I18: 278.73 | J18: 285.52 | K18: 271.95 | L18: 260 | M18: 38.53921
A19: 9 | B19: ACC | C19: 2089.15 | D19: 2068.17 | E19: 2041.33 | F19: 1993.52 | G19: 1966.68 | H19: 2115.98 | I19: 2142.82 | J19: 2190.63 | K19: 2095 | L19: 2020.35 | M19: 3.49612
A20: 10 | B20: ADANIENT | C20: 1644.45 | D20: 1629.27 | E20: 1607.43 | F20: 1570.42 | G20: 1548.58 | H20: 1666.28 | I20: 1688.12 | J20: 1725.13 | K20: 1651.1 | L20: 1592.25 | M20: 18.69037
A21: 11 | B21: ADANIGREEN | C21: 1843.4 | D21: 1866.13 | E21: 1808.27 | F21: 1773.13 | G21: 1715.27 | H21: 1901.27 | I21: 1959.13 | J21: 1994.27 | K21: 1924 | L21: 1831 | M21: 18.99148
A22: 12 | B22: ADANIPORTS | C22: 707.5 | D22: 700.55 | E22: 691.45 | F22: 675.40 | G22: 666.30 | H22: 716.60 | I22: 725.70 | J22: 741.75 | K22: 709.65 | L22: 684.5 | M22: 42.88186
A23: 13 | B23: ADANITRANS | C23: 2134.4 | D23: 2086.28 | E23: 2038.12 | F23: 1941.83 | G23: 1893.67 | H23: 2182.57 | I23: 2230.73 | J23: 2327.02 | K23: 2134.45 | L23: 1990 | M23: 4.86895
A24: 14 | B24: ADVENZYMES | C24: 319.85 | D24: 315.38 | E24: 305.82 | F24: 291.78 | G24: 282.22 | H24: 329.42 | I24: 338.98 | J24: 353.02 | K24: 324.95 | L24: 301.35 | M24: 16.75988
A25: 15 | B25: AEGISCHEM | C25: 168.8 | D25: 170.28 | E25: 165.77 | F25: 162.73 | G25: 158.22 | H25: 173.32 | I25: 177.83 | J25: 180.87 | K25: 174.8 | L25: 167.25 | M25: 14.16343
A26: 16 | B26: AFFLE | C26: 1218.25 | D26: 1201.22 | E26: 1175.03 | F26: 1131.82 | G26: 1105.63 | H26: 1244.43 | I26: 1270.62 | J26: 1313.83 | K26: 1227.4 | L26: 1158 | M26: 3.76936
A27: 17 | B27: AIAENG | C27: 1624.2 | D27: 1615.37 | E27: 1591.73 | F27: 1559.27 | G27: 1535.63 | H27: 1647.83 | I27: 1671.47 | J27: 1703.93 | K27: 1639 | L27: 1582.9 | M27: 0.68864
A28: 18 | B28: AJANTPHARM | C28: 1722.1 | D28: 1723.75 | E28: 1692.50 | F28: 1662.90 | G28: 1631.65 | H28: 1753.35 | I28: 1784.60 | J28: 1814.20 | K28: 1755 | L28: 1694.15 | M28: 1.99561
A29: 19 | B29: ALEMBICLTD | C29: 89.1 | D29: 88.33 | E29: 85.27 | F29: 81.43 | G29: 78.37 | H29: 92.17 | I29: 95.23 | J29: 99.07 | K29: 91.4 | L29: 84.5 | M29: 19.08352
A30: 20 | B30: ALKEM | C30: 3277.95 | D30: 3261.25 | E30: 3216.70 | F30: 3155.45 | G30: 3110.90 | H30: 3322.50 | I30: 3367.05 | J30: 3428.30 | K30: 3305.8 | L30: 3200 | M30: 0.33559
A31: 21 | B31: ALKYLAMINE | C31: 3003.3 | D31: 2980.77 | E31: 2933.53 | F31: 2863.77 | G31: 2816.53 | H31: 3050.53 | I31: 3097.77 | J31: 3167.53 | K31: 3028 | L31: 2911 | M31: 0.44909
A32: 22 | B32: ALOKINDS | C32: 24 | D32: 23.65 | E32: 23.10 | F32: 22.20 | G32: 21.65 | H32: 24.55 | I32: 25.10 | J32: 26.00 | K32: 24.2 | L32: 22.75 | M32: 171.37576
A33: 23 | B33: AMARAJABAT | C33: 560.85 | D33: 555.08 | E33: 547.92 | F33: 534.98 | G33: 527.82 | H33: 568.02 | I33: 575.18 | J33: 588.12 | K33: 562.25 | L33: 542.15 | M33: 7.34382
A34: 24 | B34: AMBER | C34: 3481.8 | D34: 3369.32 | E34: 3238.63 | F34: 2995.47 | G34: 2864.78 | H34: 3612.48 | I34: 3743.17 | J34: 3986.33 | K34: 3500 | L34: 3126.15 | M34: 1.88983
A35: 25 | B35: AMBUJACEM | C35: 314.25 | D35: 311.05 | E35: 306.15 | F35: 298.05 | G35: 293.15 | H35: 319.15 | I35: 324.05 | J35: 332.15 | K35: 315.95 | L35: 302.95 | M35: 71.16898
A36: 26 | B36: ANGELONE | C36: 1335.3 | D36: 1333.67 | E36: 1301.28 | F36: 1267.27 | G36: 1234.88 | H36: 1367.68 | I36: 1400.07 | J36: 1434.08 | K36: 1366.05 | L36: 1299.65 | M36: 4.20705
A37: 27 | B37: ANURAS | C37: 837.05 | D37: 844.08 | E37: 823.17 | F37: 809.28 | G37: 788.37 | H37: 857.97 | I37: 878.88 | J37: 892.77 | K37: 865 | L37: 830.2 | M37: 0.7383
A38: 28 | B38: APLAPOLLO | C38: 850.2 | D38: 836.23 | E38: 817.77 | F38: 785.33 | G38: 766.87 | H38: 868.67 | I38: 887.13 | J38: 919.57 | K38: 854.7 | L38: 803.8 | M38: 2.89928
A39: 29 | B39: APLLTD | C39: 725.3 | D39: 725.90 | E39: 717.90 | F39: 710.50 | G39: 702.50 | H39: 733.30 | I39: 741.30 | J39: 748.70 | K39: 733.9 | L39: 718.5 | M39: 3.31395
A40: 30 | B40: APOLLOHOSP | C40: 4802.8 | D40: 4733.33 | E40: 4640.67 | F40: 4478.53 | G40: 4385.87 | H40: 4895.47 | I40: 4988.13 | J40: 5150.27 | K40: 4826 | L40: 4571.2 | M40: 16.17666
A41: 31 | B41: APOLLOTYRE | C41: 184.7 | D41: 183.43 | E41: 179.97 | F41: 175.23 | G41: 171.77 | H41: 188.17 | I41: 191.63 | J41: 196.37 | K41: 186.9 | L41: 178.7 | M41: 64.56344
A42: 32 | B42: ASAHIINDIA | C42: 469.95 | D42: 465.17 | E42: 455.88 | F42: 441.82 | G42: 432.53 | H42: 479.23 | I42: 488.52 | J42: 502.58 | K42: 474.45 | L42: 451.1 | M42: 1.82368
A43: 33 | B43: ASHOKA | C43: 93.1 | D43: 91.27 | E43: 89.03 | F43: 84.97 | G43: 82.73 | H43: 95.33 | I43: 97.57 | J43: 101.63 | K43: 93.5 | L43: 87.2 | M43: 11.01745
A44: 34 | B44: ASHOKLEY | C44: 118.65 | D44: 117.93 | E44: 116.07 | F44: 113.48 | G44: 111.62 | H44: 120.52 | I44: 122.38 | J44: 124.97 | K44: 119.8 | L44: 115.35 | M44: 168.41931
A45: 35 | B45: ASIANPAINT | C45: 3174.65 | D45: 3126.72 | E45: 3062.93 | F45: 2951.22 | G45: 2887.43 | H45: 3238.43 | I45: 3302.22 | J45: 3413.93 | K45: 3190.5 | L45: 3015 | M45: 16.78348
A46: 36 | B46: ASTERDM | C46: 170.8 | D46: 170.57 | E46: 168.23 | F46: 165.67 | G46: 163.33 | H46: 173.13 | I46: 175.47 | J46: 178.03 | K46: 172.9 | L46: 168 | M46: 2.72485
A47: 37 | B47: ASTRAL | C47: 1941.75 | D47: 1915.55 | E47: 1882.20 | F47: 1822.65 | G47: 1789.30 | H47: 1975.10 | I47: 2008.45 | J47: 2068.00 | K47: 1948.9 | L47: 1856 | M47: 4.04752
A48: 38 | B48: ASTRAZEN | C48: 2609.55 | D48: 2619.67 | E48: 2589.33 | F48: 2569.12 | G48: 2538.78 | H48: 2639.88 | I48: 2670.22 | J48: 2690.43 | K48: 2650 | L48: 2599.45 | M48: 0.07396
A49: 39 | B49: ATGL | C49: 1588.5 | D49: 1567.92 | E49: 1530.88 | F49: 1473.27 | G49: 1436.23 | H49: 1625.53 | I49: 1662.57 | J49: 1720.18 | K49: 1604.95 | L49: 1510.3 | M49: 3.05348
A50: 40 | B50: ATUL | C50: 9256.55 | D50: 9178.55 | E50: 9050.10 | F50: 8843.65 | G50: 8715.20 | H50: 9385.00 | I50: 9513.45 | J50: 9719.90 | K50: 9307 | L50: 8972.1 | M50: 0.16578
A51: 41 | B51: AUBANK | C51: 1203.6 | D51: 1206.47 | E51: 1182.93 | F51: 1162.27 | G51: 1138.73 | H51: 1227.13 | I51: 1250.67 | J51: 1271.33 | K51: 1230 | L51: 1185.8 | M51: 11.18005
A52: 42 | B52: AUROPHARMA | C52: 625.25 | D52: 621.17 | E52: 614.38 | F52: 603.52 | G52: 596.73 | H52: 632.03 | I52: 638.82 | J52: 649.68 | K52: 627.95 | L52: 610.3 | M52: 17.61801
A53: 43 | B53: AVANTIFEED | C53: 477.5 | D53: 474.85 | E53: 467.65 | F53: 457.80 | G53: 450.60 | H53: 484.70 | I53: 491.90 | J53: 501.75 | K53: 482.05 | L53: 465 | M53: 0.90132
A54: 44 | B54: AXISBANK | C54: 742.4 | D54: 742.83 | E54: 735.77 | F54: 729.13 | G54: 722.07 | H54: 749.47 | I54: 756.53 | J54: 763.17 | K54: 749.9 | L54: 736.2 | M54: 144.63418
A55: 45 | B55: BAJAJ-AUTO | C55: 3530.35 | D55: 3513.13 | E55: 3465.27 | F55: 3400.18 | G55: 3352.32 | H55: 3578.22 | I55: 3626.08 | J55: 3691.17 | K55: 3561 | L55: 3448.05 | M55: 3.8704
A56: 46 | B56: BAJAJCON | C56: 162.25 | D56: 160.93 | E56: 157.92 | F56: 153.58 | G56: 150.57 | H56: 165.27 | I56: 168.28 | J56: 172.62 | K56: 163.95 | L56: 156.6 | M56: 4.48309
A57: 47 | B57: BAJAJELEC | C57: 1146.8 | D57: 1128.40 | E57: 1098.40 | F57: 1050.00 | G57: 1020.00 | H57: 1176.80 | I57: 1206.80 | J57: 1255.20 | K57: 1158.4 | L57: 1080 | M57: 0.66238
A58: 48 | B58: BAJAJFINSV | C58: 16012.55 | D58: 15820.80 | E58: 15556.75 | F58: 15100.95 | G58: 14836.90 | H58: 16276.60 | I58: 16540.65 | J58: 16996.45 | K58: 16084.85 | L58: 15365 | M58: 3.73257
A59: 49 | B59: BAJAJHLDNG | C59: 5202.4 | D59: 5189.10 | E59: 5153.30 | F59: 5104.20 | G59: 5068.40 | H59: 5238.20 | I59: 5274.00 | J59: 5323.10 | K59: 5224.9 | L59: 5140 | M59: 0.1475
A60: 50 | B60: BAJFINANCE | C60: 7002.3 | D60: 6944.63 | E60: 6864.27 | F60: 6726.23 | G60: 6645.87 | H60: 7082.67 | I60: 7163.03 | J60: 7301.07 | K60: 7025 | L60: 6806.6 | M60: 15.80891
A61: 51 | B61: BALAMINES | C61: 2856.45 | D61: 2829.38 | E61: 2778.77 | F61: 2701.08 | G61: 2650.47 | H61: 2907.07 | I61: 2957.68 | J61: 3035.37 | K61: 2880 | L61: 2751.7 | M61: 0.59692
A62: 52 | B62: BALKRISIND | C62: 1822.55 | D62: 1798.35 | E62: 1767.20 | F62: 1711.85 | G62: 1680.70 | H62: 1853.70 | I62: 1884.85 | J62: 1940.20 | K62: 1829.5 | L62: 1743 | M62: 3.79707
A63: 53 | B63: BALRAMCHIN | C63: 397 | D63: 392.55 | E63: 385.45 | F63: 373.90 | G63: 366.80 | H63: 404.10 | I63: 411.20 | J63: 422.75 | K63: 399.65 | L63: 381 | M63: 24.27
A64: 54 | B64: BANDHANBNK | C64: 306.3 | D64: 304.35 | E64: 301.45 | F64: 296.60 | G64: 293.70 | H64: 309.20 | I64: 312.10 | J64: 316.95 | K64: 307.25 | L64: 299.5 | M64: 48.38277
A65: 55 | B65: BANKBARODA | C65: 106.55 | D65: 106.22 | E65: 104.43 | F65: 102.32 | G65: 100.53 | H65: 108.33 | I65: 110.12 | J65: 112.23 | K65: 108 | L65: 104.1 | M65: 412.83452
A66: 56 | B66: BANKINDIA | C66: 46.85 | D66: 46.62 | E66: 46.03 | F66: 45.22 | G66: 44.63 | H66: 47.43 | I66: 48.02 | J66: 48.83 | K66: 47.2 | L66: 45.8 | M66: 53.3752
A67: 57 | B67: BASF | C67: 2749.8 | D67: 2746.92 | E67: 2704.93 | F67: 2660.07 | G67: 2618.08 | H67: 2791.78 | I67: 2833.77 | J67: 2878.63 | K67: 2788.9 | L67: 2702.05 | M67: 0.3563
A68: 58 | B68: BATAINDIA | C68: 1813.5 | D68: 1800.53 | E68: 1780.12 | F68: 1746.73 | G68: 1726.32 | H68: 1833.92 | I68: 1854.33 | J68: 1887.72 | K68: 1820.95 | L68: 1767.15 | M68: 6.23785
A69: 59 | B69: BAYERCROP | C69: 4410.4 | D69: 4436.17 | E69: 4364.33 | F69: 4318.27 | G69: 4246.43 | H69: 4482.23 | I69: 4554.07 | J69: 4600.13 | K69: 4508 | L69: 4390.1 | M69: 0.78257
A70: 60 | B70: BBTC | C70: 957.7 | D70: 949.88 | E70: 931.82 | F70: 905.93 | G70: 887.87 | H70: 975.77 | I70: 993.83 | J70: 1019.72 | K70: 967.95 | L70: 924 | M70: 0.47094
A71: 61 | B71: BDL | C71: 448.15 | D71: 437.35 | E71: 421.00 | F71: 393.85 | G71: 377.50 | H71: 464.50 | I71: 480.85 | J71: 508.00 | K71: 453.7 | L71: 410.2 | M71: 6.78357
A72: 62 | B72: BEL | C72: 210.45 | D72: 206.05 | E72: 200.60 | F72: 190.75 | G72: 185.30 | H72: 215.90 | I72: 221.35 | J72: 231.20 | K72: 211.5 | L72: 196.2 | M72: 118.62563
A73: 63 | B73: BEML | C73: 1561.7 | D73: 1552.35 | E73: 1529.70 | F73: 1497.70 | G73: 1475.05 | H73: 1584.35 | I73: 1607.00 | J73: 1639.00 | K73: 1575 | L73: 1520.35 | M73: 0.95759
A74: 64 | B74: BERGEPAINT | C74: 690.45 | D74: 676.55 | E74: 654.90 | F74: 619.35 | G74: 597.70 | H74: 712.10 | I74: 733.75 | J74: 769.30 | K74: 698.2 | L74: 641 | M74: 23.46348
A75: 65 | B75: BHARATFORG | C75: 678.65 | D75: 671.07 | E75: 660.13 | F75: 641.62 | G75: 630.68 | H75: 689.58 | I75: 700.52 | J75: 719.03 | K75: 682 | L75: 652.55 | M75: 19.62564
A76: 66 | B76: BHARATRAS | C76: 12121.55 | D76: 12061.57 | E76: 11901.13 | F76: 11680.72 | G76: 11520.28 | H76: 12281.98 | I76: 12442.42 | J76: 12662.83 | K76: 12222 | L76: 11841.15 | M76: 0.01525
A77: 67 | B77: BHARTIARTL | C77: 686.5 | D77: 680.98 | E77: 671.97 | F77: 657.43 | G77: 648.42 | H77: 695.52 | I77: 704.53 | J77: 719.07 | K77: 690 | L77: 666.45 | M77: 83.01523
A78: 68 | B78: BHEL | C78: 49.85 | D78: 49.00 | E78: 47.85 | F78: 45.85 | G78: 44.70 | H78: 51.00 | I78: 52.15 | J78: 54.15 | K78: 50.15 | L78: 47 | M78: 415.19924
A79: 69 | B79: BIOCON | C79: 348.85 | D79: 363.58 | E79: 332.27 | F79: 315.68 | G79: 284.37 | H79: 380.17 | I79: 411.48 | J79: 428.07 | K79: 394.9 | L79: 347 | M79: 158.09887
A80: 70 | B80: BIRLACORPN | C80: 1097.25 | D80: 1097.02 | E80: 1075.33 | F80: 1053.42 | G80: 1031.73 | H80: 1118.93 | I80: 1140.62 | J80: 1162.53 | K80: 1118.7 | L80: 1075.1 | M80: 0.98515
A81: 71 | B81: BLUEDART | C81: 6001.8 | D81: 5995.62 | E81: 5939.43 | F81: 5877.07 | G81: 5820.88 | H81: 6057.98 | I81: 6114.17 | J81: 6176.53 | K81: 6051.8 | L81: 5933.25 | M81: 0.11356
A82: 72 | B82: BLUESTARCO | C82: 1070.1 | D82: 1063.53 | E82: 1044.57 | F82: 1019.03 | G82: 1000.07 | H82: 1089.07 | I82: 1108.03 | J82: 1133.57 | K82: 1082.5 | L82: 1038 | M82: 0.66788
A83: 73 | B83: BOSCHLTD | C83: 15748.8 | D83: 15573.08 | E83: 15346.17 | F83: 14943.53 | G83: 14716.62 | H83: 15975.72 | I83: 16202.63 | J83: 16605.27 | K83: 15800 | L83: 15170.45 | M83: 0.23677
A84: 74 | B84: BPCL | C84: 349.8 | D84: 344.37 | E84: 337.43 | F84: 325.07 | G84: 318.13 | H84: 356.73 | I84: 363.67 | J84: 376.03 | K84: 351.3 | L84: 332 | M84: 95.73141
A85: 75 | B85: BRIGADE | C85: 496.95 | D85: 496.30 | E85: 486.15 | F85: 475.35 | G85: 465.20 | H85: 507.10 | I85: 517.25 | J85: 528.05 | K85: 506.45 | L85: 485.5 | M85: 5.29532
A86: 76 | B86: BRITANNIA | C86: 3427.45 | D86: 3398.27 | E86: 3356.53 | F86: 3285.62 | G86: 3243.88 | H86: 3469.18 | I86: 3510.92 | J86: 3581.83 | K86: 3440 | L86: 3327.35 | M86: 4.26929
A87: 77 | B87: BSE | C87: 1963.4 | D87: 1944.55 | E87: 1910.70 | F87: 1858.00 | G87: 1824.15 | H87: 1997.25 | I87: 2031.10 | J87: 2083.80 | K87: 1978.4 | L87: 1891.85 | M87: 9.833
A88: 78 | B88: BSOFT | C88: 407.65 | D88: 402.55 | E88: 395.55 | F88: 383.45 | G88: 376.45 | H88: 414.65 | I88: 421.65 | J88: 433.75 | K88: 409.55 | L88: 390.45 | M88: 26.54325
A89: 79 | B89: BURGERKING | C89: 104.65 | D89: 104.80 | E89: 102.25 | F89: 99.85 | G89: 97.30 | H89: 107.20 | I89: 109.75 | J89: 112.15 | K89: 107.35 | L89: 102.4 | M89: 16.4627
A90: 80 | B90: CADILAHC | C90: 360.4 | D90: 356.88 | E90: 352.77 | F90: 345.13 | G90: 341.02 | H90: 364.52 | I90: 368.63 | J90: 376.27 | K90: 361 | L90: 349.25 | M90: 9.41141
A91: 81 | B91: CAMS | C91: 2494.3 | D91: 2434.07 | E91: 2368.23 | F91: 2242.17 | G91: 2176.33 | H91: 2560.13 | I91: 2625.97 | J91: 2752.03 | K91: 2499.9 | L91: 2308 | M91: 3.73035
A92: 82 | B92: CANBK | C92: 219.6 | D92: 218.22 | E92: 215.73 | F92: 211.87 | G92: 209.38 | H92: 222.08 | I92: 224.57 | J92: 228.43 | K92: 220.7 | L92: 214.35 | M92: 122.54727
A93: 83 | B93: CANFINHOME | C93: 580.5 | D93: 574.77 | E93: 566.18 | F93: 551.87 | G93: 543.28 | H93: 589.08 | I93: 597.67 | J93: 611.98 | K93: 583.35 | L93: 560.45 | M93: 5.40106
A94: 84 | B94: CAPLIPOINT | C94: 667.2 | D94: 667.87 | E94: 651.63 | F94: 636.07 | G94: 619.83 | H94: 683.43 | I94: 699.67 | J94: 715.23 | K94: 684.1 | L94: 652.3 | M94: 1.18901
A95: 85 | B95: CARBORUNIV | C95: 804.55 | D95: 819.00 | E95: 777.85 | F95: 751.15 | G95: 710.00 | H95: 845.70 | I95: 886.85 | J95: 913.55 | K95: 860.15 | L95: 792.3 | M95: 5.77587
A96: 86 | B96: CASTROLIND | C96: 108 | D96: 107.22 | E96: 106.08 | F96: 104.17 | G96: 103.03 | H96: 109.13 | I96: 110.27 | J96: 112.18 | K96: 108.35 | L96: 105.3 | M96: 9.77371
A97: 87 | B97: CCL | C97: 447.75 | D97: 441.70 | E97: 432.40 | F97: 417.05 | G97: 407.75 | H97: 457.05 | I97: 466.35 | J97: 481.70 | K97: 451 | L97: 426.35 | M97: 3.56251
A98: 88 | B98: CDSL | C98: 1353.4 | D98: 1358.43 | E98: 1326.97 | F98: 1300.53 | G98: 1269.07 | H98: 1384.87 | I98: 1416.33 | J98: 1442.77 | K98: 1389.9 | L98: 1332 | M98: 6.4607
A99: 89 | B99: CEATLTD | C99: 977.05 | D99: 973.25 | E99: 962.50 | F99: 947.95 | G99: 937.20 | H99: 987.80 | I99: 998.55 | J99: 1013.10 | K99: 984 | L99: 958.7 | M99: 0.58831
A100: 90 | B100: CENTRALBK | C100: 18.2 | D100: 18.15 | E100: 17.90 | F100: 17.60 | G100: 17.35 | H100: 18.45 | I100: 18.70 | J100: 19.00 | K100: 18.4 | L100: 17.85 | M100: 36.96326
A101: 91 | B101: CENTURYPLY | C101: 593.45 | D101: 596.53 | E101: 585.07 | F101: 576.68 | G101: 565.22 | H101: 604.92 | I101: 616.38 | J101: 624.77 | K101: 608 | L101: 588.15 | M101: 2.01455
A102: 92 | B102: CENTURYTEX | C102: 764.65 | D102: 758.65 | E102: 746.25 | F102: 727.85 | G102: 715.45 | H102: 777.05 | I102: 789.45 | J102: 807.85 | K102: 771.05 | L102: 740.25 | M102: 1.12667
A103: 93 | B103: CERA | C103: 4324.4 | D103: 4254.48 | E103: 4134.97 | F103: 3945.53 | G103: 3826.02 | H103: 4443.92 | I103: 4563.43 | J103: 4752.87 | K103: 4374 | L103: 4065.05 | M103: 0.142
A104: 94 | B104: CESC | C104: 78.3 | D104: 77.53 | E104: 76.47 | F104: 74.63 | G104: 73.57 | H104: 79.37 | I104: 80.43 | J104: 82.27 | K104: 78.6 | L104: 75.7 | M104: 14.4814
A105: 95 | B105: CGCL | C105: 592.85 | D105: 597.58 | E105: 585.27 | F105: 577.68 | G105: 565.37 | H105: 605.17 | I105: 617.48 | J105: 625.07 | K105: 609.9 | L105: 590 | M105: 2.36261
A106: 96 | B106: CGPOWER | C106: 171.25 | D106: 170.02 | E106: 166.08 | F106: 160.92 | G106: 156.98 | H106: 175.18 | I106: 179.12 | J106: 184.28 | K106: 173.95 | L106: 164.85 | M106: 10.82953
A107: 97 | B107: CHALET | C107: 262.25 | D107: 261.32 | E107: 255.73 | F107: 249.22 | G107: 243.63 | H107: 267.83 | I107: 273.42 | J107: 279.93 | K107: 266.9 | L107: 254.8 | M107: 2.15574
A108: 98 | B108: CHAMBLFERT | C108: 377.7 | D108: 373.45 | E108: 367.90 | F108: 358.10 | G108: 352.55 | H108: 383.25 | I108: 388.80 | J108: 398.60 | K108: 379 | L108: 363.65 | M108: 9.01022
A109: 99 | B109: CHOLAFIN | C109: 690.95 | D109: 683.98 | E109: 674.97 | F109: 658.98 | G109: 649.97 | H109: 699.97 | I109: 708.98 | J109: 724.97 | K109: 693 | L109: 668 | M109: 22.17246
A110: 100 | B110: CHOLAHLDNG | C110: 645.95 | D110: 645.28 | E110: 635.67 | F110: 625.38 | G110: 615.77 | H110: 655.57 | I110: 665.18 | J110: 675.47 | K110: 654.9 | L110: 635 | M110: 0.58305
A111: 101 | B111: CIPLA | C111: 925.05 | D111: 922.00 | E111: 914.05 | F111: 903.05 | G111: 895.10 | H111: 933.00 | I111: 940.95 | J111: 951.95 | K111: 929.95 | L111: 911 | M111: 15.34018
A112: 102 | B112: COALINDIA | C112: 169.55 | D112: 166.68 | E112: 163.42 | F112: 157.28 | G112: 154.02 | H112: 172.82 | I112: 176.08 | J112: 182.22 | K112: 169.95 | L112: 160.55 | M112: 208.72239
A113: 103 | B113: COCHINSHIP | C113: 289.9 | D113: 288.88 | E113: 286.12 | F113: 282.33 | G113: 279.57 | H113: 292.67 | I113: 295.43 | J113: 299.22 | K113: 291.65 | L113: 285.1 | M113: 1.99978
A114: 104 | B114: COFORGE | C114: 4535.5 | D114: 4488.90 | E114: 4416.60 | F114: 4297.70 | G114: 4225.40 | H114: 4607.80 | I114: 4680.10 | J114: 4799.00 | K114: 4561.2 | L114: 4370 | M114: 2.94206
A115: 105 | B115: COLPAL | C115: 1450.4 | D115: 1434.43 | E115: 1413.97 | F115: 1377.53 | G115: 1357.07 | H115: 1470.87 | I115: 1491.33 | J115: 1527.77 | K115: 1454.9 | L115: 1398 | M115: 7.85968
A116: 106 | B116: CONCOR | C116: 599.2 | D116: 590.15 | E116: 579.15 | F116: 559.10 | G116: 548.10 | H116: 610.20 | I116: 621.20 | J116: 641.25 | K116: 601.15 | L116: 570.1 | M116: 12.42329
A117: 107 | B117: COROMANDEL | C117: 773.9 | D117: 765.65 | E117: 755.65 | F117: 737.40 | G117: 727.40 | H117: 783.90 | I117: 793.90 | J117: 812.15 | K117: 775.65 | L117: 747.4 | M117: 2.71221
A118: 108 | B118: CREDITACC | C118: 749.95 | D118: 734.73 | E118: 712.47 | F118: 674.98 | G118: 652.72 | H118: 772.22 | I118: 794.48 | J118: 831.97 | K118: 757 | L118: 697.25 | M118: 2.12542
A119: 109 | B119: CRISIL | C119: 2878.15 | D119: 2835.48 | E119: 2696.27 | F119: 2514.38 | G119: 2375.17 | H119: 3017.37 | I119: 3156.58 | J119: 3338.47 | K119: 2974.7 | L119: 2653.6 | M119: 0.45675
A120: 110 | B120: CROMPTON | C120: 428.5 | D120: 423.43 | E120: 416.12 | F120: 403.73 | G120: 396.42 | H120: 435.82 | I120: 443.13 | J120: 455.52 | K120: 430.75 | L120: 411.05 | M120: 26.65823
A121: 111 | B121: CSBBANK | C121: 218.35 | D121: 216.57 | E121: 213.33 | F121: 208.32 | G121: 205.08 | H121: 221.58 | I121: 224.82 | J121: 229.83 | K121: 219.8 | L121: 211.55 | M121: 1.32234
A122: 112 | B122: CUB | C122: 125.15 | D122: 124.45 | E122: 123.40 | F122: 121.65 | G122: 120.60 | H122: 126.20 | I122: 127.25 | J122: 129.00 | K122: 125.5 | L122: 122.7 | M122: 11.73741
A123: 113 | B123: CUMMINSIND | C123: 957.25 | D123: 951.00 | E123: 942.45 | F123: 927.65 | G123: 919.10 | H123: 965.80 | I123: 974.35 | J123: 989.15 | K123: 959.55 | L123: 936.2 | M123: 1.99733
A124: 114 | B124: CYIENT | C124: 817.25 | D124: 815.75 | E124: 806.50 | F124: 795.75 | G124: 786.50 | H124: 826.50 | I124: 835.75 | J124: 846.50 | K124: 825 | L124: 805 | M124: 2.36259
A125: 115 | B125: DABUR | C125: 563.35 | D125: 553.47 | E125: 536.83 | F125: 510.32 | G125: 493.68 | H125: 579.98 | I125: 596.62 | J125: 623.13 | K125: 570.1 | L125: 526.95 | M125: 79.9299
A126: 116 | B126: DALBHARAT | C126: 1567 | D126: 1552.72 | E126: 1507.43 | F126: 1447.87 | G126: 1402.58 | H126: 1612.28 | I126: 1657.57 | J126: 1717.13 | K126: 1598 | L126: 1493.15 | M126: 4.62614
A127: 117 | B127: DBL | C127: 268.85 | D127: 263.93 | E127: 255.92 | F127: 242.98 | G127: 234.97 | H127: 276.87 | I127: 284.88 | J127: 297.82 | K127: 271.95 | L127: 251 | M127: 8.66543
A128: 118 | B128: DCBBANK | C128: 72.9 | D128: 72.20 | E128: 71.20 | F128: 69.50 | G128: 68.50 | H128: 73.90 | I128: 74.90 | J128: 76.60 | K128: 73.2 | L128: 70.5 | M128: 7.77716
A129: 119 | B129: DCMSHRIRAM | C129: 1047.1 | D129: 1025.62 | E129: 995.23 | F129: 943.37 | G129: 912.98 | H129: 1077.48 | I129: 1107.87 | J129: 1159.73 | K129: 1056 | L129: 973.75 | M129: 0.83797
A130: 120 | B130: DEEPAKNTR | C130: 1999.05 | D130: 1987.87 | E130: 1956.73 | F130: 1914.42 | G130: 1883.28 | H130: 2030.18 | I130: 2061.32 | J130: 2103.63 | K130: 2019 | L130: 1945.55 | M130: 8.64642
A131: 121 | B131: DELTACORP | C131: 263.15 | D131: 261.38 | E131: 257.77 | F131: 252.38 | G131: 248.77 | H131: 266.77 | I131: 270.38 | J131: 275.77 | K131: 265 | L131: 256 | M131: 45.02455
A132: 122 | B132: DHANI | C132: 78.6 | D132: 77.12 | E132: 73.13 | F132: 67.67 | G132: 63.68 | H132: 82.58 | I132: 86.57 | J132: 92.03 | K132: 81.1 | L132: 71.65 | M132: 152.27783
A133: 123 | B133: DHANUKA | C133: 733.5 | D133: 733.50 | E133: 722.00 | F133: 710.50 | G133: 699.00 | H133: 745.00 | I133: 756.50 | J133: 768.00 | K133: 745 | L133: 722 | M133: 0.48492
A134: 124 | B134: DIVISLAB | C134: 4265 | D134: 4209.37 | E134: 4134.33 | F134: 4003.67 | G134: 3928.63 | H134: 4340.03 | I134: 4415.07 | J134: 4545.73 | K134: 4284.4 | L134: 4078.7 | M134: 6.1167
A135: 125 | B135: DIXON | C135: 4318.25 | D135: 4303.83 | E135: 4256.67 | F135: 4195.08 | G135: 4147.92 | H135: 4365.42 | I135: 4412.58 | J135: 4474.17 | K135: 4351 | L135: 4242.25 | M135: 3.45385
A136: 126 | B136: DLF | C136: 350.75 | D136: 347.75 | E136: 343.10 | F136: 335.45 | G136: 330.80 | H136: 355.40 | I136: 360.05 | J136: 367.70 | K136: 352.4 | L136: 340.1 | M136: 88.50697
A137: 127 | B137: DMART | C137: 4340.35 | D137: 4252.48 | E137: 4149.97 | F137: 3959.58 | G137: 3857.07 | H137: 4442.87 | I137: 4545.38 | J137: 4735.77 | K137: 4355 | L137: 4062.1 | M137: 6.47569
A138: 128 | B138: DRREDDY | C138: 4063.4 | D138: 4088.63 | E138: 4027.27 | F138: 3991.13 | G138: 3929.77 | H138: 4124.77 | I138: 4186.13 | J138: 4222.27 | K138: 4150 | L138: 4052.5 | M138: 9.8285
A139: 129 | B139: ECLERX | C139: 2150.8 | D139: 2150.00 | E139: 2102.75 | F139: 2054.70 | G139: 2007.45 | H139: 2198.05 | I139: 2245.30 | J139: 2293.35 | K139: 2197.25 | L139: 2101.95 | M139: 0.53839
A140: 130 | B140: EDELWEISS | C140: 54.55 | D140: 55.87 | E140: 52.33 | F140: 50.12 | G140: 46.58 | H140: 58.08 | I140: 61.62 | J140: 63.83 | K140: 59.4 | L140: 53.65 | M140: 64.09236
A141: 131 | B141: EICHERMOT | C141: 2589.8 | D141: 2582.50 | E141: 2550.05 | F141: 2510.30 | G141: 2477.85 | H141: 2622.25 | I141: 2654.70 | J141: 2694.45 | K141: 2614.95 | L141: 2542.75 | M141: 8.15191
A142: 132 | B142: EIDPARRY | C142: 413.95 | D142: 412.77 | E142: 408.53 | F142: 403.12 | G142: 398.88 | H142: 418.18 | I142: 422.42 | J142: 427.83 | K142: 417 | L142: 407.35 | M142: 4.26326
A143: 133 | B143: EIHOTEL | C143: 129.8 | D143: 128.78 | E143: 127.37 | F143: 124.93 | G143: 123.52 | H143: 131.22 | I143: 132.63 | J143: 135.07 | K143: 130.2 | L143: 126.35 | M143: 1.65519
A144: 134 | B144: ELGIEQUIP | C144: 330.65 | D144: 330.20 | E144: 323.45 | F144: 316.25 | G144: 309.50 | H144: 337.40 | I144: 344.15 | J144: 351.35 | K144: 336.95 | L144: 323 | M144: 5.39161
A145: 135 | B145: EMAMILTD | C145: 495.35 | D145: 494.83 | E145: 488.52 | F145: 481.68 | G145: 475.37 | H145: 501.67 | I145: 507.98 | J145: 514.82 | K145: 501.15 | L145: 488 | M145: 6.63928
A146: 136 | B146: ENDURANCE | C146: 1318.25 | D146: 1315.42 | E146: 1277.83 | F146: 1237.42 | G146: 1199.83 | H146: 1355.83 | I146: 1393.42 | J146: 1433.83 | K146: 1353 | L146: 1275 | M146: 3.08446
A147: 137 | B147: ENGINERSIN | C147: 61.65 | D147: 61.05 | E147: 60.20 | F147: 58.75 | G147: 57.90 | H147: 62.50 | I147: 63.35 | J147: 64.80 | K147: 61.9 | L147: 59.6 | M147: 8.70105
A148: 138 | B148: EPL | C148: 158.25 | D148: 157.72 | E148: 155.53 | F148: 152.82 | G148: 150.63 | H148: 160.43 | I148: 162.62 | J148: 165.33 | K148: 159.9 | L148: 155 | M148: 0.88646
A149: 139 | B149: EQUITAS | C149: 106.65 | D149: 106.45 | E149: 102.50 | F149: 98.35 | G149: 94.40 | H149: 110.60 | I149: 114.55 | J149: 118.70 | K149: 110.4 | L149: 102.3 | M149: 8.26704
A150: 140 | B150: EQUITASBNK | C150: 51.8 | D150: 51.48 | E150: 50.32 | F150: 48.83 | G150: 47.67 | H150: 52.97 | I150: 54.13 | J150: 55.62 | K150: 52.65 | L150: 50 | M150: 4.36929
A151: 141 | B151: ERIS | C151: 675.55 | D151: 671.22 | E151: 654.43 | F151: 633.32 | G151: 616.53 | H151: 692.33 | I151: 709.12 | J151: 730.23 | K151: 688 | L151: 650.1 | M151: 1.61751
A152: 142 | B152: ESCORTS | C152: 1850.95 | D152: 1844.32 | E152: 1831.73 | F152: 1812.52 | G152: 1799.93 | H152: 1863.53 | I152: 1876.12 | J152: 1895.33 | K152: 1856.9 | L152: 1825.1 | M152: 11.92549
A153: 143 | B153: EXIDEIND | C153: 149.05 | D153: 148.45 | E153: 147.15 | F153: 145.25 | G153: 143.95 | H153: 150.35 | I153: 151.65 | J153: 153.55 | K153: 149.75 | L153: 146.55 | M153: 18.21075
A154: 144 | B154: FACT | C154: 112.85 | D154: 112.68 | E154: 110.42 | F154: 107.98 | G154: 105.72 | H154: 115.12 | I154: 117.38 | J154: 119.82 | K154: 114.95 | L154: 110.25 | M154: 2.72214
A155: 145 | B155: FDC | C155: 270.05 | D155: 273.30 | E155: 264.85 | F155: 259.65 | G155: 251.20 | H155: 278.50 | I155: 286.95 | J155: 292.15 | K155: 281.75 | L155: 268.1 | M155: 1.54445
A156: 146 | B156: FEDERALBNK | C156: 97 | D156: 96.43 | E156: 95.57 | F156: 94.13 | G156: 93.27 | H156: 97.87 | I156: 98.73 | J156: 100.17 | K156: 97.3 | L156: 95 | M156: 144.55709
A157: 147 | B157: FINCABLES | C157: 413.6 | D157: 413.67 | E157: 406.93 | F157: 400.27 | G157: 393.53 | H157: 420.33 | I157: 427.07 | J157: 433.73 | K157: 420.4 | L157: 407 | M157: 1.26718
A158: 148 | B158: FINEORG | C158: 4290.1 | D158: 4318.75 | E158: 4187.55 | F158: 4085.00 | G158: 3953.80 | H158: 4421.30 | I158: 4552.50 | J158: 4655.05 | K158: 4449.95 | L158: 4216.2 | M158: 1.35736
A159: 149 | B159: FINPIPE | C159: 152.9 | D159: 151.47 | E159: 148.43 | F159: 143.97 | G159: 140.93 | H159: 155.93 | I159: 158.97 | J159: 163.43 | K159: 154.5 | L159: 147 | M159: 5.00569
A160: 150 | B160: FLUOROCHEM | C160: 2579.75 | D160: 2525.88 | E160: 2436.17 | F160: 2292.58 | G160: 2202.87 | H160: 2669.47 | I160: 2759.18 | J160: 2902.77 | K160: 2615.6 | L160: 2382.3 | M160: 0.60262
A161: 151 | B161: FORTIS | C161: 245.5 | D161: 244.57 | E161: 240.63 | F161: 235.77 | G161: 231.83 | H161: 249.43 | I161: 253.37 | J161: 258.23 | K161: 248.5 | L161: 239.7 | M161: 13.6518
A162: 152 | B162: FRETAIL | C162: 49 | D162: 49.23 | E162: 46.77 | F162: 44.53 | G162: 42.07 | H162: 51.47 | I162: 53.93 | J162: 56.17 | K162: 51.7 | L162: 47 | M162: 160.21207
A163: 153 | B163: FSL | C163: 126.9 | D163: 125.90 | E163: 122.15 | F163: 117.40 | G163: 113.65 | H163: 130.65 | I163: 134.40 | J163: 139.15 | K163: 129.65 | L163: 121.15 | M163: 62.95657
A164: 154 | B164: GAEL | C164: 193.7 | D164: 190.63 | E164: 185.52 | F164: 177.33 | G164: 172.22 | H164: 198.82 | I164: 203.93 | J164: 212.12 | K164: 195.75 | L164: 182.45 | M164: 7.33864
A165: 155 | B165: GAIL | C165: 144.85 | D165: 141.82 | E165: 136.88 | F165: 128.92 | G165: 123.98 | H165: 149.78 | I165: 154.72 | J165: 162.68 | K165: 146.75 | L165: 133.85 | M165: 279.19955
A166: 156 | B166: GALAXYSURF | C166: 2779.75 | D166: 2751.88 | E166: 2705.27 | F166: 2630.78 | G166: 2584.17 | H166: 2826.37 | I166: 2872.98 | J166: 2947.47 | K166: 2798.5 | L166: 2677.4 | M166: 0.09108
A167: 157 | B167: GARFIBRES | C167: 2957.8 | D167: 2926.17 | E167: 2892.33 | F167: 2826.87 | G167: 2793.03 | H167: 2991.63 | I167: 3025.47 | J167: 3090.93 | K167: 2960 | L167: 2860.7 | M167: 0.10709
A168: 158 | B168: GESHIP | C168: 325.4 | D168: 323.20 | E168: 317.20 | F168: 309.00 | G168: 303.00 | H168: 331.40 | I168: 337.40 | J168: 345.60 | K168: 329.2 | L168: 315 | M168: 2.97645
A169: 159 | B169: GICRE | C169: 116.2 | D169: 115.30 | E169: 113.15 | F169: 110.10 | G169: 107.95 | H169: 118.35 | I169: 120.50 | J169: 123.55 | K169: 117.45 | L169: 112.25 | M169: 2.54284
A170: 160 | B170: GILLETTE | C170: 5193.7 | D170: 5165.88 | E170: 5083.62 | F170: 4973.53 | G170: 4891.27 | H170: 5275.97 | I170: 5358.23 | J170: 5468.32 | K170: 5248.15 | L170: 5055.8 | M170: 0.09947
A171: 161 | B171: GLAND | C171: 3263.2 | D171: 3264.90 | E171: 3217.80 | F171: 3172.40 | G171: 3125.30 | H171: 3310.30 | I171: 3357.40 | J171: 3402.80 | K171: 3312 | L171: 3219.5 | M171: 1.48185
A172: 162 | B172: GLAXO | C172: 1519.25 | D172: 1529.35 | E172: 1500.00 | F172: 1480.75 | G172: 1451.40 | H172: 1548.60 | I172: 1577.95 | J172: 1597.20 | K172: 1558.7 | L172: 1510.1 | M172: 0.38297
A173: 163 | B173: GLENMARK | C173: 448.5 | D173: 443.95 | E173: 437.75 | F173: 427.00 | G173: 420.80 | H173: 454.70 | I173: 460.90 | J173: 471.65 | K173: 450.15 | L173: 433.2 | M173: 9.04166
A174: 164 | B174: GMMPFAUDLR | C174: 4372.1 | D174: 4355.03 | E174: 4292.07 | F174: 4212.03 | G174: 4149.07 | H174: 4435.07 | I174: 4498.03 | J174: 4578.07 | K174: 4418 | L174: 4275 | M174: 0.10542
A175: 165 | B175: GMRINFRA | C175: 37.9 | D175: 37.43 | E175: 36.67 | F175: 35.43 | G175: 34.67 | H175: 38.67 | I175: 39.43 | J175: 40.67 | K175: 38.2 | L175: 36.2 | M175: 132.14229
A176: 166 | B176: GNFC | C176: 553 | D176: 548.85 | E176: 541.20 | F176: 529.40 | G176: 521.75 | H176: 560.65 | I176: 568.30 | J176: 580.10 | K176: 556.5 | L176: 537.05 | M176: 21.46387
A177: 167 | B177: GODFRYPHLP | C177: 1023.4 | D177: 1015.27 | E177: 992.13 | F177: 960.87 | G177: 937.73 | H177: 1046.53 | I177: 1069.67 | J177: 1100.93 | K177: 1038.4 | L177: 984 | M177: 0.10839
A178: 168 | B178: GODREJAGRO | C178: 464.35 | D178: 463.72 | E178: 458.18 | F178: 452.02 | G178: 446.48 | H178: 469.88 | I178: 475.42 | J178: 481.58 | K178: 469.25 | L178: 457.55 | M178: 0.64654
A179: 169 | B179: GODREJCP | C179: 767.95 | D179: 762.67 | E179: 747.33 | F179: 726.72 | G179: 711.38 | H179: 783.28 | I179: 798.62 | J179: 819.23 | K179: 778 | L179: 742.05 | M179: 26.44457
A180: 170 | B180: GODREJIND | C180: 519.35 | D180: 524.12 | E180: 513.23 | F180: 507.12 | G180: 496.23 | H180: 530.23 | I180: 541.12 | J180: 547.23 | K180: 535 | L180: 518 | M180: 0.70703
A181: 171 | B181: GODREJPROP | C181: 1502.15 | D181: 1481.62 | E181: 1452.53 | F181: 1402.92 | G181: 1373.83 | H181: 1531.23 | I181: 1560.32 | J181: 1609.93 | K181: 1510.7 | L181: 1432 | M181: 14.40261
A182: 172 | B182: GPPL | C182: 84 | D182: 83.23 | E182: 80.77 | F182: 77.53 | G182: 75.07 | H182: 86.47 | I182: 88.93 | J182: 92.17 | K182: 85.7 | L182: 80 | M182: 2.46637
A183: 173 | B183: GRANULES | C183: 290.7 | D183: 288.78 | E183: 284.82 | F183: 278.93 | G183: 274.97 | H183: 294.67 | I183: 298.63 | J183: 304.52 | K183: 292.75 | L183: 282.9 | M183: 7.96519
A184: 174 | B184: GRAPHITE | C184: 466.95 | D184: 458.58 | E184: 443.37 | F184: 419.78 | G184: 404.57 | H184: 482.17 | I184: 497.38 | J184: 520.97 | K184: 473.8 | L184: 435 | M184: 14.92125
A185: 175 | B185: GRASIM | C185: 1598.5 | D185: 1580.45 | E185: 1556.50 | F185: 1514.50 | G185: 1490.55 | H185: 1622.45 | I185: 1646.40 | J185: 1688.40 | K185: 1604.4 | L185: 1538.45 | M185: 12.12286
A186: 176 | B186: GREAVESCOT | C186: 172.3 | D186: 169.75 | E186: 165.60 | F186: 158.90 | G186: 154.75 | H186: 176.45 | I186: 180.60 | J186: 187.30 | K186: 173.9 | L186: 163.05 | M186: 24.75226
A187: 177 | B187: GRINDWELL | C187: 1606.1 | D187: 1592.97 | E187: 1566.93 | F187: 1527.77 | G187: 1501.73 | H187: 1632.13 | I187: 1658.17 | J187: 1697.33 | K187: 1619 | L187: 1553.8 | M187: 1.42827
A188: 178 | B188: GSFC | C188: 125.45 | D188: 123.65 | E188: 120.60 | F188: 115.75 | G188: 112.70 | H188: 128.50 | I188: 131.55 | J188: 136.40 | K188: 126.7 | L188: 118.8 | M188: 10.70751
A189: 179 | B189: GSPL | C189: 289.5 | D189: 286.07 | E189: 278.13 | F189: 266.77 | G189: 258.83 | H189: 297.43 | I189: 305.37 | J189: 316.73 | K189: 294 | L189: 274.7 | M189: 16.67359
A190: 180 | B190: GUJALKALI | C190: 636.35 | D190: 631.88 | E190: 622.07 | F190: 607.78 | G190: 597.97 | H190: 646.17 | I190: 655.98 | J190: 670.27 | K190: 641.7 | L190: 617.6 | M190: 1.67569
A191: 181 | B191: GUJGASLTD | C191: 583.55 | D191: 585.52 | E191: 576.53 | F191: 569.52 | G191: 560.53 | H191: 592.53 | I191: 601.52 | J191: 608.53 | K191: 594.5 | L191: 578.5 | M191: 19.63284
A192: 182 | B192: HAL | C192: 1387.75 | D192: 1355.35 | E192: 1317.55 | F192: 1247.35 | G192: 1209.55 | H192: 1425.55 | I192: 1463.35 | J192: 1533.55 | K192: 1393.15 | L192: 1285.15 | M192: 7.44337
A193: 183 | B193: HAPPSTMNDS | C193: 977.9 | D193: 972.42 | E193: 956.48 | F193: 935.07 | G193: 919.13 | H193: 993.83 | I193: 1009.77 | J193: 1031.18 | K193: 988.35 | L193: 951 | M193: 3.0153
A194: 184 | B194: HATHWAY | C194: 18.6 | D194: 18.32 | E194: 17.88 | F194: 17.17 | G194: 16.73 | H194: 19.03 | I194: 19.47 | J194: 20.18 | K194: 18.75 | L194: 17.6 | M194: 45.7161
A195: 185 | B195: HATSUN | C195: 1091.6 | D195: 1089.08 | E195: 1073.57 | F195: 1055.53 | G195: 1040.02 | H195: 1107.12 | I195: 1122.63 | J195: 1140.67 | K195: 1104.6 | L195: 1071.05 | M195: 0.12014
A196: 186 | B196: HAVELLS | C196: 1185.7 | D196: 1165.45 | E196: 1139.10 | F196: 1092.50 | G196: 1066.15 | H196: 1212.05 | I196: 1238.40 | J196: 1285.00 | K196: 1191.8 | L196: 1118.85 | M196: 18.13314
A197: 187 | B197: HCLTECH | C197: 1126.95 | D197: 1122.42 | E197: 1111.53 | F197: 1096.12 | G197: 1085.23 | H197: 1137.83 | I197: 1148.72 | J197: 1164.13 | K197: 1133.3 | L197: 1107 | M197: 45.71884
A198: 188 | B198: HDFC | C198: 2364.5 | D198: 2366.77 | E198: 2330.73 | F198: 2296.97 | G198: 2260.93 | H198: 2400.53 | I198: 2436.57 | J198: 2470.33 | K198: 2402.8 | L198: 2333 | M198: 83.6663
A199: 189 | B199: HDFCAMC | C199: 2086.2 | D199: 2077.53 | E199: 2038.67 | F199: 1991.13 | G199: 1952.27 | H199: 2125.07 | I199: 2163.93 | J199: 2211.47 | K199: 2116.4 | L199: 2030 | M199: 2.7855
A200: 190 | B200: HDFCBANK | C200: 1426.25 | D200: 1426.28 | E200: 1414.02 | F200: 1401.78 | G200: 1389.52 | H200: 1438.52 | I200: 1450.78 | J200: 1463.02 | K200: 1438.55 | L200: 1414.05 | M200: 124.40416
A201: 191 | B201: HDFCLIFE | C201: 523.2 | D201: 525.32 | E201: 518.13 | F201: 513.07 | G201: 505.88 | H201: 530.38 | I201: 537.57 | J201: 542.63 | K201: 532.5 | L201: 520.25 | M201: 106.6956
A202: 192 | B202: HEG | C202: 1134.5 | D202: 1165.73 | E202: 1093.87 | F202: 1053.23 | G202: 981.37 | H202: 1206.37 | I202: 1278.23 | J202: 1318.87 | K202: 1237.6 | L202: 1125.1 | M202: 12.18875
A203: 193 | B203: HEIDELBERG | C203: 186.1 | D203: 186.07 | E203: 182.13 | F203: 178.17 | G203: 174.23 | H203: 190.03 | I203: 193.97 | J203: 197.93 | K203: 190 | L203: 182.1 | M203: 2.09607
A204: 194 | B204: HEMIPROP | C204: 108.5 | D204: 106.70 | E204: 104.40 | F204: 100.30 | G204: 98.00 | H204: 110.80 | I204: 113.10 | J204: 117.20 | K204: 109 | L204: 102.6 | M204: 9.03915
A205: 195 | B205: HEROMOTOCO | C205: 2535.45 | D205: 2523.82 | E205: 2500.68 | F205: 2465.92 | G205: 2442.78 | H205: 2558.58 | I205: 2581.72 | J205: 2616.48 | K205: 2546.95 | L205: 2489.05 | M205: 10.0862
A206: 196 | B206: HFCL | C206: 72.75 | D206: 71.37 | E206: 68.48 | F206: 64.22 | G206: 61.33 | H206: 75.63 | I206: 78.52 | J206: 82.78 | K206: 74.25 | L206: 67.1 | M206: 168.68265
... 319 more rows

Sheet Bulk Deals
E6: Back To Main Page
A7: Subject : | B7: BULK DEAL | D7: =Main!B10 -> 2022-03-02
A9: Date | B9: Scrip code | C9: Scrip Name | D9: Client Name | E9: Buy / Sell | F9: Quantity Traded | G9: Trade Price / Wt.Avg.trade price | H9: Exchange
A10: 2022-02-28 | B10: 539773 | C10: ADVIKCA | D10: PARESH DHIRAJLAL SHAH | E10: BUY | F10: 300,000 | G10: 3.2 | H10: BSE
A11: 2022-02-28 | B11: 539773 | C11: ADVIKCA | D11: PARESH DHIRAJLAL SHAH | E11: SELL | F11: 13,606 | G11: 3.2 | H11: BSE
A12: 2022-02-28 | B12: 542579 | C12: AGOL | D12: NSI INFINIUM GLOBAL PRIVATE LIMITED | E12: SELL | F12: 200,000 | G12: 65.06 | H12: BSE
A13: 2022-02-28 | B13: 540718 | C13: AKM | D13: GYAN CHAND JAIN | E13: BUY | F13: 42,000 | G13: 31.24 | H13: BSE
A14: 2022-02-28 | B14: 540718 | C14: AKM | D14: GYAN CHAND JAIN | E14: SELL | F14: 36,000 | G14: 25.5 | H14: BSE
A15: 2022-02-28 | B15: 540718 | C15: AKM | D15: SHIVAM VERMA | E15: BUY | F15: 36,000 | G15: 25.5 | H15: BSE
A16: 2022-02-28 | B16: 540718 | C16: AKM | D16: SHIVAM VERMA | E16: SELL | F16: 18,000 | G16: 31.3 | H16: BSE
A17: 2022-02-28 | B17: 532166 | C17: ALKASEC | D17: ALPHA LEON ENTERPRISES LLP | E17: BUY | F17: 150,000 | G17: 0.48 | H17: BSE
A18: 2022-02-28 | B18: 532166 | C18: ALKASEC | D18: ALPHA LEON ENTERPRISES LLP | E18: SELL | F18: 800,000 | G18: 0.48 | H18: BSE
A19: 2022-02-28 | B19: 532166 | C19: ALKASEC | D19: ARUN SHANKAR TIWARI | E19: SELL | F19: 650,000 | G19: 0.48 | H19: BSE
A20: 2022-02-28 | B20: 501270 | C20: ANTARIKSH | D20: VIJAY KUMAR MAKKAR | E20: BUY | F20: 2,001 | G20: 1.22 | H20: BSE
A21: 2022-02-28 | B21: 501270 | C21: ANTARIKSH | D21: SURINDER KUMAR AHUJA | E21: SELL | F21: 2,000 | G21: 1.22 | H21: BSE
A22: 2022-02-28 | B22: 537069 | C22: ARNOLD | D22: KEEMTEE FINANCIAL SERVICES LTD | E22: BUY | F22: 744,500 | G22: 12.05 | H22: BSE
A23: 2022-02-28 | B23: 537069 | C23: ARNOLD | D23: RAUDRAMUKHI COMMERCE PVT LTD | E23: BUY | F23: 791,541 | G23: 12.01 | H23: BSE
A24: 2022-02-28 | B24: 537069 | C24: ARNOLD | D24: L7 HITECH PRIVATE LIMITED | E24: BUY | F24: 1,500,000 | G24: 12 | H24: BSE
A25: 2022-02-28 | B25: 537069 | C25: ARNOLD | D25: NAVRATRI SHARE TRADING PRIVATE LIMITED . | E25: SELL | F25: 3,002,000 | G25: 12 | H25: BSE
A26: 2022-02-28 | B26: 539288 | C26: AVI | D26: VIKHREM PARREKH | E26: SELL | F26: 24,500 | G26: 35.82 | H26: BSE
A27: 2022-02-28 | B27: 540545 | C27: BGJL | D27: ALPHA LEON ENTERPRISES LLP | E27: SELL | F27: 150,000 | G27: 17.43 | H27: BSE
A28: 2022-02-28 | B28: 539405 | C28: DITCO | D28: MEHUL CHANDRAKANT MEHTA | E28: BUY | F28: 20,000 | G28: 19.5 | H28: BSE
A29: 2022-02-28 | B29: 543272 | C29: EASEMYTRIP | D29: NOMURA SINGAPORE LIMITED | E29: BUY | F29: 600,000 | G29: 275 | H29: BSE
A30: 2022-02-28 | B30: 542803 | C30: ELLORATRAD | D30: NNM SECURITIES PVT LTD | E30: BUY | F30: 14,832 | G30: 22.87 | H30: BSE
A31: 2022-02-28 | B31: 542803 | C31: ELLORATRAD | D31: SHREEDA PATODIA | E31: SELL | F31: 12,000 | G31: 22.9 | H31: BSE
A32: 2022-02-28 | B32: 543312 | C32: FOCUS | D32: UNNATI INVESTMENT | E32: SELL | F32: 12,000 | G32: 25.04 | H32: BSE
A33: 2022-02-28 | B33: 539032 | C33: FRASER | D33: VINAY K GUGNANI | E33: SELL | F33: 60,051 | G33: 7.6 | H33: BSE
A34: 2022-02-28 | B34: 540936 | C34: GGL | D34: VISHNU SHANTIBHAI PARMAR | E34: SELL | F34: 78,065 | G34: 12.9 | H34: BSE
A35: 2022-02-28 | B35: 540936 | C35: GGL | D35: YACOOBALI AIYUB MOHAMMED | E35: BUY | F35: 104,845 | G35: 12.71 | H35: BSE
A36: 2022-02-28 | B36: 540936 | C36: GGL | D36: YACOOBALI AIYUB MOHAMMED | E36: SELL | F36: 16,430 | G36: 13.41 | H36: BSE
A37: 2022-02-28 | B37: 540134 | C37: IISL | D37: SRINIVASAN SANGEETHA | E37: SELL | F37: 38,442 | G37: 3.72 | H37: BSE
A38: 2022-02-28 | B38: 540134 | C38: IISL | D38: SUREKHA CHAUDHARY | E38: BUY | F38: 34,553 | G38: 3.72 | H38: BSE
A39: 2022-02-28 | B39: 536709 | C39: INDRENEW | D39: VENKAYAMMA PALADUGU | E39: BUY | F39: 23,000 | G39: 8.26 | H39: BSE
A40: 2022-02-28 | B40: 536709 | C40: INDRENEW | D40: JHANVI ARVINDBHAI SURTI | E40: SELL | F40: 27,170 | G40: 8.26 | H40: BSE
A41: 2022-02-28 | B41: 523467 | C41: JAIMATAG | D41: IDBI BANK LIMITED | E41: SELL | F41: 732,273 | G41: 0.55 | H41: BSE
A42: 2022-02-28 | B42: 532154 | C42: JOHNPHARMA | D42: TOPGAIN FINANCE PRIVATE LIMITED | E42: BUY | F42: 2,700,000 | G42: 1.09 | H42: BSE
A43: 2022-02-28 | B43: 532154 | C43: JOHNPHARMA | D43: TOPGAIN FINANCE PRIVATE LIMITED | E43: SELL | F43: 777,995 | G43: 1.11 | H43: BSE
A44: 2022-02-28 | B44: 535730 | C44: KHOOBSURAT | D44: ALPHA LEON ENTERPRISES LLP | E44: SELL | F44: 1,980,000 | G44: 2.84 | H44: BSE
A45: 2022-02-28 | B45: 535730 | C45: KHOOBSURAT | D45: GLOBE STOCKS AND SECURITIES LTD | E45: SELL | F45: 4,084,457 | G45: 2.84 | H45: BSE
A46: 2022-02-28 | B46: 535730 | C46: KHOOBSURAT | D46: B L IMPEX PRIVATE LIMITED | E46: SELL | F46: 683,035 | G46: 2.84 | H46: BSE
A47: 2022-02-28 | B47: 535730 | C47: KHOOBSURAT | D47: BHAWANI FREIGHT & FORWARDER PVT LTD | E47: SELL | F47: 1,000,000 | G47: 2.84 | H47: BSE
A48: 2022-02-28 | B48: 535730 | C48: KHOOBSURAT | D48: PARESH DHIRAJLAL SHAH | E48: BUY | F48: 150,000 | G48: 2.84 | H48: BSE
A49: 2022-02-28 | B49: 535730 | C49: KHOOBSURAT | D49: PARESH DHIRAJLAL SHAH | E49: SELL | F49: 1,200,000 | G49: 2.84 | H49: BSE
A50: 2022-02-28 | B50: 531176 | C50: MEFCOMCAP | D50: SHALEEN TOSHNIWAL | E50: SELL | F50: 51,000 | G50: 23.75 | H50: BSE
A51: 2022-02-28 | B51: 513721 | C51: MFSINTRCRP | D51: URVASHI UMESHBHAI PATEL | E51: BUY | F51: 29,641 | G51: 53.93 | H51: BSE
A52: 2022-02-28 | B52: 513721 | C52: MFSINTRCRP | D52: KAMLESHKUMARI HANUMANSING RAJPUT | E52: SELL | F52: 100,505 | G52: 54.93 | H52: BSE
A53: 2022-02-28 | B53: 539767 | C53: MNIL | D53: SANJAY VERMA | E53: SELL | F53: 128,000 | G53: 13 | H53: BSE
A54: 2022-02-28 | B54: 539767 | C54: MNIL | D54: SEEMA | E54: BUY | F54: 51,400 | G54: 13 | H54: BSE
A55: 2022-02-28 | B55: 539767 | C55: MNIL | D55: SEEMA | E55: BUY | F55: 63,000 | G55: 13 | H55: BSE
A56: 2022-02-28 | B56: 530557 | C56: NCLRESE | D56: TOPGAIN FINANCE PRIVATE LIMITED | E56: BUY | F56: 2,950,000 | G56: 1.34 | H56: BSE
A57: 2022-02-28 | B57: 530557 | C57: NCLRESE | D57: TOPGAIN FINANCE PRIVATE LIMITED | E57: SELL | F57: 500,000 | G57: 1.43 | H57: BSE
A58: 2022-02-28 | B58: 540243 | C58: NEWLIGHT | D58: VINAY K GUGNANI | E58: SELL | F58: 25,000 | G58: 19.4 | H58: BSE
A59: 2022-02-28 | B59: 504335 | C59: PAZEL | D59: DULCET ADVISORY PRIVATE LIMITED | E59: SELL | F59: 900,365 | G59: 0.54 | H59: BSE
A60: 2022-02-28 | B60: 504335 | C60: PAZEL | D60: RUPAM BISWAS | E60: SELL | F60: 1,008,000 | G60: 0.53 | H60: BSE
A61: 2022-02-28 | B61: 531879 | C61: PIONDIST | D61: PADAM CHAND JAIN | E61: BUY | F61: 89,763 | G61: 146 | H61: BSE
A62: 2022-02-28 | B62: 531879 | C62: PIONDIST | D62: PADAM CHAND JAIN | E62: SELL | F62: 263 | G62: 177 | H62: BSE
A63: 2022-02-28 | B63: 531879 | C63: PIONDIST | D63: TANVEER VINIMAY PVT LTD | E63: SELL | F63: 90,010 | G63: 146.05 | H63: BSE
A64: 2022-02-28 | B64: 540727 | C64: POOJA | D64: EPITOME TRADING AND INVESTMENTS | E64: SELL | F64: 58,849 | G64: 37.05 | H64: BSE
A65: 2022-02-28 | B65: 502448 | C65: ROLLT | D65: WHEELERS DEVELOPERS PRIVATE LIMITED | E65: SELL | F65: 2,500,000 | G65: 2.45 | H65: BSE
A66: 2022-02-28 | B66: 502448 | C66: ROLLT | D66: PADMAVATI HOLDINGS PVT LTD | E66: BUY | F66: 2,493,479 | G66: 2.45 | H66: BSE
A67: 2022-02-28 | B67: 539833 | C67: SICLTD | D67: MADHU RATHI | E67: SELL | F67: 395,000 | G67: 0.72 | H67: BSE
A68: 2022-02-28 | B68: 539833 | C68: SICLTD | D68: ALPHA LEON ENTERPRISES LLP | E68: BUY | F68: 400,000 | G68: 0.72 | H68: BSE
A69: 2022-02-28 | B69: 539833 | C69: SICLTD | D69: ALPHA LEON ENTERPRISES LLP | E69: SELL | F69: 699,540 | G69: 0.72 | H69: BSE
A70: 2022-02-28 | B70: 541701 | C70: SUPERSHAKT | D70: TIA ENTERPRISES PRIVATE LIMITED | E70: SELL | F70: 175,500 | G70: 305.03 | H70: BSE
A71: 2022-02-28 | B71: 541701 | C71: SUPERSHAKT | D71: SK GROWTH FUND PRIVATE LIMITED | E71: BUY | F71: 120,000 | G71: 305 | H71: BSE
A72: 2022-02-28 | B72: 531205 | C72: TINEAGRO | D72: KAUPILKUMAR HASMUKHBHAI SHAH | E72: SELL | F72: 30,000 | G72: 46.2 | H72: BSE
A73: 2022-02-28 | B73: 531205 | C73: TINEAGRO | D73: NAYAN MAHENDRABHAI THAKKAR | E73: SELL | F73: 30,000 | G73: 46.2 | H73: BSE
A74: 2022-02-28 | B74: 531205 | C74: TINEAGRO | D74: DHAVAL GIRISHBHAI PARMAR | E74: BUY | F74: 30,007 | G74: 46.2 | H74: BSE
A75: 2022-02-28 | B75: 531205 | C75: TINEAGRO | D75: DHAVAL GIRISHBHAI PARMAR | E75: SELL | F75: 30,007 | G75: 46.2 | H75: BSE
A76: 2022-02-28 | B76: 531644 | C76: TOKYOFIN | D76: DHARMIL HARESH SHAH | E76: BUY | F76: 42,143 | G76: 10.04 | H76: BSE
A77: 2022-02-28 | B77: 531644 | C77: TOKYOFIN | D77: KESHAVJI BHACHHU GADA | E77: SELL | F77: 69,309 | G77: 10.06 | H77: BSE
A78: 2022-02-28 | B78: 542923 | C78: TRANWAY | D78: VIVEKKAUL | E78: BUY | F78: 20,000 | G78: 16.98 | H78: BSE
A79: 2022-02-28 | B79: 542923 | C79: TRANWAY | D79: VIVEKKAUL | E79: SELL | F79: 120,000 | G79: 15.53 | H79: BSE
A80: 2022-02-28 | B80: BIRLACABLE | C80: Birla Cable Limited | D80: XTX MARKETS LLP | E80: BUY | F80: 158,243 | G80: 146.12 | H80: NSE
A81: 2022-02-28 | B81: BIRLACABLE | C81: Birla Cable Limited | D81: QE SECURITIES | E81: BUY | F81: 150,593 | G81: 146.34 | H81: NSE
A82: 2022-02-28 | B82: BIRLACABLE | C82: Birla Cable Limited | D82: GRAVITON RESEARCH CAPITAL LLP | E82: BUY | F82: 251,901 | G82: 146.22 | H82: NSE
A83: 2022-02-28 | B83: BRIGHT | C83: Bright Solar Limited | D83: SUDEEP SONI | E83: BUY | F83: 126,000 | G83: 6.16 | H83: NSE
A84: 2022-02-28 | B84: GIRIRAJ | C84: Giriraj Civil Devp Ltd | D84: SHRIPAL KANTILAL SHAH | E84: BUY | F84: 25,200 | G84: 99 | H84: NSE
A85: 2022-02-28 | B85: JALAN | C85: Jalan Transolu. India Ltd | D85: MAHABIR TRADEVENTURES LLP | E85: BUY | F85: 186,000 | G85: 13.86 | H85: NSE
A86: 2022-02-28 | B86: ORIENTBELL | C86: Orient Bell Limited | D86: XTX MARKETS LLP | E86: BUY | F86: 83,135 | G86: 627.2 | H86: NSE
A87: 2022-02-28 | B87: RICHA | C87: Richa Info Systems Ltd | D87: ANSU INVESTMENT | E87: BUY | F87: 44,000 | G87: 92.05 | H87: NSE
A88: 2022-02-28 | B88: SRPL | C88: Shree Ram Proteins Ltd. | D88: KANTESH KAUDIKI ESHWARAPPA | E88: BUY | F88: 122,000 | G88: 118.9 | H88: NSE
A89: 2022-02-28 | B89: VAISHALI | C89: Vaishali Pharma Limited | D89: H S SHAH | E89: BUY | F89: 28,081 | G89: 59.64 | H89: NSE
A90: 2022-02-28 | B90: VAISHALI | C90: Vaishali Pharma Limited | D90: GRAVITON RESEARCH CAPITAL LLP | E90: BUY | F90: 130,949 | G90: 58.46 | H90: NSE
A91: 2022-02-28 | B91: VAISHALI | C91: Vaishali Pharma Limited | D91: SHAH JOLLY ANKITBHAI | E91: BUY | F91: 92,985 | G91: 55.39 | H91: NSE
A92: 2022-02-28 | B92: VAISHALI | C92: Vaishali Pharma Limited | D92: QE SECURITIES | E92: BUY | F92: 54,170 | G92: 57.56 | H92: NSE
A93: 2022-02-28 | B93: VAISHALI | C93: Vaishali Pharma Limited | D93: XTX MARKETS LLP | E93: BUY | F93: 133,744 | G93: 57.61 | H93: NSE
A94: 2022-02-28 | B94: VISHWARAJ | C94: Vishwaraj Sugar Ind Ltd | D94: OLGA TRADING PRIVATE LIMITED | E94: BUY | F94: 1,213,355 | G94: 20.77 | H94: NSE
A95: 2022-02-28 | B95: VISHWARAJ | C95: Vishwaraj Sugar Ind Ltd | D95: SIDDAPPA VEERAPPA HAGARAGI | E95: BUY | F95: 90,396 | G95: 20.95 | H95: NSE
A96: 2022-02-28 | B96: BIRLACABLE | C96: Birla Cable Limited | D96: QE SECURITIES | E96: SELL | F96: 152,707 | G96: 145.86 | H96: NSE
A97: 2022-02-28 | B97: BIRLACABLE | C97: Birla Cable Limited | D97: XTX MARKETS LLP | E97: SELL | F97: 154,247 | G97: 146.74 | H97: NSE
A98: 2022-02-28 | B98: BIRLACABLE | C98: Birla Cable Limited | D98: GRAVITON RESEARCH CAPITAL LLP | E98: SELL | F98: 251,901 | G98: 146.13 | H98: NSE
A99: 2022-02-28 | B99: BRIGHT | C99: Bright Solar Limited | D99: PIYUSHKUMAR THUMAR | E99: SELL | F99: 258,000 | G99: 6.06 | H99: NSE
A100: 2022-02-28 | B100: GIRIRAJ | C100: Giriraj Civil Devp Ltd | D100: NOPEA CAPITAL SERVICES PRIVATE LIMITED | E100: SELL | F100: 25,200 | G100: 99 | H100: NSE
A101: 2022-02-28 | B101: JALAN | C101: Jalan Transolu. India Ltd | D101: MEENA JALAN | E101: SELL | F101: 75,000 | G101: 13.89 | H101: NSE
A102: 2022-02-28 | B102: JALAN | C102: Jalan Transolu. India Ltd | D102: RITU JALAN | E102: SELL | F102: 108,000 | G102: 13.84 | H102: NSE
A103: 2022-02-28 | B103: KOTYARK | C103: Kotyark Industries Ltd | D103: BEELINE MERCHANT BANKING PRIVATE LIMITED | E103: SELL | F103: 80,000 | G103: 255.63 | H103: NSE
A104: 2022-02-28 | B104: ORIENTBELL | C104: Orient Bell Limited | D104: XTX MARKETS LLP | E104: SELL | F104: 82,878 | G104: 629.7 | H104: NSE
A105: 2022-02-28 | B105: SRPL | C105: Shree Ram Proteins Ltd. | D105: MANISHA UDAY SINGALA | E105: SELL | F105: 150,000 | G105: 118.9 | H105: NSE
A106: 2022-02-28 | B106: SRPL | C106: Shree Ram Proteins Ltd. | D106: UDAY VINODRAI SINGALA | E106: SELL | F106: 139,969 | G106: 118.9 | H106: NSE
A107: 2022-02-28 | B107: SRPL | C107: Shree Ram Proteins Ltd. | D107: BHIMANI MANSUKHBHAI LIMBABHAI | E107: SELL | F107: 571,500 | G107: 118.9 | H107: NSE
A108: 2022-02-28 | B108: SRPL | C108: Shree Ram Proteins Ltd. | D108: CHUDASAMA JAYSHREEBA NAVGHANSINH | E108: SELL | F108: 170,000 | G108: 118.9 | H108: NSE
A109: 2022-02-28 | B109: VAISHALI | C109: Vaishali Pharma Limited | D109: QE SECURITIES | E109: SELL | F109: 54,170 | G109: 57.34 | H109: NSE
A110: 2022-02-28 | B110: VAISHALI | C110: Vaishali Pharma Limited | D110: GRAVITON RESEARCH CAPITAL LLP | E110: SELL | F110: 130,949 | G110: 57.98 | H110: NSE
A111: 2022-02-28 | B111: VAISHALI | C111: Vaishali Pharma Limited | D111: H S SHAH | E111: SELL | F111: 75,670 | G111: 60.07 | H111: NSE
A112: 2022-02-28 | B112: VAISHALI | C112: Vaishali Pharma Limited | D112: VIKRAMKUMAR KARANRAJ SAKARIA HUF DAKSH CORPORATION | E112: SELL | F112: 109,000 | G112: 58.4 | H112: NSE
A113: 2022-02-28 | B113: VAISHALI | C113: Vaishali Pharma Limited | D113: XTX MARKETS LLP | E113: SELL | F113: 136,574 | G113: 57.7 | H113: NSE
A114: 2022-02-28 | B114: VAISHALI | C114: Vaishali Pharma Limited | D114: SHAH JOLLY ANKITBHAI | E114: SELL | F114: 92,985 | G114: 58.19 | H114: NSE
A115: 2022-02-28 | B115: VISHWARAJ | C115: Vishwaraj Sugar Ind Ltd | D115: SIDDAPPA VEERAPPA HAGARAGI | E115: SELL | F115: 1,531,716 | G115: 20.68 | H115: NSE
A116: 2022-02-28 | B116: VISHWARAJ | C116: Vishwaraj Sugar Ind Ltd | D116: RAMESH BHANDAPPA MUNNOLI | E116: SELL | F116: 955,402 | G116: 20.98 | H116: NSE
A117: 2022-02-28 | B117: VISHWARAJ | C117: Vishwaraj Sugar Ind Ltd | D117: OLGA TRADING PRIVATE LIMITED | E117: SELL | F117: 1,281,355 | G117: 20.83 | H117: NSE

Sheet Call Tracker (Equity & F&O)
M5: Back To Main Page
A6: Retail Research Technical Calls & Fundamental Performance Report for the month of Feb-2022
M7: =Main!B10 -> 2022-03-02
B8: Positional Call
A9: Sr.no | B9: Date | D9: Company | E9: Rec | F9: Rec Price | G9: Stop Loss*** | H9: Call Closed At | I9: Target | J9: Remark | K9: Profit / Loss per Share | L9: All charges | M9: Net Gain / Loss % | N9: Status | O9: Closed Date | P9: Market Closing Price
A10: 1 | B10: 2022-01-21 | D10: HCLTECH | E10: Buy | F10: 1150-1170 | G10: 1090 | I10: 1250-1300 | J10: Open | P10: =VLOOKUP(D10,'MidCap Intra'!B55:C544,2,0) -> 1126.95 | R10: H
A11: 2 | B11: 2022-01-21 | D11: TCS | E11: Buy | F11: 3775 | G11: 3590 | H11: 3,590.00 | I11: 4000-4100 | J11: Loss of Rs.185/- | K11: =H11-F11 -> -185 | L11: =(F11*-0.7)/100 -> -26.43 | M11: =(K11+L11)/F11 -> -5.60% | N11: Unsuccessful | O11: 2022-02-23 | R11: H
A12: 3 | B12: 2022-01-25 | D12: TATACOMM | E12: Buy | F12: 1255 | G12: 1190 | H12: 1,327.50 | I12: 1350-1400 | J12: Profit of Rs.72.5/- | K12: =H12-F12 -> 72.5 | L12: =(F12*-0.7)/100 -> -8.79 | M12: =(K12+L12)/F12 -> 5.08% | N12: Successful | O12: 2022-02-03 | R12: H
A13: 4 | B13: 2022-01-25 | D13: HDFC | E13: Buy | F13: 2500 | G13: 2340 | H13: 2,595.00 | I13: 2700-2800 | J13: Profit of Rs.95/- | K13: =H13-F13 -> 95 | L13: =(F13*-0.7)/100 -> -17.50 | M13: =(K13+L13)/F13 -> 3.10% | N13: Successful | O13: 2022-02-01 | R13: H
A14: 5 | B14: 2022-01-25 | D14: CARBORUNIV | E14: Buy | F14: 855 | G14: 815 | H14: 905.00 | I14: 900-930 | J14: Profit of Rs.50/- | K14: =H14-F14 -> 50 | L14: =(F14*-0.7)/100 -> -5.99 | M14: =(K14+L14)/F14 -> 5.15% | N14: Successful | O14: 2022-02-04 | R14: H
A15: 6 | B15: 2022-01-25 | D15: TRENT | E15: Buy | F15: 1070 | G15: 995 | H15: 1,115.00 | I15: 1150-1200 | J15: Part Profit of Rs.45/- | K15: 45 | L15: -7.49 | M15: 3.51% | N15: Successful | O15: 2022-02-28 | P15: =VLOOKUP(D15,'MidCap Intra'!B60:C549,2,0) -> 1108.10 | R15: H
A16: 7 | B16: 2022-01-27 | D16: SRF | E16: Buy | F16: 2360 | G16: 2200 | H16: 2,505.00 | I16: 2550-2650 | J16: Profit of Rs.145/- | K16: =H16-F16 -> 145 | L16: =(F16*-0.7)/100 -> -16.52 | M16: =(K16+L16)/F16 -> 5.44% | N16: Successful | O16: 2022-02-07 | R16: N
A17: 8 | B17: 2022-01-28 | D17: INDIGO | E17: Buy | F17: 1860 | G17: 1695 | H17: 1,900.00 | I17: 2050-2150 | J17: Profit of Rs.40/- | K17: 40 | L17: -13.02 | M17: 1.45% | N17: Successful | O17: 2022-02-01 | R17: H
A18: 9 | B18: 2022-02-03 | D18: APOLLOTYRE | E18: Buy | F18: 223.5 | G18: 210 | H18: 210.00 | I18: 240-250 | J18: Loss of Rs.13.5/- | K18: -13.5 | L18: -1.56 | M18: -6.74% | N18: Unsuccessful | O18: 2022-02-18 | R18: N
A19: 10 | B19: 2022-02-07 | D19: SUMICHEM | E19: Buy | F19: 412.5 | G19: 387 | H19: 387.00 | I19: 440-460 | J19: Loss of Rs.25.5/- | K19: =H19-F19 -> -25.5 | L19: =(F19*-0.7)/100 -> -2.89 | M19: =(K19+L19)/F19 -> -6.88% | N19: Unsuccessful | O19: 2022-02-17 | R19: H
A20: 11 | B20: 2022-02-09 | D20: REDINGTON | E20: Buy | F20: 162.5 | G20: 149 | H20: 177.00 | I20: 180-190 | J20: Profit of Rs.14.5/- | K20: =H20-F20 -> 14.5 | L20: =(F20*-0.7)/100 -> -1.14 | M20: =(K20+L20)/F20 -> 8.22% | N20: Successful | O20: 2022-02-10 | R20: H
A21: 12 | B21: 2022-02-11 | D21: REDINGTON | E21: Buy | F21: 169.5 | G21: 156 | H21: 156.00 | I21: 185-200 | J21: Loss of Rs.13.5/- | K21: -13.5 | L21: -1.19 | M21: -8.66% | N21: Unsuccessful | O21: 2022-02-23 | R21: H
A22: 13 | B22: 2022-02-11 | D22: CARBORUNIV | E22: Buy | F22: 845-850 | G22: 798 | I22: 920-960 | J22: Open | P22: =VLOOKUP(D22,'MidCap Intra'!B5:C558,2,0) -> 804.55 | R22: H
A23: 14 | B23: 2022-02-15 | D23: CROMPTON | E23: Buy | F23: 377 | G23: 354 | H23: 399.50 | I23: 410-420 | J23: Profit of Rs.22.5/- | K23: =H23-F23 -> 22.5 | L23: =(F23*-0.7)/100 -> -2.64 | M23: =(K23+L23)/F23 -> 5.27% | N23: Successful | O23: 2022-02-16 | R23: H
A24: 15 | B24: 2022-02-21 | D24: HINDUNILVR | E24: Buy | F24: 2295 | G24: 2175 | H24: 2,175.00 | I24: 2450-2550 | J24: Loss of Rs.120/- | K24: -120 | L24: -16.07 | M24: -5.93% | N24: Unsuccessful | O24: 2022-02-28 | R24: H
A25: 16 | B25: 2022-02-22 | D25: APOLLOTYRE | E25: Buy | F25: 196 | G25: 184 | H25: 184.00 | I25: 215-220 | J25: Loss of Rs.12/- | K25: =H25-F25 -> -12 | L25: =(F25*-0.7)/100 -> -1.37 | M25: =(K25+L25)/F25 -> -6.82% | N25: Unsuccessful | O25: 2022-02-24 | R25: H
A26: 17 | B26: 2022-02-28 | D26: REDINGTON | E26: Buy | F26: 148 | G26: 138 | H26: 154.50 | I26: 160-170 | J26: Part Profit of Rs.6.5/- | K26: 6.5 | L26: =(F26*-0.07)/100 -> -0.10 | M26: 4.32% | N26: Successful | O26: 2022-02-28 | P26: =VLOOKUP(D26,'MidCap Intra'!B9:C562,2,0) -> 153.25
A27: 18 | B27: 2022-02-28 | D27: HDFC | E27: Buy | F27: 2350-2370 | G27: 2230 | I27: 2500-2600 | J27: Open | P27: =VLOOKUP(D27,'MidCap Intra'!B10:C563,2,0) -> 2364.5
A28: 19 | B28: 2022-02-28 | D28: ICICIBANK | E28: Buy | F28: 715 | G28: 675 | H28: 738.50 | I28: 750-780 | J28: Part Profit of Rs.23.5/- | K28: =H28-F28 -> 23.5 | L28: =(F28*-0.07)/100 -> -0.50 | M28: =(K28+L28)/F28 -> 3.22% | N28: Successful | O28: 2022-02-28 | P28: =VLOOKUP(D28,'MidCap Intra'!B11:C564,2,0) -> 742.70
A29: 20 | B29: 2022-02-28 | D29: AARTIIND | E29: Buy | F29: 920-930 | G29: 860 | I29: 1000-1050 | J29: Open | P29: =VLOOKUP(D29,'MidCap Intra'!B12:C565,2,0) -> 926.15
A33: CLBS = Closing Basis ***
A34: Dividend adjusted <> | F34: Reinitiated $
A35: Part book {} | D35: s | F35: Revised stoploss #
B37: Momentum Call
A38: Sr.no | B38: Date | D38: Company | E38: Rec | F38: Rec Price | G38: Stop Loss | H38: Call Closed At | I38: Target | J38: Remark | K38: Profit / Loss per Share/Lot | L38: All charges | M38: Net Gain / Loss % | N38: Status | O38: Closed Date
A39: 1 | B39: 2022-01-25 | D39: AVANTIFEED | E39: Buy | F39: 615 | G39: 595 | H39: 595 | I39: 645-655 | J39: Loss of Rs.20/- | K39: =H39-F39 -> -20 | L39: =(F39*-0.7)/100 -> -4.31 | M39: =(K39+L39)/F39 -> -3.95% | N39: Unsuccessful | O39: 2022-02-04 | R39: N
A40: 2 | B40: 2022-01-28 | D40: PNB | E40: Buy | F40: 41.15 | G40: 39.9 | H40: 42.7 | I40: 43-44 | J40: Profit of Rs.1.55/- | K40: =H40-F40 -> 1.55 | L40: =(F40*-0.7)/100 -> -0.29 | M40: =(K40+L40)/F40 -> 3.07% | N40: Successful | O40: 2022-02-02 | R40: H
A41: 3 | B41: 2022-02-01 | D41: LT | E41: Buy | F41: 1955 | G41: 1880 | H41: 1997.5 | I41: 2050-2100 | J41: Profit of Rs.42.5/- | K41: =H41-F41 -> 42.5 | L41: =(F41*-0.07)/100 -> -1.37 | M41: =(K41+L41)/F41 -> 2.10% | N41: Successful | O41: 2022-02-01 | R41: H
A42: 4 | B42: 2022-02-01 | D42: IRCTC | E42: Buy | F42: 863.5 | G42: 839 | H42: 839 | I42: 900-920 | J42: Loss of Rs.24.50/- | K42: -24.5 | L42: =(F42*-0.7)/100 -> -6.04 | M42: -3.54% | N42: Unsuccessful | O42: 2022-02-07 | R42: H
A43: 5 | B43: 2022-02-01 | D43: AMBUJACEM | E43: Buy | F43: 374 | G43: 364 | H43: 385 | I43: 395-405 | J43: Profit of Rs.11/- | K43: =H43-F43 -> 11 | L43: =(F43*-0.7)/100 -> -2.62 | M43: =(K43+L43)/F43 -> 2.24% | N43: Successful | O43: 2022-02-02 | R43: H
A44: 6 | B44: 2022-02-01 | D44: HINDCOPPER | E44: Buy | F44: 126.5 | G44: 122 | H44: 130.25 | I44: 134-140 | J44: Profit of Rs.3.75/- | K44: =H44-F44 -> 3.75 | L44: =(F44*-0.7)/100 -> -0.89 | M44: =(K44+L44)/F44 -> 2.26% | N44: Successful | O44: 2022-02-02 | R44: N
A45: 7 | B45: 2022-02-01 | D45: JKCEMENT | E45: Buy | F45: 3357.5 | G45: 3250 | H45: 3250 | I45: 3500-3550 | J45: Loss of Rs.107.50/- | K45: -107.5 | L45: =(F45*-0.7)/100 -> -23.50 | M45: -3.90% | N45: Unsuccessful | O45: 2022-02-11 | R45: N
A46: 8 | B46: 2022-02-03 | D46: APOLLOTYRE | E46: Buy | F46: 219.5 | G46: 213.5 | H46: 226 | I46: 228-234 | J46: Profit of Rs.6.5/- | K46: =H46-F46 -> 6.5 | L46: =(F46*-0.07)/100 -> -0.15 | M46: =(K46+L46)/F46 -> 2.89% | N46: Successful | O46: 2022-02-03 | R46: N
A47: 9 | B47: 2022-02-03 | D47: LT | E47: Buy | F47: 1952.5 | G47: 1890 | H47: 1890 | I47: 2030-2060 | J47: Loss of Rs.62.50/- | K47: -62.5 | L47: =(F47*-0.7)/100 -> -13.67 | M47: -3.90% | N47: Unsuccessful | O47: 2022-02-11 | R47: H
A48: 10 | B48: 2022-02-07 | D48: MAXHEALTH | E48: Buy | F48: 348 | G48: 338 | H48: 358.5 | I48: 375-380 | J48: Profit of Rs.10.5/- | K48: =H48-F48 -> 10.5 | L48: -2.44 | M48: =(K48+L48)/F48 -> 2.32% | N48: Successful | O48: 2022-02-08 | R48: H
A49: 11 | B49: 2022-02-09 | D49: MASTEK | E49: Buy | F49: 2675 | G49: 2590 | H49: 2590 | I49: 2800-2850 | J49: Loss of Rs.85/- | K49: -85 | L49: -18.73 | M49: -3.88% | N49: Unsuccessful | O49: 2022-02-11 | R49: H
A50: 12 | B50: 2022-02-09 | D50: MAXHEALTH | E50: Buy | F50: 361.5 | G50: 349 | H50: 372.5 | I50: 375-385 | J50: Profit of Rs.11/- | K50: =H50-F50 -> 11 | L50: -2.53 | M50: =(K50+L50)/F50 -> 2.34% | N50: Successful | O50: 2022-02-10 | R50: H
A51: 13 | B51: 2022-02-10 | D51: TATACHEM | E51: Buy | F51: 967.5 | G51: 940 | H51: 940 | I51: 1010-1030 | J51: Loss of Rs.27.50/- | K51: -27.5 | L51: -6.77 | M51: -3.54% | N51: Unsuccessful | O51: 2022-02-14 | R51: N
A52: 14 | B52: 2022-02-11 | D52: SBILIFE | E52: Buy | F52: 1132.5 | G52: 1095 | H52: 1095 | I52: 1190-1200 | J52: Loss of Rs.37.50/- | K52: =H52-F52 -> -37.5 | L52: -7.93 | M52: =(K52+L52)/F52 -> -4.01% | N52: Unsuccessful | O52: 2022-02-24 | R52: H
A53: 15 | B53: 2022-02-11 | D53: SUPREMEIND | E53: Buy | F53: 2003 | G53: 1940 | H53: 1940 | I53: 2080-2100 | J53: Loss of Rs.63/- | K53: =H53-F53 -> -63 | L53: -14.02 | M53: =(K53+L53)/F53 -> -3.85% | N53: Unsuccessful | O53: 2022-02-14 | R53: H
A54: 16 | B54: 2022-02-11 | D54: DHANUKA | E54: Buy | F54: 761 | G54: 735 | H54: 735 | I54: 800-825 | J54: Loss of Rs.26/- | K54: -26 | L54: -5.33 | M54: -4.12% | N54: Unsuccessful | O54: 2022-02-14 | R54: N
A55: 17 | B55: 2022-02-15 | D55: TATACOMM | E55: Buy | F55: 1212.5 | G55: 1180 | H55: 1240 | I55: 1260-1300 | J55: Profit of Rs.27.5/- | K55: 27.5 | L55: =(F55*-0.07)/100 -> -0.85 | M55: 2.20% | N55: Successful | O55: 2022-02-15 | R55: H
A56: 18 | B56: 2022-02-15 | D56: TATASTEEL | E56: Buy | F56: 1184 | G56: 1144 | H56: 1211 | I56: 1250 | J56: Profit of Rs.27/- | K56: =H56-F56 -> 27 | L56: -0.83 | M56: =(K56+L56)/F56 -> 2.21% | N56: Successful | O56: 2022-02-15 | R56: H
A57: 19 | B57: 2022-02-21 | D57: MAXHEALTH | E57: Buy | F57: 364.5 | G57: 354 | H57: 372 | I57: 380-385 | J57: Profit of Rs.7.5/- | K57: =H57-F57 -> 7.5 | L57: -0.26 | M57: =(K57+L57)/F57 -> 1.99% | N57: Successful | O57: 2022-02-21 | R57: H
A58: 20 | B58: 2022-02-22 | D58: MAXHEALTH | E58: Buy | F58: 362 | G58: 354 | H58: 369.5 | I58: 380-385 | J58: Profit of Rs.7.5/- | K58: =H58-F58 -> 7.5 | L58: -0.25 | M58: =(K58+L58)/F58 -> 2.00% | N58: Successful | O58: 2022-02-22 | R58: H
A59: 21 | B59: 2022-02-24 | D59: MAXHEALTH | E59: Buy | F59: 356.5 | G59: 348 | H59: 348 | I59: 370-380 | J59: Loss of Rs.8.5/- | K59: -8.5 | L59: -0.25 | M59: -2.45% | N59: Unsuccessful | O59: 2022-02-24 | R59: H
A60: 22 | B60: 2022-02-25 | D60: PNB | E60: Sell | F60: 34.85 | G60: 36 | H60: 34.5 | I60: 33.5-33 | J60: Profit of Rs.0.35/- | K60: =F60-H60 -> 0.35 | L60: -0.02 | M60: 0.93% | N60: Successful | O60: 2022-02-25
A61: 23 | B61: 2022-02-25 | D61: BHEL | E61: Sell | F61: 48.15 | G61: 49.7 | H61: 47.8 | I61: 46-45 | J61: Profit of Rs.0.35/- | K61: =F61-H61 -> 0.35 | L61: -0.03 | M61: 0.66% | N61: Successful | O61: 2022-02-25
A62: 24 | B62: 2022-02-25 | D62: CROMPTON | E62: Buy | F62: 414 | G62: 400 | H62: 418 | I62: 430-440 | J62: Profit of Rs.4/- | K62: =H62-F62 -> 4 | L62: -0.29 | M62: =(K62+L62)/F62 -> 0.90% | N62: Successful | O62: 2022-02-25
A63: 25 | B63: 2022-02-28 | D63: ROUTE | E63: Buy | F63: 1465 | G63: 1418 | H63: 1505 | I63: 1500-1520 | J63: Profit of Rs.40/- | K63: =H63-F63 -> 40 | L63: =(F63*-0.07)/100 -> -1.03 | M63: =(K63+L63)/F63 -> 2.66% | N63: Successful | O63: 2022-02-28
A64: 26 | B64: 2022-02-28 | D64: BALKRISIND | E64: Buy | F64: 1810-1815 | G64: 1750 | I64: 1880-1920 | J64: Open
A65: 27 | B65: 2022-02-28 | D65: ASIANPAINT | E65: Buy | F65: 3115 | G65: 3000 | H65: 3185 | I65: 3220-3300 | J65: Profit of Rs.70/- | K65: =H65-F65 -> 70 | L65: =(F65*-0.07)/100 -> -2.18 | M65: =(K65+L65)/F65 -> 2.18% | N65: Successful | O65: 2022-02-28
A68: CLBS = Closing Basis *** | H68: *
A69: Dividend adjusted <> | F69: Reinitiated $
F70: Revised stoploss #
A72: Master Trade High Risk
A73: Sr.no | B73: Date | D73: Company | E73: Rec | F73: Rec Price | G73: Stop Loss | H73: Call Closed At | I73: Target | J73: Remark | K73: Profit / Loss per share | L73: All charges | M73: Gain / Loss per Lot | N73: Lot | O73: Status | P73: Closed Date
A74: 1 | B74: 2022-02-01 | D74: TITAN FEB FUT | E74: Buy | F74: 2414 | G74: 238 | H74: 2380 | I74: 2460-2480 | J74: Loss of Rs.34/- | K74: =H74-F74 -> -34 | L74: =(H74*N74)*0.07% -> 624.75 | M74: =(K74*N74)-L74 -> -13374.8 | N74: 375 | O74: Unsuccessful | P74: 2021-02-01 | R74: H
A75: 2 | B75: 2022-02-03 | D75: HDFCLIFE FEB FUT | E75: Buy | F75: 640 | G75: 630 | H75: 630 | I75: 655-660 | J75: Loss of Rs.10/- | K75: =H75-F75 -> -10 | L75: =(H75*N75)*0.07% -> 485.10 | M75: =(K75*N75)-L75 -> -11485.1 | N75: 1100 | O75: Unsuccessful | P75: 2021-02-04 | R75: H
A76: 3 | B76: 2022-02-03 | D76: SBIN FEB FUT | E76: Buy | F76: 545 | G76: 534 | H76: 534 | I76: 565 | J76: Loss of Rs.6/- | K76: =H76-F76 -> -11.00 | L76: 560.70 | M76: =(-1500*6)-660.7 -> -9660.7 | N76: 1,500.00 | O76: Unsuccessful | P76: 2022-02-04 | R76: H
D77: SBIN 560 CE FEB | E77: Sell | F77: 14.5 | H77: 9.5 | K77: =F77-H77 -> 5.00 | L77: 100.00 | R77: H
A78: 4 | B78: 2022-02-07 | D78: MPHASIS FEB FUT | E78: Buy | F78: 3020 | G78: 2940 | H78: 3080 | I78: 3100-3180 | J78: Profit of Rs.60/- | K78: =H78-F78 -> 60 | L78: =(H78*N78)*0.07% -> 377.30 | M78: =(K78*N78)-L78 -> 10122.7 | N78: 175 | O78: Successful | P78: 2021-02-09 | R78: N
A79: 5 | B79: 2022-02-07 | D79: APOLLOTYRE FEB FUT | E79: Buy | F79: 221 | G79: 216 | H79: 225.5 | I79: 227-230 | J79: Profit of Rs.4.5/- | K79: =H79-F79 -> 4.5 | L79: =(H79*N79)*0.07% -> 394.63 | M79: =(K79*N79)-L79 -> 10855.4 | N79: 2500 | O79: Successful | P79: 2021-02-07 | R79: H
A80: 6 | B80: 2022-02-07 | D80: NIFTY FEB FUT | E80: Buy | F80: 17300 | G80: 17170 | H80: 17170 | I80: 17500 | J80: Loss of Rs.130/- | K80: -130 | L80: 600.95 | M80: -7101.0 | N80: 50 | O80: Unsuccessful | P80: 2021-02-07 | R80: H
A81: 7 | B81: 2022-02-09 | D81: SIEMENS FEB FUT | E81: Buy | F81: 2377.5 | G81: 2325 | H81: 2415 | I81: 2430-2470 | J81: Profit of Rs.37.5/- | K81: =H81-F81 -> 37.5 | L81: =(H81*N81)*0.07% -> 464.89 | M81: =(K81*N81)-L81 -> 9847.6 | N81: 275 | O81: Successful | P81: 2021-02-09 | R81: N
A82: 8 | B82: 2022-02-09 | D82: TATASTEEL FEB FUT | E82: Buy | F82: 1217.5 | G82: 1188 | H82: 1243 | I82: 1260-1280 | J82: Profit of Rs.25.5/- | K82: 25.5 | L82: 369.79 | M82: 10467.7 | N82: 425 | O82: Successful | P82: 2021-02-10 | R82: H
A83: 9 | B83: 2022-02-10 | D83: GSPL FEB FUT | E83: Buy | F83: 305 | G83: 297 | H83: 297 | I83: 313-318 | J83: Loss of Rs.8/- | K83: -8 | L83: 353.43 | M83: -13953.4 | N83: 1700 | O83: Unsuccessful | P83: 2021-02-14 | R83: N
A84: 10 | B84: 2022-02-11 | D84: MPHASIS FEB FUT | E84: Buy | F84: 2980 | G84: 2900 | H84: 3032.5 | I84: 3050-3100 | J84: Profit of Rs.52.50/- | K84: =H84-F84 -> 52.5 | L84: =(H84*N84)*0.07% -> 371.48 | M84: =(K84*N84)-L84 -> 8816.0 | N84: 175 | O84: Successful | P84: 2021-02-11 | R84: N
A85: 11 | B85: 2022-02-11 | D85: APOLLOTYRE FEB FUT | E85: Buy | F85: 220.5 | G85: 215 | H85: 215 | I85: 227-230 | J85: Loss of Rs.5.5/- | K85: -5.5 | L85: 376.25 | M85: -14126.3 | N85: 2500 | O85: Unsuccessful | P85: 2021-02-14 | R85: H
A86: 12 | B86: 2022-02-14 | D86: TATASTEEL FEB FUT | E86: Buy | F86: 1215 | G86: 1188 | H86: 1188 | I86: 1260-1280 | J86: Loss of Rs.27/- | K86: -27 | L86: 353.43 | M86: -11828.4 | N86: 425 | O86: Unsuccessful | P86: 2021-02-14 | R86: H
A87: 13 | B87: 2022-02-14 | D87: SIEMENS FEB FUT | E87: Buy | F87: 2345 | G87: 2295 | H87: 2348 | I87: 2420-2450 | J87: Profit of Rs.3/- | K87: 3 | L87: =(H87*N87)*0.07% -> 451.99 | M87: =(K87*N87)-L87 -> 373.0 | N87: 275 | O87: Neutral | P87: 2021-02-14 | R87: N
A88: 14 | B88: 2022-02-15 | D88: BHARATFORG FEB FUT | E88: Buy | F88: 700 | G88: 683 | H88: 712 | I88: 720-730 | J88: Profit of Rs.12/- | K88: 12 | L88: 373.80 | M88: 8626.2 | N88: 750 | O88: Successful | P88: 2021-02-15 | R88: N
A89: 15 | B89: 2022-02-15 | D89: MPHASIS FEB FUT | E89: Buy | F89: 2945 | G89: 2870 | H89: 2993 | I89: 3000-3040 | J89: Profit of Rs.48/- | K89: =H89-F89 -> 48 | L89: 366.64 | M89: 8033.4 | N89: 175 | O89: Successful | P89: 2021-02-15 | R89: N
A90: 16 | B90: 2022-02-15 | D90: COLPAL FEB FUT | E90: Buy | F90: 1430 | G90: 1395 | H90: 1395 | I90: 1500 | J90: Loss of Rs.35/- | K90: =H90-F90 -> -35 | L90: 341.78 | M90: -12591.8 | N90: 350 | O90: Unsuccessful | P90: 2022-02-22 | R90: N
A91: 17 | B91: 2022-02-15 | D91: TATACONSUM FEB FUT | E91: Buy | F91: 704 | G91: 688 | H91: 708 | I91: 720-730 | J91: Profit of Rs.4/- | K91: =H91-F91 -> 4 | L91: =(H91*N91)*0.07% -> 334.53 | M91: =(K91*N91)-L91 -> 2365.5 | N91: 675 | O91: Successful | P91: 2021-02-17 | R91: H
A92: 18 | B92: 2022-02-15 | D92: HDFC FEB FUT | E92: Buy | F92: 2347 | G92: 2300 | H92: 2375 | I92: 2400-2420 | J92: Profit of Rs.28/- | K92: =H92-F92 -> 28 | L92: =(H92*N92)*0.07% -> 498.75 | M92: =(K92*N92)-L92 -> 7901.3 | N92: 300 | O92: Successful | P92: 2021-02-16 | R92: H
A93: 19 | B93: 2022-02-16 | D93: MPHASIS FEB FUT | E93: Buy | F93: 2995 | G93: 2920 | H93: 3050 | I93: 3070-3120 | J93: Profit of Rs.55/- | K93: =H93-F93 -> 55 | L93: =(H93*N93)*0.07% -> 373.63 | M93: =(K93*N93)-L93 -> 9251.4 | N93: 175 | O93: Successful | P93: 2021-02-16 | R93: N
A94: 20 | B94: 2022-02-16 | D94: ASIANPAINT FEB FUT | E94: Buy | F94: 3250 | G94: 3175 | H94: 3175 | I94: 3350-3400 | J94: Loss of Rs.75/- | K94: -75 | L94: 333.38 | M94: -11583.4 | N94: 150 | O94: Unsuccessful | P94: 2022-02-22 | R94: H
A95: 21 | B95: 2022-02-16 | D95: GSPL FEB FUT | E95: Buy | F95: 292 | G95: 284 | H95: 284 | I95: 300-308 | J95: Loss of Rs.8/- | K95: =H95-F95 -> -8 | L95: =(H95*N95)*0.07% -> 337.96 | M95: =(K95*N95)-L95 -> -13938.0 | N95: 1700 | O95: Unsuccessful | P95: 2021-02-21 | R95: N
A96: 22 | B96: 2022-02-17 | D96: ABBOTINDIA FEB FUT | E96: Buy | F96: 16940 | G96: 16400 | H96: 16400 | I96: 17500-17700 | J96: Loss of Rs.540/- | K96: =H96-F96 -> -540 | L96: =(H96*N96)*0.07% -> 287.00 | M96: =(K96*N96)-L96 -> -13787.0 | N96: 25 | O96: Unsuccessful | P96: 2021-02-18 | R96: H
A97: 23 | B97: 2022-02-17 | D97: BALKRISIND FEB FUT | E97: Buy | F97: 1995 | G97: 1940 | H97: 1940 | I97: 2060-2100 | J97: Loss of Rs.55/- | K97: -55 | L97: 271.60 | M97: -11271.6 | N97: 200 | O97: Unsuccessful | P97: 2021-02-21 | R97: H
A98: 24 | B98: 2022-02-18 | D98: BHARATFORG FEB FUT | E98: Buy | F98: 700 | G98: 683 | H98: 683 | I98: 720-730 | J98: Loss of Rs.17/- | K98: -17 | L98: 358.58 | M98: -13108.6 | N98: 750 | O98: Unsuccessful | P98: 2021-02-21 | R98: N
A99: 25 | B99: 2022-02-18 | D99: TATACHEM FEB FUT | E99: Buy | F99: 901 | G99: 887 | H99: 888 | I99: 915-920 | J99: Loss of Rs.13/- | K99: =H99-F99 -> -13 | L99: =(H99*N99)*0.07% -> 621.60 | M99: =(K99*N99)-L99 -> -13621.6 | N99: 1000 | O99: Unsuccessful | P99: 2021-02-18 | R99: H
A100: 26 | B100: 2022-02-18 | D100: ULTRACEMCO MAR FUT | E100: Buy | F100: 7020 | G100: 6900 | H100: 6900 | I100: 7200-7250 | J100: Loss of Rs.120/- | K100: =H100-F100 -> -120 | L100: =(H100*N100)*0.07% -> 483.00 | M100: =(K100*N100)-L100 -> -12483.0 | N100: 100 | O100: Unsuccessful | P100: 2021-02-21 | R100: H
A101: 27 | B101: 2022-02-21 | D101: HDFCBANK MAR FUT | E101: Buy | F101: 1512.5 | G101: 1488 | H101: 1488 | I101: 1540-1550 | J101: Loss of Rs.24.5/- | K101: =H101-F101 -> -24.5 | L101: =(H101*N101)*0.07% -> 572.88 | M101: =(K101*N101)-L101 -> -14047.9 | N101: 550 | O101: Unsuccessful | P101: 2021-02-24 | R101: H
A102: 28 | B102: 2022-02-23 | D102: BHARATFORG MAR FUT | E102: Buy | F102: 699 | G102: 683 | H102: 714 | I102: 720-730 | J102: Profit of Rs.15/- | K102: =H102-F102 -> 15 | L102: =(H102*N102)*0.07% -> 374.85 | M102: =(K102*N102)-L102 -> 10875.2 | N102: 750 | O102: Successful | P102: 2021-02-23 | R102: N
A103: 29 | B103: 2022-02-25 | D103: MOTHERSUMI MAR FUT | E103: Sell | F103: 151 | G103: 155 | H103: 145 | I103: 140 | J103: Profit of Rs.6/- | K103: =F103-H103 -> 6 | L103: 355.25 | M103: 20644.8 | N103: 3500 | O103: Successful | P103: 2021-02-28
A104: 30 | B104: 2022-02-25 | D104: RELIANCE MAR FUT | E104: Buy | F104: 2294.5 | G104: 2244 | H104: 2331 | I104: 2350-2370 | J104: Profit of Rs.36.5/- | K104: =H104-F104 -> 36.5 | L104: =(H104*N104)*0.07% -> 407.93 | M104: =(K104*N104)-L104 -> 8717.1 | N104: 250 | O104: Successful | P104: 2021-02-28
A105: 31 | B105: 2022-02-28 | D105: HDFCBANK MAR FUT | E105: Buy | F105: 1435-1437 | G105: 1414 | I105: 1470-1480 | J105: Open
A106: 32 | B106: 2022-02-28 | D106: SIEMENS MAR FUT | E106: Buy | F106: 2340-2345 | G106: 2300 | I106: 2400-2450 | J106: Open
A111: Master Trade Medium Risk
A112: Sr.no | B112: Date | D112: Company | E112: Rec | F112: Rec Price | G112: Stop Loss | H112: Call Closed At | I112: Target | J112: Remark | K112: Profit/ Loss per lot | L112: All charges | M112: Gain / Loss per Lot | N112: Lot | O112: Status | P112: Closed Date
A113: 1 | B113: 2022-01-25 | D113: TCS 3860 CE FEB | E113: Buy | F113: 82 | H113: 0 | J113: Loss of Rs.36/- | K113: =H113-F113 -> -82.00 | L113: 100.00 | M113: =(-36*150)-200 -> -5600 | N113: 150 | O113: Unsuccessful | P113: 2022-02-24 | R113: H
D114: TCS 4000 CE FEB | E114: Sell | F114: 46 | H114: 0 | K114: =F114-H114 -> 46.00 | L114: 100.00 | R114: H
A115: 2 | B115: 2022-01-31 | D115: NIFTY 17000 PE 3-FEB | E115: Buy | F115: 107.5 | G115: 60 | H115: 57.5 | I115: 180-200 | J115: Loss of Rs.50/- | K115: =H115-F115 -> -50 | L115: 100.00 | M115: =(K115*N115)-L115 -> -2600.0 | N115: 50 | O115: Unsuccessful | P115: 2021-02-01 | R115: N
A116: 3 | B116: 2022-01-31 | D116: TATACOMM 1400 CE FEB | E116: Buy | F116: 26.5 | G116: 17 | H116: 17 | I116: 38-45 | J116: Loss of Rs.9.5/- | K116: -9.5 | L116: 100.00 | M116: -3900.0 | N116: 400 | O116: Unsuccessful | P116: 2021-02-07 | R116: H
A117: 4 | B117: 2022-01-31 | D117: PIIND 2600 CE FEB | E117: Buy | F117: 57.5 | G117: 38 | H117: 40 | I117: 80-100 | J117: Loss of Rs.17.5/- | K117: =H117-F117 -> -17.5 | L117: 100.00 | M117: =(K117*N117)-L117 -> -4475.0 | N117: 250 | O117: Unsuccessful | P117: 2021-02-01 | R117: H
A118: 5 | B118: 2022-02-01 | D118: NIFTY 17500 PE 3-FEB | E118: Buy | F118: 202.5 | H118: 335 | J118: Profit of Rs.90/- | K118: =H118-F118 -> 132.50 | L118: 100.00 | M118: 4300 | N118: 50 | O118: Successful | P118: 2022-02-01 | R118: H
D119: NIFTY 17200 PE 3-FEB | E119: Sell | F119: 102.5 | H119: 145 | K119: =F119-H119 -> -42.50 | L119: 100.00 | R119: H
A120: 6 | B120: 2022-02-02 | D120: NIFTY 17700 PE 3-FEB | E120: Buy | F120: 90 | G120: 45 | H120: 45 | I120: 140-160 | J120: Loss of Rs.45/- | K120: =H120-F120 -> -45 | L120: 100.00 | M120: =(K120*N120)-L120 -> -2350.0 | N120: 50 | O120: Unsuccessful | P120: 2021-02-02 | R120: H
A121: 7 | B121: 2022-02-03 | D121: BANKNIFTY 39400 CE 3-FEB | E121: Buy | F121: 65 | G121: 0 | H121: 0 | I121: 120-170 | J121: Loss of Rs.65/- | K121: =H121-F121 -> -65 | L121: 100.00 | M121: =(K121*N121)-L121 -> -1725.0 | N121: 25 | O121: Unsuccessful | P121: 2021-02-03 | R121: N
A122: 8 | B122: 2022-02-04 | D122: NIFTY 17500 PE 10-FEB | E122: Buy | F122: 110 | G122: 65 | H122: 135 | I122: 160-190 | J122: Profit of Rs.25/- | K122: 25 | L122: 100.00 | M122: 1150.0 | N122: 50 | O122: Successful | P122: 2021-02-04 | R122: N
A123: 9 | B123: 2022-02-07 | D123: NIFTY 17500 CE 10-FEB | E123: Buy | F123: 83 | G123: 40 | H123: 40 | I123: 130-150 | J123: Loss of Rs.43/- | K123: -43 | L123: 100.00 | M123: -2250.0 | N123: 50 | O123: Unsuccessful | P123: 2021-02-07 | R123: N
A124: 10 | B124: 2022-02-07 | D124: BANKNIFTY 38700 CE 10-FEB | E124: Buy | F124: 180 | G124: 90 | H124: 90 | I124: 250-300 | J124: Loss of Rs.90/- | K124: =H124-F124 -> -90 | L124: 100.00 | M124: =(K124*N124)-L124 -> -2350.0 | N124: 25 | O124: Unsuccessful | P124: 2021-02-08 | R124: H
A125: 11 | B125: 2022-02-14 | D125: TRENT 1100 CE FEB | E125: Buy | F125: 14.5 | G125: 7 | H125: 18.25 | I125: 25-30 | J125: Profit of Rs.3.75/- | K125: 3.75 | L125: 100.00 | M125: 2618.8 | N125: 725 | O125: Successful | P125: 2021-02-15 | R125: H
A126: 12 | B126: 2022-02-14 | D126: NIFTY 17200 CE 17 FEB | E126: Buy | F126: 76 | G126: 38 | H126: 38 | I126: 110-130 | J126: Loss of Rs.38/- | K126: =H126-F126 -> -38 | L126: 100.00 | M126: =(K126*N126)-L126 -> -2000.0 | N126: 50 | O126: Unsuccessful | P126: 2021-02-15 | R126: H
A127: 13 | B127: 2022-02-15 | D127: RELIANCE 2360 CE FEB | E127: Buy | F127: 37 | G127: 18 | H127: 49 | I127: 60-80 | J127: Profit of Rs.12/- | K127: 12 | L127: 100.00 | M127: 2900.0 | N127: 250 | O127: Successful | P127: 2021-02-15 | R127: H
A128: 14 | B128: 2022-02-15 | D128: RELIANCE 2380 CE FEB | E128: Buy | F128: 41 | G128: 20 | H128: 49 | I128: 60-80 | J128: Profit of Rs.8/- | K128: 8 | L128: 100.00 | M128: 1900.0 | N128: 250 | O128: Successful | P128: 2021-02-15 | R128: H
A129: 15 | B129: 2022-02-15 | D129: HDFC 2340 CE FEB | E129: Buy | F129: 36 | G129: 20 | H129: 47.5 | I129: 55-70 | J129: Profit of Rs.11.5/- | K129: 11.5 | L129: 100.00 | M129: 3350.0 | N129: 300 | O129: Successful | P129: 2021-02-15 | R129: H
A130: 16 | B130: 2022-02-16 | D130: NIFTY 17400 CE 17 FEB | E130: Buy | F130: 64 | G130: 28 | H130: 85 | I130: 110-130 | J130: Profit of Rs.21/- | K130: =H130-F130 -> 21 | L130: 100.00 | M130: =(K130*N130)-L130 -> 950.0 | N130: 50 | O130: Successful | P130: 2022-02-16 | R130: N
A131: 17 | B131: 2022-02-16 | D131: HDFC 2380 CE FEB | E131: Buy | F131: 35 | G131: 18 | H131: 45.5 | I131: 50-60 | J131: Profit of Rs.10.5/- | K131: 10.5 | L131: 100.00 | M131: 3050.0 | N131: 300 | O131: Successful | P131: 2022-02-16 | R131: N
A132: 18 | B132: 2022-02-16 | D132: BANKNIFTY 38000 CE 17 FEB | E132: Buy | F132: 240 | G132: 150 | H132: 290 | I132: 350-400 | J132: Profit of Rs.50/- | K132: 50 | L132: 100.00 | M132: 1150.0 | N132: 25 | O132: Successful | P132: 2022-02-16 | R132: H
A133: 19 | B133: 2022-02-16 | D133: RELIANCE 2400 CE FEB | E133: Buy | F133: 39.5 | G133: 20 | H133: 47.5 | I133: 60-80 | J133: Profit of Rs.8/- | K133: 8 | L133: 100.00 | M133: 1900.0 | N133: 250 | O133: Successful | P133: 2022-02-16 | R133: H
A134: 20 | B134: 2022-02-17 | D134: NIFTY 17350 CE 17 FEB | E134: Buy | F134: 52 | G134: 8 | H134: 72 | I134: 80-100 | J134: Profit of Rs.20/- | K134: =H134-F134 -> 20 | L134: 100.00 | M134: =(K134*N134)-L134 -> 900.0 | N134: 50 | O134: Successful | P134: 2022-02-17 | R134: N
A135: 21 | B135: 2022-02-17 | D135: HDFC 2380 CE FEB | E135: Buy | F135: 35 | G135: 18 | H135: 44.5 | I135: 50-60 | J135: Profit of Rs.9.5/- | K135: =H135-F135 -> 9.5 | L135: 100.00 | M135: =(K135*N135)-L135 -> 2750.0 | N135: 300 | O135: Successful | P135: 2022-02-17 | R135: H
A136: 22 | B136: 2022-02-17 | D136: BANKNIFTY 37800 CE 17 FEB | E136: Buy | F136: 180 | G136: 70 | H136: 105 | I136: 300-400 | J136: Loss of Rs.75/- | K136: -75 | L136: 100.00 | M136: -1975.0 | N136: 25 | O136: Unsuccessful | P136: 2021-02-17 | R136: H
A137: 23 | B137: 2022-02-17 | D137: NIFTY 17400 CE 17 FEB | E137: Buy | F137: 36.5 | G137: 0 | H137: 0 | I137: 70-90 | J137: Loss of Rs.36.5/- | K137: -36.5 | L137: 100.00 | M137: -1925.0 | N137: 50 | O137: Unsuccessful | P137: 2021-02-17 | R137: N
A138: 24 | B138: 2022-02-18 | D138: NIFTY 17500 CE FEB | E138: Sell | F138: 120 | G138: 160 | H138: 100 | I138: 50-30 | J138: Profit of Rs.20/- | K138: =F138-H138 -> 20 | L138: 100.00 | M138: =(K138*N138)-L138 -> 900.0 | N138: 50 | O138: Successful | P138: 2022-02-18 | R138: H
A139: 25 | B139: 2022-02-21 | D139: RELIANCE 2400 CE FEB | E139: Buy | F139: 24.5 | G139: 5 | H139: 33.5 | I139: 45-55 | J139: Profit of Rs.9/- | K139: =H139-F139 -> 9 | L139: 100.00 | M139: 2150.0 | N139: 250 | O139: Successful | P139: 2022-02-21 | R139: H
A140: 26 | B140: 2022-02-21 | D140: INFY 1700 CE FEB | E140: Buy | F140: 23.5 | G140: 10 | H140: 31.5 | I140: 45-55 | J140: Profit of Rs.8/- | K140: =H140-F140 -> 8 | L140: 100.00 | M140: =(K140*N140)-L140 -> 2300.0 | N140: 300 | O140: Successful | P140: 2022-02-21 | R140: H
A141: 27 | B141: 2022-02-21 | D141: TATASTEEL 1500 CE FEB | E141: Buy | F141: 14 | G141: 4 | H141: 19 | I141: 25-35 | J141: Profit of Rs.5/- | K141: 5 | L141: 100.00 | M141: 2025.0 | N141: 425 | O141: Successful | P141: 2022-02-21 | R141: H
A142: 28 | B142: 2022-02-22 | D142: RELIANCE 2360 CE FEB | E142: Buy | F142: 24.5 | G142: 5 | H142: 31.5 | I142: 45-50 | J142: Profit of Rs.7/- | K142: =H142-F142 -> 7 | L142: 100.00 | M142: =(K142*N142)-L142 -> 2000.0 | N142: 300 | O142: Successful | P142: 2022-02-22 | R142: H
A143: 29 | B143: 2022-02-22 | D143: TATASTEEL 1140 CE FEB | E143: Buy | F143: 14 | G143: 4 | H143: 15.5 | I143: 25-35 | J143: Profit of Rs.1.5/- | K143: =H143-F143 -> 1.5 | L143: 100.00 | M143: =(K143*N143)-L143 -> 537.5 | N143: 425 | O143: Successful | P143: 2022-02-22 | R143: H
A144: 30 | B144: 2022-02-22 | D144: NIFTY 17000 CE FEB | E144: Buy | F144: 100 | G144: 68 | H144: 122 | I144: 140-160 | J144: Profit of Rs.22/- | K144: 22 | L144: 100.00 | M144: 1000.0 | N144: 50 | O144: Successful | P144: 2022-02-22 | R144: H
A145: 31 | B145: 2022-02-22 | D145: RELIANCE 2380 CE FEB | E145: Buy | F145: 21 | G145: 5 | H145: 27.5 | I145: 45-50 | J145: Profit of Rs.6.5/- | K145: 6.5 | L145: 100.00 | M145: 1525.0 | N145: 250 | O145: Successful | P145: 2022-02-22 | R145: N
A146: 32 | B146: 2022-02-22 | D146: HDFC 2440 CE FEB | E146: Buy | F146: 20 | G146: 5 | H146: 26.5 | I146: 45-50 | J146: Profit of Rs.6.5/- | K146: 6.5 | L146: 100.00 | M146: 1850.0 | N146: 300 | O146: Successful | P146: 2022-02-22 | R146: H
A147: 33 | B147: 2022-02-22 | D147: LT 1860 CE FEB | E147: Buy | F147: 12 | G147: 5 | H147: 14.5 | I147: 20-25 | J147: Profit of Rs.2.5/- | K147: 2.5 | L147: 100.00 | M147: 1337.5 | N147: 575 | O147: Successful | P147: 2022-02-22 | R147: H
A148: 34 | B148: 2022-02-23 | D148: NIFTY 17200 CE FEB | E148: Buy | F148: 60 | G148: 37 | H148: 37 | I148: 100-120 | J148: Loss of Rs.23/- | K148: -23 | L148: 100.00 | M148: -1250.0 | N148: 50 | O148: Unsuccessful | P148: 2021-02-23 | R148: H
A149: 35 | B149: 2022-02-23 | D149: BANKNIFTY 37700 CE FEB | E149: Buy | F149: 195 | G149: 95 | H149: 95 | I149: 300-400 | J149: Loss of Rs.100/- | K149: =H149-F149 -> -100 | L149: 100.00 | M149: =(K149*N149)-L149 -> -2600.0 | N149: 25 | O149: Unsuccessful | P149: 2021-02-24 | R149: N
A150: 36 | B150: 2022-02-25 | D150: NIFTY 16000 PE 03 MAR | E150: Buy | F150: 105 | G150: 50 | H150: 130 | I150: 200 | J150: Profit of Rs.25/- | K150: 25 | L150: 100.00 | M150: 1150.0 | N150: 50 | O150: Successful | P150: 2021-02-28
A151: 37 | B151: 2022-02-25 | D151: HINDUNILVR 2220 CE MAR | E151: Buy | F151: 45 | G151: 30 | H151: 30 | I151: 65-75 | J151: Loss of Rs.15/- | K151: -15 | L151: 100.00 | M151: -4600.0 | N151: 300 | O151: Unsuccessful | P151: 2021-02-28
A152: 38 | B152: 2022-02-25 | D152: BANKNIFTY 35500 PE 03-MAR | E152: Buy | F152: 440 | G152: 250 | H152: 510 | I152: 800-1000 | J152: Profit of Rs.70/- | K152: 70 | L152: 100.00 | M152: 1650.0 | N152: 25 | O152: Successful | P152: 2021-02-28
A153: 39 | B153: 2022-02-28 | D153: INFY 1700 CE MAR | E153: Buy | F153: 46.5 | G153: 34 | H153: 54.5 | I153: 65-75 | J153: Profit of Rs.8/- | K153: =H153-F153 -> 8 | L153: 100.00 | M153: =(K153*N153)-L153 -> 2300.0 | N153: 300 | O153: Successful | P153: 2021-02-28
A154: 40 | B154: 2022-02-28 | D154: NIFTY 16300 PE 3 MAR | E154: Buy | F154: 140 | G154: 90 | H154: 92.5 | I154: 225-250 | J154: Loss of Rs.47.5/- | K154: -47.5 | L154: 100.00 | M154: -2475.0 | N154: 50 | O154: Unsuccessful | P154: 2021-02-28
A156: Techno -Funda (positional)
A157: Sr.no | B157: Date | D157: Company | E157: Rec | F157: Rec Price | G157: Stop Loss*** | H157: Call Closed At | I157: Target | J157: Remark | K157: Profit / Loss per Share/Lot | L157: All charges | M157: Net Gain / Loss % | N157: Status | O157: Closed Date | P157: Market Closing Price
A158: 1 | B158: 2021-10-19 | D158: ITC | E158: Buy | F158: 230-251 | G158: 198 | I158: 320-340 | J158: Open | R158: H
A159: 2 | B159: 2022-02-07 | D159: BEL | E159: Buy | F159: 198-202 | G159: 183 | I159: 230-240 | J159: Open | R159: H
A161: CLBS = Closing Basis *** | F161: Reinitiated $
A162: Dividend adjusted <> | F162: Revised stoploss # | H162: .................
B164: Intrday Call
A165: Sr.no | B165: Date | D165: Company | E165: Rec | F165: Rec Price | G165: Stop Loss | H165: Call Closed At | I165: Target | J165: Remark | K165: Profit / Loss per Share/Lot | L165: Gain / Loss per Lot | M165: Lot | N165: All charges | O165: Net Gain / Loss % | P165: Status | Q165: Closed Date
B178: Investment Idea
A179: Sr.no | B179: Date | D179: Company | E179: Rec | F179: Rec Price | G179: Point of Review | H179: Close Rate | I179: Target | J179: Remark | K179: Profit / Loss per Share | L179: Gain / Loss % | M179: Status | N179: Closed Date
A180: 1 | B180: 2013-11-01 | D180: L&T Finance Holding | E180: Accu | F180: 82.00 | G180: - | H180: 100 | I180: 100.00 | J180: Target Achieved | K180: =H180-F180 -> 18.00 | L180: =K180/F180 -> 21.95% | M180: Successful | N180: 2016-10-14
A181: 2 | B181: 2014-06-04 | D181: Finolex Inds | E181: Buy | F181: 257.00 | G181: - | H181: 300 | I181: 300.00 | J181: Target Achieved | K181: 43.00 | L181: 16.73% | M181: Successful | N181: 2014-07-02
A182: 3 | B182: 2014-07-08 | D182: JK Cement | E182: Buy | F182: 393.00 | G182: - | H182: 468 | I182: 468.00 | J182: Target Achieved | K182: 75.00 | L182: 19.08% | M182: Successful | N182: 2014-08-12
A183: 4 | B183: 2014-08-06 | D183: Finolex Cables | E183: Buy | F183: 205.00 | G183: - | H183: 275 | I183: 250.00 | J183: Target Achieved | K183: 70.00 | L183: 34.15% | M183: Successful | N183: 2014-11-19
A184: 5 | B184: 2014-09-04 | D184: Exide Inds | E184: Buy | F184: 162.00 | G184: - | H184: 190 | I184: 190.00 | J184: Target Achieved | K184: 28.00 | L184: 17.28% | M184: Successful | N184: 2015-01-02
A185: 6 | B185: 2014-09-04 | D185: Deepak Nitrite | E185: Buy | F185: 75.00 | G185: - | H185: 91.5 | I185: 95-100 | J185: Profit of Rs.16.50/- | K185: 16.50 | L185: 22.00% | M185: Successful | N185: 2014-11-11
A186: 7 | B186: 2014-10-01 | D186: Mercks | E186: Buy | F186: 850.00 | G186: - | H186: 982.5 | I186: 1050.00 | J186: Profit of Rs.132.50/- | K186: 132.50 | L186: 15.59% | M186: Successful | N186: 2015-02-04
A187: 8 | B187: 2014-10-01 | D187: Grindwell Norton | E187: Buy | F187: 475.00 | G187: - | H187: 515 | I187: 600.00 | J187: Profit of Rs.40/- | K187: 40.00 | L187: 8.42% | M187: Successful | N187: 2014-10-27
A188: 9 | B188: 2014-10-01 | D188: Snowman Logistics | E188: Buy | F188: 86.00 | G188: - | H188: 99 | I188: 140.00 | J188: Profit of Rs.13.00/- | K188: 13.00 | L188: 15.12% | M188: Successful | N188: 2014-10-27
A189: 10 | B189: 2014-10-14 | D189: Birla Corp | E189: Buy | F189: 496.60 | G189: - | H189: 621 | I189: 580.00 | J189: Target Achieved | K189: 124.40 | L189: 25.05% | M189: Successful | N189: 2016-08-23
A190: 11 | B190: 2014-10-14 | D190: Ultratech Cem | E190: Buy | F190: 2481.90 | G190: - | H190: 2840 | I190: 2870.00 | J190: Profit of Rs.358.10/- | K190: 358.10 | L190: 14.43% | M190: Successful | N190: 2015-01-13
A191: 12 | B191: 2014-10-16 | D191: Sintex Inds | E191: Buy | F191: 84.50 | G191: - | H191: 93 | I191: 110.00 | J191: Profit of Rs.8.50/- | K191: 8.50 | L191: 10.06% | M191: Successful | N191: 2014-10-27
A192: 13 | B192: 2014-10-16 | D192: HSIL | E192: Buy | F192: 401.00 | G192: - | H192: 428 | I192: 450.00 | J192: Profit of Rs.27.00/- | K192: 27.00 | L192: 6.73% | M192: Successful | N192: 2015-01-16
A193: 14 | B193: 2014-10-16 | D193: Eveready Inds | E193: Buy | F193: 101.00 | G193: - | H193: 112 | I193: 120.00 | J193: Profit of Rs.11.00/- | K193: 11.00 | L193: 10.89% | M193: Successful | N193: 2014-10-27
A194: 15 | B194: 2014-11-11 | D194: Pennar Inds | E194: Buy | F194: 59.00 | G194: - | H194: 76 | I194: 76.00 | J194: Target Achieved | K194: 17.00 | L194: 28.81% | M194: Successful | N194: 2017-10-24
A195: 16 | B195: 2014-11-11 | D195: Snowman Logistics | E195: Buy | F195: 99.00 | G195: - | H195: 120 | I195: 120.00 | J195: Profit of Rs.21/- | K195: 21.00 | L195: 21.21% | M195: Successful | N195: 2014-11-17
A196: 17 | B196: 2014-11-13 | D196: Dharamsi Morarji Chem | E196: Buy | F196: 22.00 | G196: - | H196: 33.55 | I196: 32.00 | J196: Profit of Rs 11.55/- | K196: 11.55 | L196: 52.50% | M196: Successful | N196: 2015-07-03
A197: 18 | B197: 2014-12-03 | D197: Tatachem | E197: Buy | F197: 440.00 | G197: - | H197: 520 | I197: 520.00 | J197: Profit of Rs 80.00/- | K197: 80.00 | L197: 18.18% | M197: Successful | N197: 2015-07-23
A198: 19 | B198: 2014-12-03 | D198: Advanta | E198: Buy | F198: 360.00 | G198: - | H198: 427 | I198: 425.00 | J198: Profit of Rs.67.00/- | K198: 67.00 | L198: 18.61% | M198: Successful | N198: 2015-02-23
A199: 20 | B199: 2015-01-08 | D199: GDL | E199: Buy | F199: 360.00 | G199: - | H199: 455 | I199: 420.00 | J199: Profit of Rs.95.00/- | K199: 95.00 | L199: 26.39% | M199: Successful | N199: 2015-01-20
A200: 21 | B200: 2015-01-08 | D200: NRB Bearing | E200: Buy | F200: 130.00 | H200: 175.5 | I200: 165.00 | J200: Profit of Rs 45.50/- | K200: 45.50 | L200: 35.00% | M200: Successful | N200: 2017-12-19
A201: 22 | B201: 2015-02-05 | D201: GSFC | E201: Accu | F201: 98.00 | H201: 120 | I201: 120.00 | J201: Target Achieved | K201: 22.00 | L201: 22.45% | M201: Successful | N201: 2017-01-18
A202: 23 | B202: 2015-02-05 | D202: Sundrmfast | E202: Accu | F202: 196.00 | H202: 262 | I202: 255.00 | J202: Target Achieved | K202: 66.00 | L202: 33.67% | M202: Successful | N202: 2016-08-17
A203: 24 | B203: 2015-03-04 | D203: GPPL | E203: Accu | F203: 235 | H203: 77.00 | I203: 280-285 | J203: Loss of Rs.158/- | K203: -158.00 | L203: -67.23% | M203: Unsuccessful | N203: 2019-02-26
A204: 25 | B204: 2015-03-04 | D204: ORIENTCEM | E204: Accu | F204: 185.00 | H204: 224 | I204: 220-225 | J204: Target Achieved | K204: 39.00 | L204: 21.08% | M204: Successful | N204: 2016-10-04
A205: 26 | B205: 2015-03-27 | D205: PFS | E205: Accu | F205: 49.5 | H205: 15.85 | I205: 67.00 | J205: Loss of Rs.33.65/- | K205: -33.65 | L205: -68% | M205: Unsuccessful | N205: 2019-06-11
A206: 27 | B206: 2015-03-30 | D206: Walchandnagar Ind Ltd | E206: Accu | F206: 183.50 | H206: 219 | I206: 218.00 | J206: Profit of Rs.35.50/- | K206: 35.50 | L206: 19.35% | M206: Successful | N206: 2015-04-09
A207: 28 | B207: 2015-04-20 | D207: Kalpataru Power Transmission Ltd | E207: Accu | F207: =(227+237)/2 -> 232.00 | H207: 298 | I207: 298.00 | J207: Target Achieved | K207: 66.00 | L207: 28.45% | M207: Successful | N207: 2017-03-29
A208: 29 | B208: 2015-05-04 | D208: Mastek Ltd | E208: Buy | F208: 385.00 | H208: =212.5+331 -> 543.5 | I208: 510.00 | J208: Profit of Rs 158.50/- | K208: 158.50 | L208: 41.17% | M208: Successful | N208: 2015-08-19
A209: 30 | B209: 2015-05-04 | D209: Suprajit Eng | E209: Buy | F209: 115.50 | H209: 146 | I209: 142.00 | J209: Profit of Rs 30.50/- | K209: 30.50 | L209: 26.41% | M209: Successful | N209: 2015-07-17
A210: 31 | B210: 2015-05-27 | D210: TCI | E210: Buy | F210: 237.50 | H210: 279.5 | I210: 278.00 | J210: Target Achieved | K210: 42.00 | L210: 17.68% | M210: Successful | N210: 2015-08-06
A211: 32 | B211: 2015-06-19 | D211: HSIL | E211: Accu | F211: 340.00 | H211: 448 | I211: 448.00 | J211: Target Achieved | K211: 108.00 | L211: 31.76% | M211: Successful | N211: 2017-10-10
A212: 33 | B212: 2015-07-06 | D212: Capital First | E212: Accu | F212: 390.00 | H212: 460 | I212: 460.00 | J212: Target Achieved | K212: 70.00 | L212: 17.95% | M212: Successful | N212: 2016-04-18
A213: 34 | B213: 2015-07-10 | D213: Dolphin OffShore | E213: Accu | F213: 122.5 | H213: 61.00 | I213: 172.00 | J213: Loss of Rs.61.50/- | K213: -61.50 | L213: -50.20% | M213: Unsuccessful | N213: 2018-08-21
A214: 35 | B214: 2015-08-03 | D214: Allcargo logistics | E214: Accu | F214: 297.50 | H214: 350 | I214: 360.00 | J214: Profit of Rs 52.50/- | K214: 52.50 | L214: 17.65% | M214: Successful | N214: 2015-08-16
A215: 36 | B215: 2015-08-03 | D215: Camline Fine | E215: Accu | F215: 115.50 | H215: 149 | I215: 140.00 | J215: Profit of Rs 33.50/- | K215: 33.50 | L215: 29.00% | M215: Successful | N215: 2017-01-05
A216: 37 | B216: 2015-09-04 | D216: TCI | E216: Accu | F216: 226.00 | H216: 292 | I216: 292.00 | J216: Target Achieved | K216: 66.00 | L216: 29.20% | M216: Successful | N216: 2015-10-09
A217: 38 | B217: 2015-09-07 | D217: Kalpataru Power Transmission Ltd | E217: Accu | F217: 232.50 | H217: 312.5 | I217: 310.00 | J217: Target Achieved | K217: 80.00 | L217: 34.41% | M217: Successful | N217: 2017-03-29
A218: 39 | B218: 2015-09-21 | D218: LLOYD ELECTRIC & ENG LTD | E218: Accu | F218: 196.50 | H218: 238 | I218: 238.00 | J218: Target Achieved | K218: 41.50 | L218: 21.12% | M218: Successful | N218: 2015-10-14
A219: 40 | B219: 2015-09-24 | D219: L&T Finance Holding | E219: Accu | F219: 65.00 | H219: 82 | I219: 82.00 | J219: Target Achieved | K219: 17.00 | L219: 26.15% | M219: Successful | N219: 2016-07-27
A220: 41 | B220: 2015-10-14 | D220: KEC International ltd | E220: Accu | F220: 144.00 | H220: 182.5 | I220: 181.00 | J220: Target Achieved | K220: 38.50 | L220: 26.74% | M220: Successful | N220: 2017-03-23
A221: 42 | B221: 2015-10-14 | D221: Gruh Finance | E221: Accu | F221: 264.00 | H221: 311 | I221: 311.00 | J221: Target Achieved | K221: 47.00 | L221: 17.80% | M221: Successful | N221: 2016-08-22
A222: 43 | B222: 2015-11-10 | D222: Pidilitind | E222: Buy | F222: 549.50 | H222: 630 | I222: 630.00 | J222: Target Achieved | K222: 80.50 | L222: 14.65% | M222: Successful | N222: 2016-02-19
A223: 44 | B223: 2015-12-04 | D223: Zensar Technology | E223: Accu | F223: 1027.50 | H223: 1315 | I223: 1250.00 | J223: Target Achieved | K223: 287.50 | L223: 27.98% | M223: Successful | N223: 2018-05-24
A224: 45 | B224: 2015-12-29 | D224: Vinati Organics Ltd | E224: Accu | F224: 465.00 | H224: 540 | I224: 540.00 | J224: Target Achieved | K224: 75.00 | L224: 16.13% | M224: Successful | N224: 2016-06-09
A225: 46 | B225: 2016-01-11 | D225: GSFC | E225: Buy | F225: 81.00 | H225: 110 | I225: 110.00 | J225: Target Achieved | K225: 29.00 | L225: 35.80% | M225: Successful | N225: 2017-01-10
A226: 47 | B226: 2016-01-13 | D226: SSWL | E226: Buy | F226: 417.50 | H226: 547 | I226: 535.00 | J226: Target Achieved | K226: 129.50 | L226: 31.02% | M226: Successful | N226: 2016-07-27
A227: 48 | B227: 2016-02-08 | D227: Persistent System Ltd | E227: Accu | F227: 650.00 | H227: 800 | I227: 800.00 | J227: Target Achieved | K227: 150.00 | L227: 23.08% | M227: Successful | N227: 2018-02-23
A228: 49 | B228: 2016-03-04 | D228: UPL | E228: Accu | F228: 437.50 | H228: 504.5 | I228: 522.00 | J228: Profit of Rs.67/- | K228: 67.00 | L228: 15.31% | M228: Successful | N228: 2016-04-20
A229: 50 | B229: 2016-03-09 | D229: Ashoka Buildcon Ltd | E229: Accu | F229: 189.50 | H229: 218 | I229: 218.00 | J229: Target Achieved | K229: 28.50 | L229: 15.04% | M229: Successful | N229: 2017-10-26
A230: 51 | B230: 2016-04-11 | D230: PTC INDIA FIN SERV LTD | E230: Accu | F230: 36.5 | H230: 15.85 | I230: 60.00 | J230: Loss of Rs.20.65/- | K230: -20.65 | L230: -56.58% | M230: Unsuccessful | N230: 2019-06-11
... 125 more rows
